Workbook

Sheet START
A1: Choose name from list

Sheet Instructions
D2: 2020
X4: Yes
X5: No
W7: Type of Entities Range: | X7: Parent Municipality
X8: Consolidated Information
W10: Date linked | X10: 1
W11: Date | X11: =VLOOKUP(X10,W39:X55,2) -> M01 July | Y11: 2013-08-01
W19: MTREF Range: | X19: 2014
X20: 2015
X21: 2016
X22: 2017
X23: 2018
X24: 2019
X25: 2020
X26: 2021
X27: 2022
X28: 2023
X29: 2024
X30: 2025
X31: 2026
X32: 2027
X33: 2028
W34: MTREF Linked:
W35: MTREF: | X35: 11
X36: =INDEX(X19:X32,X35,1) -> 2024
W37: Fin Year:
X38: =MTREF&"/"&RIGHT(MTREF,2)+1 -> 2024/25
V39: Date/type of report | W39: 1 | X39: M01 July
W40: 2 | X40: M02 August
W41: 3 | X41: M03 September
W42: 4 | X42: M04 October
W43: 5 | X43: M05 November
W44: 6 | X44: M06 December
W45: 7 | X45: M07 January
W46: 8 | X46: M08 February
W47: 9 | X47: M09 March
W48: 10 | X48: M10 April
W49: 11 | X49: M11 May
W50: 12 | X50: M12 June
W51: 13 | X51: Q1 First Quarter
W52: 14 | X52: Q2 Second Quarter
W53: 15 | X53: Q3 Third Quarter
W54: 16 | X54: Q4 Fourth Quarter
W55: 17 | X55: Mid-Year Assessment

Sheet Template names (hidden)
A1: Common sheet headings
A2: Head1 | B2: =HLOOKUP(MTREF,Headings,2) -> 2023/24 | C2: Prior year -1
A3: Head2 | B3: =HLOOKUP(MTREF,Headings,5) -> Budget Year 2024/25 | C3: Year of approved budget
A4: Head2A | B4: =HLOOKUP(MTREF,Headings,4) -> 2024/25 | C4: Approved budget year
A5: Head3 | B5: =HLOOKUP(MTREF,Headings,3) -> 2024/25 Medium Term Revenue & Expenditure Framework | C5: MTREF header name
A6: Head5 | B6: Audited Outcome
A7: Head5A | B7: Outcome
A8: Head5B | B8: Pre-audit outcome
A9: Head6 | B9: Original Budget
A10: Head7 | B10: Adjusted Budget
A11: Head8 | B11: Full Year Forecast
A12: Head9 | B12: =HLOOKUP(MTREF,Headings,5) -> Budget Year 2024/25 | C12: 1st year of MTREF | D12: Year1
A13: Head10 | B13: =HLOOKUP(MTREF,Headings,6) -> Budget Year +1 2025/26 | C13: 2nd year of MTREF | D13: Year2
A14: Head11 | B14: =HLOOKUP(MTREF,Headings,7) -> Budget Year +2 2026/27 | C14: 3rd year of MTREF | D14: Year3
A15: Head12 | B15: Forecast 2010/11 | D15: Year4
A16: Head13 | B16: Forecast 2011/12 | D16: Year5
A17: Head14 | B17: Forecast 2012/13 | D17: Year6
A18: Head15 | B18: Forecast 2013/14 | D18: Year7
A19: Head16 | B19: Forecast 2014/15 | D19: Year8
A20: Head17 | B20: Forecast 2015/16 | D20: Year9
A21: Head18 | B21: Forecast 2016/17 | D21: Year10
A22: Head19 | B22: Forecast 2017/18 | D22: Year11
A23: Head20 | B23: Forecast 2018/19 | D23: Year12
A24: Head21 | B24: Forecast 2019/20 | D24: Year13
A25: Head22 | B25: Forecast 2020/21 | D25: Year14
A26: Head23 | B26: Forecast 2021/22 | D26: Year15
A27: Head24 | B27: Description | D27: Desc
A28: Head25 | B28: Schedule of funding diligence | D28: fdil
A29: Head26 | B29: Vote Description | D29: VDesc
A30: Head27 | B30: Ref
A31: Head27a | B31: References
A32: Head28 | B32: Surplus/ (Deficit) for the year | D32: Result
A33: Head29 | B33: Annual target 2007/08
A34: Head30 | B34: Revised target 2007/08
A35: Head31 | B35: Quarter ended 30 September
A36: Head32 | B36: Quarter ended 31 December
A37: Head33 | B37: Quarter ended 31 March
A38: Head34 | B38: Quarter ended 30 June
A39: Head35 | B39: Variance explanation
A40: Head36 | B40: YTD Actual 31 Dec
A41: Head37 | B41: YTD Budget 31 Dec
A42: Head38 | B42: Monthly actual
A43: Head39 | B43: YearTD actual
A44: Head40 | B44: YearTD budget
A45: Head41 | B45: YTD variance
A46: Head42 | B46: Surplus/ (Deficit) for the yr/period
A47: Head43 | B47: =Head3&" Summary" -> 2024/25 Medium Term Revenue & Expenditure Framework Summary
A48: Head44 | B48: 1996 Census
A49: Head45 | B49: 2001 Census
A50: Head46 | B50: - Adjustments Budget - Month YYYY
A51: Head47 | B51: Previous target year to complete
A52: Head48 | B52: Present value
A53: Head49 | B53: Virement
A54: Head50 | B54: Other Adjusts.
A55: Head51 | B55: Accum. Funds
A56: Head52 | B56: Multi-year capital
A57: Head53 | B57: Unfore. Unavoid.
A58: Head54 | B58: Prior Adjusted
A59: Head55 | B59: Nat. or Prov. Govt
A60: Head56 | B60: Total Adjusts.
A61: Head57 | B61: =date -> M01 July
A62: Head58 | B62: Parent muni.
A63: Head59 | B63: Downward adjusts
A64: Head60 | B64: Month | C64: Report header part name | D64: =date -> M01 July
A65: SFPerf1 | B65: Budgeted Financial Performance
A66: SFPerf2 | B66: Forecast Financial Performance
A67: SFPos1 | B67: Budgeted Financial Position
A68: SFPos2 | B68: Forecast Financial Position
A69: Cash1 | B69: Budget Cash Flow
A70: Cash2 | B70: Forecast Cash Flow
A71: RandM | B71: Expenditure includes repairs & maintenance of R'000
A72: Standard nomenclature
A73: Muni | B73: ='Lookup and lists'!B27 -> LIM351 Blouberg
A74: Municipal Entities | B74: 2 | C74: Type of report: | D74: 1
A75: =IF((MuniEntities=1)*(MuniType=2),"YES","NO") -> NO | B75: Does this municipality have entities (consolidated budget and entity budgets required)? YES/NO
A76: s71 (Monthly Mayor report) schedules and charts
A77: S71sum | B77: =IF(Consolques="YES",E77,F77) -> Table C1 Monthly Budget Statement Summary | D77: Table C1 | E77: =D77&"Consolidated Monthly Budget Statement Summary" -> Table C1 Consolidated Monthly Budget Statement Summary | F77: =D77&"Monthly Budget Statement Summary" -> Table C1 Monthly Budget Statement Summary
A78: S71C | B78: Table C3 Monthly Budget Statement - Financial Performance (revenue and expenditure by municipal vote) | D78: Table C3 | E78: =D78&"Consolidated Monthly Budget Statement - Financial Performance (revenue and expenditure by municipal vote) " -> Table C3 Consolidated Monthly Budget Statement - Financial Performance (revenue and expenditure by municipal vote) | F78: =D78&"Monthly Budget Statement - Financial Performance (revenue and expenditure by municipal vote)" -> Table C3 Monthly Budget Statement - Financial Performance (revenue and expenditure by municipal vote)
A79: S71A | B79: =IF(Consolques="YES",E79,F79) -> Table C2 Monthly Budget Statement - Financial Performance (functional classification) | D79: Table C2 | E79: =D79&"Consolidated Monthly Budget Statement - Financial Performance (functional classification) " -> Table C2 Consolidated Monthly Budget Statement - Financial Performance (functional classification) | F79: =D79&"Monthly Budget Statement - Financial Performance (functional classification)" -> Table C2 Monthly Budget Statement - Financial Performance (functional classification)
A80: S71B | B80: =IF(Consolques="YES",E80,F80) -> Table C4 Monthly Budget Statement - Financial Performance (revenue and expenditure) | D80: Table C4 | E80: =D80&"Consolidated Monthly Budget Statement - Financial Performance (revenue and expenditure) " -> Table C4 Consolidated Monthly Budget Statement - Financial Performance (revenue and expenditure) | F80: =D80&"Monthly Budget Statement - Financial Performance (revenue and expenditure)" -> Table C4 Monthly Budget Statement - Financial Performance (revenue and expenditure)
A81: S71D | B81: =IF(Consolques="YES",E81,F81) -> Table C5 Monthly Budget Statement - Capital Expenditure (municipal vote, functional classification and funding) | D81: Table C5 | E81: =D81&"Consolidated Monthly Budget Statement - Capital Expenditure (municipal vote, functional classification and funding " -> Table C5 Consolidated Monthly Budget Statement - Capital Expenditure (municipal vote, functional classification and funding | F81: =D81&"Monthly Budget Statement - Capital Expenditure (municipal vote, functional classification and funding)" -> Table C5 Monthly Budget Statement - Capital Expenditure (municipal vote, functional classification and funding)
A82: S71E | B82: Table C6 Monthly Budget Statement - Financial Position | D82: Table C6 | E82: =D82&"Consolidated Monthly Budget Statement - Financial Position " -> Table C6 Consolidated Monthly Budget Statement - Financial Position | F82: =D82&"Monthly Budget Statement - Financial Position" -> Table C6 Monthly Budget Statement - Financial Position
A83: S71F | B83: Table C7 Monthly Budget Statement - Cash Flow | D83: Table C7 | E83: =D83&"Consolidated Monthly Budget Statement - Cash Flow " -> Table C7 Consolidated Monthly Budget Statement - Cash Flow | F83: =D83&"Monthly Budget Statement - Cash Flow " -> Table C7 Monthly Budget Statement - Cash Flow
A84: S71G | B84: =D84&"Material variance explanations " -> Supporting Table SC1 Material variance explanations | D84: Supporting Table SC1
A85: S71H | B85: =D85&"Monthly Budget Statement - performance indicators " -> Supporting Table SC2 Monthly Budget Statement - performance indicators | D85: Supporting Table SC2
A86: S71I | B86: =D86&"Monthly Budget Statement - aged debtors" -> Supporting Table SC3 Monthly Budget Statement - aged debtors | D86: Supporting Table SC3
A87: S71J | B87: =D87&"Monthly Budget Statement - aged creditors " -> Supporting Table SC4 Monthly Budget Statement - aged creditors | D87: Supporting Table SC4
A88: S71K | B88: =D88&"Monthly Budget Statement - investment portfolio " -> Supporting Table SC5 Monthly Budget Statement - investment portfolio | D88: Supporting Table SC5
A89: S71L | B89: =D89&"Monthly Budget Statement - transfers and grant receipts " -> Supporting Table SC6 Monthly Budget Statement - transfers and grant receipts | D89: Supporting Table SC6
A90: S71M | B90: =D90&" Monthly Budget Statement - transfers and grant expenditure " -> Supporting Table SC7(1) Monthly Budget Statement - transfers and grant expenditure | D90: Supporting Table SC7(1)
A91: S71N | B91: =D91&"Monthly Budget Statement - councillor and staff benefits " -> Supporting Table SC8 Monthly Budget Statement - councillor and staff benefits | D91: Supporting Table SC8
A92: S71O | B92: =D92&"Monthly Budget Statement - actuals and revised targets for cash receipts" -> Supporting Table SC9 Monthly Budget Statement - actuals and revised targets for cash receipts | D92: Supporting Table SC9
A93: S71P | B93: =IF(Consolques="YES",E93,F93) -> NOT REQUIRED - municipality does not have entities or this is the parent municipality's budget | D93: Supporting Table SC10 | E93: =D93&"Monthly Budget Statement - Parent Municipality Financial Performance (revenue and expenditure) " -> Supporting Table SC10 Monthly Budget Statement - Parent Municipality Financial Performance (revenue and expenditure) | F93: NOT REQUIRED - municipality does not have entities or this is the parent municipality's budget
A94: S71Q | B94: NOT REQUIRED - municipality does not have entities or this is the parent municipality's budget | D94: Supporting Table SC11 | E94: =D94&"Monthly Budget Statement - summary of municipal entities" -> Supporting Table SC11 Monthly Budget Statement - summary of municipal entities | F94: NOT REQUIRED - municipality does not have entities or this is the parent municipality's budget
A95: S71R | B95: Supporting Table SC12 Monthly Budget Statement - capital expenditure trend | D95: Supporting Table SC12 | E95: =D95&"Consolidated Monthly Budget Statement - capital expenditure trend " -> Supporting Table SC12 Consolidated Monthly Budget Statement - capital expenditure trend | F95: =D95&"Monthly Budget Statement - capital expenditure trend" -> Supporting Table SC12 Monthly Budget Statement - capital expenditure trend
A96: S71Sa | B96: Supporting Table SC13a Monthly Budget Statement - capital expenditure on new assets by asset class | D96: Supporting Table SC13a | E96: =D96&"Consolidated Monthly Budget Statement - capital expenditure on new assets by asset class" -> Supporting Table SC13a Consolidated Monthly Budget Statement - capital expenditure on new assets by asset class | F96: =D96&"Monthly Budget Statement - capital expenditure on new assets by asset class" -> Supporting Table SC13a Monthly Budget Statement - capital expenditure on new assets by asset class
A97: S71Sb | B97: Supporting Table SC13b Monthly Budget Statement - capital expenditure on renewal of existing assets by asset class | D97: Supporting Table SC13b | E97: =D97&"Consolidated Monthly Budget Statement - capital expenditure on renewal of existing assets by asset class" -> Supporting Table SC13b Consolidated Monthly Budget Statement - capital expenditure on renewal of existing assets by asset class | F97: =D97&"Monthly Budget Statement - capital expenditure on renewal of existing assets by asset class" -> Supporting Table SC13b Monthly Budget Statement - capital expenditure on renewal of existing assets by asset class
A98: S71Sc | B98: Supporting Table SC13c Monthly Budget Statement - expenditure on repairs and maintenance by asset class | D98: Supporting Table SC13c | E98: =D98&"Consolidated Monthly Budget Statement - expenditure on repairs and maintenance by asset class" -> Supporting Table SC13c Consolidated Monthly Budget Statement - expenditure on repairs and maintenance by asset class | F98: =D98&"Monthly Budget Statement - expenditure on repairs and maintenance by asset class" -> Supporting Table SC13c Monthly Budget Statement - expenditure on repairs and maintenance by asset class
A99: S71Sd | B99: Supporting Table SC13d Monthly Budget Statement - depreciation by asset class | D99: Supporting Table SC13d | E99: =D99&"Consolidated Monthly Budget Statement - depreciation by asset class" -> Supporting Table SC13d Consolidated Monthly Budget Statement - depreciation by asset class | F99: =D99&"Monthly Budget Statement - depreciation by asset class" -> Supporting Table SC13d Monthly Budget Statement - depreciation by asset class
A100: S71Se | B100: =IF(Consolques="YES",E100,F100) -> Supporting Table SC13e Monthly Budget Statement - capital expenditure on upgrading of existing assets by asset class | D100: Supporting Table SC13e | E100: =D100&"Consolidated Monthly Budget Statement - capital expenditure on upgrading of existing assets by asset class" -> Supporting Table SC13e Consolidated Monthly Budget Statement - capital expenditure on upgrading of existing assets by asset class | F100: =D100&"Monthly Budget Statement - capital expenditure on upgrading of existing assets by asset class" -> Supporting Table SC13e Monthly Budget Statement - capital expenditure on upgrading of existing assets by asset class
B101: s71 charts listing
B102: =D102&Head2A&" Capital Expenditure Monthly Trend: actual v target" -> Chart C1 2024/25 Capital Expenditure Monthly Trend: actual v target | D102: Chart C1
B103: =D103&Head2A&" Capital Expenditure: YTD actual v YTD target" -> Chart C2 2024/25 Capital Expenditure: YTD actual v YTD target | D103: Chart C2
B104: =D104&"Aged Consumer Debtors Analysis" -> Chart C3 Aged Consumer Debtors Analysis | D104: Chart C3
B105: =D105&"Consumer Debtors (total by Debtor Customer Category)" -> Chart C4 Consumer Debtors (total by Debtor Customer Category) | D105: Chart C4
B106: =D106&"Aged Creditors Analysis" -> Chart C5 Aged Creditors Analysis | D106: Chart C5
A107: S71T | B107: =D107&" Monthly Budget Statement - Expenditure against approved rollovers" -> Supporting Table SC7(2) Monthly Budget Statement - Expenditure against approved rollovers | D107: Supporting Table SC7(2)

Sheet Lookup and lists (hidden)
A1: Description | B1: 2013 | C1: 2014 | D1: 2015 | E1: 2016 | F1: 2017 | G1: 2018 | H1: 2019 | I1: 2020 | J1: 2021 | K1: 2022 | L1: 2023 | M1: 2024 | N1: 2025 | O1: 2026 | Q1: Grants: | R1: National - opex | S1: Provincial - opex | T1: National - capex | U1: Provincial - capex | V1: YESNO
A2: ='Template names'!C2 -> Prior year -1 | B2: =B1-1&"/"&RIGHT(B1,2)-0 -> 2012/13 | C2: =C1-1&"/"&RIGHT(C1,2)-0 -> 2013/14 | D2: =D1-1&"/"&RIGHT(D1,2)-0 -> 2014/15 | E2: =E1-1&"/"&RIGHT(E1,2)-0 -> 2015/16 | F2: =F1-1&"/"&RIGHT(F1,2)-0 -> 2016/17 | G2: 2017/18 | H2: 2018/19 | I2: 2019/20 | J2: 2020/21 | K2: 2021/22 | L2: 2022/23 | M2: 2023/24 | N2: 2024/25 | O2: 2025/26 | R2: Local Government Equitable Share | S2: Health subsidy | T2: Municipal Infrastructure Grant (MIG) | U2: Agriculture | V2: Yes
A3: ='Template names'!C5 -> MTREF header name | B3: =B1&"/"&RIGHT(B1,2)+1&" Medium Term Revenue & Expenditure Framework" -> 2013/14 Medium Term Revenue & Expenditure Framework | C3: =C1&"/"&RIGHT(C1,2)+1&" Medium Term Revenue & Expenditure Framework" -> 2014/15 Medium Term Revenue & Expenditure Framework | D3: =D1&"/"&RIGHT(D1,2)+1&" Medium Term Revenue & Expenditure Framework" -> 2015/16 Medium Term Revenue & Expenditure Framework | E3: =E1&"/"&RIGHT(E1,2)+1&" Medium Term Revenue & Expenditure Framework" -> 2016/17 Medium Term Revenue & Expenditure Framework | F3: =F1&"/"&RIGHT(F1,2)+1&" Medium Term Revenue & Expenditure Framework" -> 2017/18 Medium Term Revenue & Expenditure Framework | G3: 2018/19 Medium Term Revenue & Expenditure Framework | H3: 2019/20 Medium Term Revenue & Expenditure Framework | I3: 2020/21 Medium Term Revenue & Expenditure Framework | J3: 2021/22 Medium Term Revenue & Expenditure Framework | K3: 2022/23 Medium Term Revenue & Expenditure Framework | L3: 2023/24 Medium Term Revenue & Expenditure Framework | M3: 2024/25 Medium Term Revenue & Expenditure Framework | N3: 2025/26 Medium Term Revenue & Expenditure Framework | O3: 2026/27 Medium Term Revenue & Expenditure Framework | R3: RSC Levy Replacement | S3: Ambulance subsidy | T3: Public Transport and Systems | U3: Education | V3: No
A4: ='Template names'!C4 -> Approved budget year | B4: =B1&"/"&RIGHT(B1,2)+1 -> 2013/14 | C4: =C1&"/"&RIGHT(C1,2)+1 -> 2014/15 | D4: =D1&"/"&RIGHT(D1,2)+1 -> 2015/16 | E4: =E1&"/"&RIGHT(E1,2)+1 -> 2016/17 | F4: =F1&"/"&RIGHT(F1,2)+1 -> 2017/18 | G4: 2018/19 | H4: 2019/20 | I4: 2020/21 | J4: 2021/22 | K4: 2022/23 | L4: 2023/24 | M4: 2024/25 | N4: 2025/26 | O4: 2026/27 | R4: Finance Management | S4: Housing | T4: Rural Transport Services and Infrastructure | U4: Health
A5: ='Template names'!C12 -> 1st year of MTREF | B5: ="Budget Year "&B1&"/"&RIGHT(B1,2)+1 -> Budget Year 2013/14 | C5: ="Budget Year "&C1&"/"&RIGHT(C1,2)+1 -> Budget Year 2014/15 | D5: ="Budget Year "&D1&"/"&RIGHT(D1,2)+1 -> Budget Year 2015/16 | E5: ="Budget Year "&E1&"/"&RIGHT(E1,2)+1 -> Budget Year 2016/17 | F5: ="Budget Year "&F1&"/"&RIGHT(F1,2)+1 -> Budget Year 2017/18 | G5: Budget Year 2018/19 | H5: Budget Year 2019/20 | I5: Budget Year 2020/21 | J5: Budget Year 2021/22 | K5: Budget Year 2022/23 | L5: Budget Year 2023/24 | M5: Budget Year 2024/25 | N5: Budget Year 2025/26 | O5: Budget Year 2026/27 | R5: Municipal Systems Improvement | S5: Sport and Recreation | T5: Regional Bulk Infrastructure | U5: Housing and Local Government
A6: ='Template names'!C13 -> 2nd year of MTREF | B6: ="Budget Year +1 "&B1+1&"/"&RIGHT(B1,2)+2 -> Budget Year +1 2014/15 | C6: ="Budget Year +1 "&C1+1&"/"&RIGHT(C1,2)+2 -> Budget Year +1 2015/16 | D6: ="Budget Year +1 "&D1+1&"/"&RIGHT(D1,2)+2 -> Budget Year +1 2016/17 | E6: ="Budget Year +1 "&E1+1&"/"&RIGHT(E1,2)+2 -> Budget Year +1 2017/18 | F6: ="Budget Year +1 "&F1+1&"/"&RIGHT(F1,2)+2 -> Budget Year +1 2018/19 | G6: Budget Year +1 2019/20 | H6: Budget Year +1 2020/21 | I6: Budget Year +1 2021/22 | J6: Budget Year +1 2022/23 | K6: Budget Year +1 2023/24 | L6: Budget Year +1 2024/25 | M6: Budget Year +1 2025/26 | N6: Budget Year +1 2026/27 | O6: Budget Year +1 2027/28 | R6: Water Services Operating Subsidy | T6: Rural Households Infrastructure | U6: Other Departments
A7: ='Template names'!C14 -> 3rd year of MTREF | B7: ="Budget Year +2 "&B1+2&"/"&RIGHT(B1,2)+3 -> Budget Year +2 2015/16 | C7: ="Budget Year +2 "&C1+2&"/"&RIGHT(C1,2)+3 -> Budget Year +2 2016/17 | D7: ="Budget Year +2 "&D1+2&"/"&RIGHT(D1,2)+3 -> Budget Year +2 2017/18 | E7: ="Budget Year +2 "&E1+2&"/"&RIGHT(E1,2)+3 -> Budget Year +2 2018/19 | F7: ="Budget Year +2 "&F1+2&"/"&RIGHT(F1,2)+3 -> Budget Year +2 2019/20 | G7: Budget Year +2 2020/21 | H7: Budget Year +2 2021/22 | I7: Budget Year +2 2022/23 | J7: Budget Year +2 2023/24 | K7: Budget Year +2 2024/25 | L7: Budget Year +2 2025/26 | M7: Budget Year +2 2026/27 | N7: Budget Year +2 2027/28 | O7: Budget Year +2 2028/29 | R7: Energy Efficiency and Demand Management | T7: Neighbourhood Development Partnership | U7: Public Works, Roads, Transport
A8: NOTE: This sheet should not be directly amended - select headings from sheet 'S' | R8: Integrated National Electrification Programme | T8: 2010 FIFA World Cup Stadiums Development | U8: Sport and Recreation
R9: Municipal Drought Relief
R10: 2010 FIFA World Cup Operating
R11: Electricity Demand Side Management
R12: EPWP Incentive
A26: Name link | B26: 140
A27: Name of Muni | B27: =INDEX(B28:B311,B26,1) -> LIM351 Blouberg
B28: Choose name from list | C28: Set name on 'Instructions' sheet
B29: BUF Buffalo City | C29: EC EASTERN CAPE
B30: NMA Nelson Mandela Bay | C30: EC EASTERN CAPE
B31: EC101 Dr Beyers Naude | C31: EC EASTERN CAPE
B32: EC102 Blue Crane Route | C32: EC EASTERN CAPE
B33: EC104 Makana | C33: EC EASTERN CAPE
B34: EC105 Ndlambe | C34: EC EASTERN CAPE
B35: EC106 Sundays River Valley | C35: EC EASTERN CAPE
B36: EC108 Kouga | C36: EC EASTERN CAPE
B37: EC109 Kou-Kamma | C37: EC EASTERN CAPE
B38: DC10 Sarah Baartman | C38: EC EASTERN CAPE
B39: EC121 Mbhashe | C39: EC EASTERN CAPE
B40: EC122 Mnquma | C40: EC EASTERN CAPE
B41: EC123 Great Kei | C41: EC EASTERN CAPE
B42: EC124 Amahlathi | C42: EC EASTERN CAPE
B43: EC126 Ngqushwa | C43: EC EASTERN CAPE
B44: EC129 Raymond Mhlaba | C44: EC EASTERN CAPE
B45: DC12 Amathole | C45: EC EASTERN CAPE
B46: EC131 Inxuba Yethemba | C46: EC EASTERN CAPE
B47: EC135 Intsika Yethu | C47: EC EASTERN CAPE
B48: EC136 Emalahleni (Ec) | C48: EC EASTERN CAPE
B49: EC137 Engcobo | C49: EC EASTERN CAPE
B50: EC138 Sakhisizwe | C50: EC EASTERN CAPE
B51: EC139 Enoch Mgijima | C51: EC EASTERN CAPE
B52: DC13 Chris Hani | C52: EC EASTERN CAPE
B53: EC141 Elundini | C53: EC EASTERN CAPE
B54: EC142 Senqu | C54: EC EASTERN CAPE
B55: EC145 Walter Sisulu | C55: EC EASTERN CAPE
B56: DC14 Joe Gqabi | C56: EC EASTERN CAPE
B57: EC153 Ngquza Hills | C57: EC EASTERN CAPE
B58: EC154 Port St Johns | C58: EC EASTERN CAPE
B59: EC155 Nyandeni | C59: EC EASTERN CAPE
B60: EC156 Mhlontlo | C60: EC EASTERN CAPE
B61: EC157 King Sabata Dalindyebo | C61: EC EASTERN CAPE
B62: DC15 O .R. Tambo | C62: EC EASTERN CAPE
B63: EC441 Matatiele | C63: EC EASTERN CAPE
B64: EC442 Umzimvubu | C64: EC EASTERN CAPE
B65: EC443 Winnie Madikizela Mandela | C65: EC EASTERN CAPE
B66: EC444 Ntabankulu | C66: EC EASTERN CAPE
B67: DC44 Alfred Nzo | C67: EC EASTERN CAPE
B68: MAN Mangaung | C68: FS FREE STATE
B69: FS161 Letsemeng | C69: FS FREE STATE
B70: FS162 Kopanong | C70: FS FREE STATE
B71: FS163 Mohokare | C71: FS FREE STATE
B72: DC16 Xhariep | C72: FS FREE STATE
B73: FS181 Masilonyana | C73: FS FREE STATE
B74: FS182 Tokologo | C74: FS FREE STATE
B75: FS183 Tswelopele | C75: FS FREE STATE
B76: FS184 Matjhabeng | C76: FS FREE STATE
B77: FS185 Nala | C77: FS FREE STATE
B78: DC18 Lejweleputswa | C78: FS FREE STATE
B79: FS191 Setsoto | C79: FS FREE STATE
B80: FS192 Dihlabeng | C80: FS FREE STATE
B81: FS193 Nketoana | C81: FS FREE STATE
B82: FS194 Maluti-a-Phofung | C82: FS FREE STATE
B83: FS195 Phumelela | C83: FS FREE STATE
B84: FS196 Mantsopa | C84: FS FREE STATE
B85: DC19 Thabo Mofutsanyana | C85: FS FREE STATE
B86: FS201 Moqhaka | C86: FS FREE STATE
B87: FS203 Ngwathe | C87: FS FREE STATE
B88: FS204 Metsimaholo | C88: FS FREE STATE
B89: FS205 Mafube | C89: FS FREE STATE
B90: DC20 Fezile Dabi | C90: FS FREE STATE
B91: EKU City of Ekurhuleni | C91: GT GAUTENG
B92: JHB City Of Johannesburg | C92: GT GAUTENG
B93: TSH City Of Tshwane | C93: GT GAUTENG
B94: GT421 Emfuleni | C94: GT GAUTENG
B95: GT422 Midvaal | C95: GT GAUTENG
B96: GT423 Lesedi | C96: GT GAUTENG
B97: DC42 Sedibeng | C97: GT GAUTENG
B98: GT481 Mogale City | C98: GT GAUTENG
B99: GT484 Merafong City | C99: GT GAUTENG
B100: GT485 Rand West City | C100: GT GAUTENG
B101: DC48 West Rand | C101: GT GAUTENG
B102: ETH eThekwini | C102: KZN KWAZULU-NATAL
B103: KZN212 Umdoni | C103: KZN KWAZULU-NATAL
B104: KZN213 Umzumbe | C104: KZN KWAZULU-NATAL
B105: KZN214 uMuziwabantu | C105: KZN KWAZULU-NATAL
B106: KZN216 Ray Nkonyeni | C106: KZN KWAZULU-NATAL
B107: DC21 Ugu | C107: KZN KWAZULU-NATAL
B108: KZN221 uMshwathi | C108: KZN KWAZULU-NATAL
B109: KZN222 uMngeni | C109: KZN KWAZULU-NATAL
B110: KZN223 Mpofana | C110: KZN KWAZULU-NATAL
B111: KZN224 Impendle | C111: KZN KWAZULU-NATAL
B112: KZN225 Msunduzi | C112: KZN KWAZULU-NATAL
B113: KZN226 Mkhambathini | C113: KZN KWAZULU-NATAL
B114: KZN227 Richmond | C114: KZN KWAZULU-NATAL
B115: DC22 uMgungundlovu | C115: KZN KWAZULU-NATAL
B116: KZN235 Okhahlamba | C116: KZN KWAZULU-NATAL
B117: KZN237 Inkosi Langalibalele | C117: KZN KWAZULU-NATAL
B118: KZN238 Alfred Duma | C118: KZN KWAZULU-NATAL
B119: DC23 Uthukela | C119: KZN KWAZULU-NATAL
B120: KZN241 Endumeni | C120: KZN KWAZULU-NATAL
B121: KZN242 Nquthu | C121: KZN KWAZULU-NATAL
B122: KZN244 Msinga | C122: KZN KWAZULU-NATAL
B123: KZN245 Umvoti | C123: KZN KWAZULU-NATAL
B124: DC24 Umzinyathi | C124: KZN KWAZULU-NATAL
B125: KZN252 Newcastle | C125: KZN KWAZULU-NATAL
B126: KZN253 Emadlangeni | C126: KZN KWAZULU-NATAL
B127: KZN254 Dannhauser | C127: KZN KWAZULU-NATAL
B128: DC25 Amajuba | C128: KZN KWAZULU-NATAL
B129: KZN261 eDumbe | C129: KZN KWAZULU-NATAL
B130: KZN262 uPhongolo | C130: KZN KWAZULU-NATAL
B131: KZN263 Abaqulusi | C131: KZN KWAZULU-NATAL
B132: KZN265 Nongoma | C132: KZN KWAZULU-NATAL
B133: KZN266 Ulundi | C133: KZN KWAZULU-NATAL
B134: DC26 Zululand | C134: KZN KWAZULU-NATAL
B135: KZN271 Umhlabuyalingana | C135: KZN KWAZULU-NATAL
B136: KZN272 Jozini | C136: KZN KWAZULU-NATAL
B137: KZN275 Mtubatuba | C137: KZN KWAZULU-NATAL
B138: KZN276 Hlabisa Big Five | C138: KZN KWAZULU-NATAL
B139: DC27 Umkhanyakude | C139: KZN KWAZULU-NATAL
B140: KZN281 Mfolozi | C140: KZN KWAZULU-NATAL
B141: KZN282 uMhlathuze | C141: KZN KWAZULU-NATAL
B142: KZN284 uMlalazi | C142: KZN KWAZULU-NATAL
B143: KZN285 Mthonjaneni | C143: KZN KWAZULU-NATAL
B144: KZN286 Nkandla | C144: KZN KWAZULU-NATAL
B145: DC28 King Cetshwayo | C145: KZN KWAZULU-NATAL
B146: KZN291 Mandeni | C146: KZN KWAZULU-NATAL
B147: KZN292 KwaDukuza | C147: KZN KWAZULU-NATAL
B148: KZN293 Ndwedwe | C148: KZN KWAZULU-NATAL
B149: KZN294 Maphumulo | C149: KZN KWAZULU-NATAL
B150: DC29 iLembe | C150: KZN KWAZULU-NATAL
B151: KZN433 Greater Kokstad | C151: KZN KWAZULU-NATAL
B152: KZN434 Ubuhlebezwe | C152: KZN KWAZULU-NATAL
B153: KZN435 Umzimkhulu | C153: KZN KWAZULU-NATAL
B154: KZN436 Dr Nkosazana Dlamini Zuma | C154: KZN KWAZULU-NATAL
B155: DC43 Harry Gwala | C155: KZN KWAZULU-NATAL
B156: LIM331 Greater Giyani | C156: LIM LIMPOPO
B157: LIM332 Greater Letaba | C157: LIM LIMPOPO
B158: LIM333 Greater Tzaneen | C158: LIM LIMPOPO
B159: LIM334 Ba-Phalaborwa | C159: LIM LIMPOPO
B160: LIM335 Maruleng | C160: LIM LIMPOPO
B161: DC33 Mopani | C161: LIM LIMPOPO
B162: LIM341 Musina | C162: LIM LIMPOPO
B163: LIM343 Thulamela | C163: LIM LIMPOPO
B164: LIM344 Makhado | C164: LIM LIMPOPO
B165: LIM345 Collins Chabane | C165: LIM LIMPOPO
B166: DC34 Vhembe | C166: LIM LIMPOPO
B167: LIM351 Blouberg | C167: LIM LIMPOPO
B168: LIM353 Molemole | C168: LIM LIMPOPO
B169: LIM354 Polokwane | C169: LIM LIMPOPO
B170: LIM355 Lepelle-Nkumpi | C170: LIM LIMPOPO
B171: DC35 Capricorn | C171: LIM LIMPOPO
B172: LIM361 Thabazimbi | C172: LIM LIMPOPO
B173: LIM362 Lephalale | C173: LIM LIMPOPO
B174: LIM366 Bela Bela | C174: LIM LIMPOPO
B175: LIM367 Mogalakwena | C175: LIM LIMPOPO
B176: LIM368 Modimolle-Mookgopong | C176: LIM LIMPOPO
B177: DC36 Waterberg | C177: LIM LIMPOPO
B178: LIM471 Ephraim Mogale | C178: LIM LIMPOPO
B179: LIM472 Elias Motsoaledi | C179: LIM LIMPOPO
B180: LIM473 Makhuduthamaga | C180: LIM LIMPOPO
B181: LIM476 Tubatse Fetakgomo | C181: LIM LIMPOPO
B182: DC47 Sekhukhune | C182: LIM LIMPOPO
B183: MP301 Albert Luthuli | C183: MP MPUMALANGA
B184: MP302 Msukaligwa | C184: MP MPUMALANGA
B185: MP303 Mkhondo | C185: MP MPUMALANGA
B186: MP304 Pixley Ka Seme (MP) | C186: MP MPUMALANGA
B187: MP305 Lekwa | C187: MP MPUMALANGA
B188: MP306 Dipaleseng | C188: MP MPUMALANGA
B189: MP307 Govan Mbeki | C189: MP MPUMALANGA
B190: DC30 Gert Sibande | C190: MP MPUMALANGA
B191: MP311 Victor Khanye | C191: MP MPUMALANGA
B192: MP312 Emalahleni (Mp) | C192: MP MPUMALANGA
B193: MP313 Steve Tshwete | C193: MP MPUMALANGA
B194: MP314 Emakhazeni | C194: MP MPUMALANGA
B195: MP315 Thembisile Hani | C195: MP MPUMALANGA
B196: MP316 Dr J.S. Moroka | C196: MP MPUMALANGA
B197: DC31 Nkangala | C197: MP MPUMALANGA
B198: MP321 Thaba Chweu | C198: MP MPUMALANGA
B199: MP324 Nkomazi | C199: MP MPUMALANGA
B200: MP325 Bushbuckridge | C200: MP MPUMALANGA
B201: MP326 City of Mbombela | C201: MP MPUMALANGA
B202: DC32 Ehlanzeni | C202: MP MPUMALANGA
B203: NC451 Joe Morolong | C203: NC NORTHERN CAPE
B204: NC452 Ga-Segonyana | C204: NC NORTHERN CAPE
B205: NC453 Gamagara | C205: NC NORTHERN CAPE
B206: DC45 John Taolo Gaetsewe | C206: NC NORTHERN CAPE
B207: NC061 Richtersveld | C207: NC NORTHERN CAPE
B208: NC062 Nama Khoi | C208: NC NORTHERN CAPE
B209: NC064 Kamiesberg | C209: NC NORTHERN CAPE
B210: NC065 Hantam | C210: NC NORTHERN CAPE
B211: NC066 Karoo Hoogland | C211: NC NORTHERN CAPE
B212: NC067 Khai-Ma | C212: NC NORTHERN CAPE
B213: DC6 Namakwa | C213: NC NORTHERN CAPE
... 73 more rows

Sheet Org structure
A1: Organisational Structure Votes | C1: Organisational Structure Sub-Votes | E1: Display Sub-Votes
A2: =B2&" - "&C2 -> Vote 01 - Executive & Council | B2: Vote 01 | C2: Executive & Council
A3: =B4&" - "&C4 -> Vote 02 - Finance And Administration | B3: 01.1 | C3: Council General | D3: =CONCATENATE(B3, " - ", C3) -> 01.1 - Council General | E3: 01.1 - Council General
A4: =B6&" - "&C6 -> Vote 03 - Community Service | B4: Vote 02 | C4: Finance And Administration
A5: =B8&" - "&C8 -> Vote 04 - Public And Safety | B5: 02.1 | C5: Municipal Manager | D5: =CONCATENATE(B5, " - ", C5) -> 02.1 - Municipal Manager | E5: 02.1 - Municipal Manager
A6: =B10&" - "&C10 -> Vote 05 - Waste Management | B6: Vote 03 | C6: Community Service
A7: =B16&" - "&C16 -> Vote 06 - Roads Services | B7: 03.1 | C7: Finance Services Administration | D7: =CONCATENATE(B7, " - ", C7) -> 03.1 - Finance Services Administration | E7: 03.1 - Finance Services Administration
A8: =B21&" - "&C21 -> Vote 07 - Econominc Development And Planning | B8: Vote 04 | C8: Public And Safety
A9: =B24&" - "&C24 -> Vote 08 - | B9: 04.1 | C9: Corporate Services Administration | D9: =CONCATENATE(B9, " - ", C9) -> 04.1 - Corporate Services Administration | E9: 04.1 - Corporate Services Administration
A10: Vote 09 - | B10: Vote 05 | C10: Waste Management
A11: Vote 10 - | B11: 05.1 | C11: Technical Services Administration | D11: =CONCATENATE(B11, " - ", C11) -> 05.1 - Technical Services Administration | E11: 05.1 - Technical Services Administration
A12: Vote 11 - | B12: 05.2 | C12: Electrical Services | D12: =CONCATENATE(B12, " - ", C12) -> 05.2 - Electrical Services | E12: 05.2 - Electrical Services
A13: Vote 12 - | B13: 05.3 | C13: Water Services | D13: =CONCATENATE(B13, " - ", C13) -> 05.3 - Water Services | E13: 05.3 - Water Services
A14: Vote 13 - | B14: 05.4 | C14: Sanitation Services | D14: =CONCATENATE(B14, " - ", C14) -> 05.4 - Sanitation Services | E14: 05.4 - Sanitation Services
A15: Vote 14 - | B15: 05.5 | C15: Roads Services | D15: =CONCATENATE(B15, " - ", C15) -> 05.5 - Roads Services | E15: 05.5 - Roads Services
A16: Vote 15 - Other | B16: Vote 06 | C16: Roads Services
B17: 06.1 | C17: Community Services Administration | D17: =CONCATENATE(B17, " - ", C17) -> 06.1 - Community Services Administration | E17: 06.1 - Community Services Administration
B18: 06.2 | C18: Traffic Services | D18: =CONCATENATE(B18, " - ", C18) -> 06.2 - Traffic Services | E18: 06.2 - Traffic Services
B19: 06.3 | C19: Refuse | D19: =CONCATENATE(B19, " - ", C19) -> 06.3 - Refuse | E19: 06.3 - Refuse
B20: 06.4 | C20: Pound Services | D20: =CONCATENATE(B20, " - ", C20) -> 06.4 - Pound Services | E20: 06.4 - Pound Services
B21: Vote 07 | C21: Econominc Development And Planning
B22: 07.1 | C22: Project Management Unit | D22: =CONCATENATE(B22, " - ", C22) -> 07.1 - Project Management Unit | E22: 07.1 - Project Management Unit
B23: 07.2 | C23: Economic Development And Planning | D23: =CONCATENATE(B23, " - ", C23) -> 07.2 - Economic Development And Planning | E23: 07.2 - Economic Development And Planning
B24: Vote 08
B25: Vote 09
B26: Vote 10
B27: Vote 11
B28: Vote 12
B29: Vote 13
B30: Vote 14
B31: Vote 15 | C31: Other

Sheet Contacts
A1: =muni&" - "&" Contact Information" -> LIM351 Blouberg - Contact Information
A3: A. GENERAL INFORMATION
A4: Municipality | B4: =muni -> LIM351 Blouberg | C4: Set name on 'Instructions' sheet
A6: Grade | B6: 3 | C6: 1 Grade in terms of the Remuneration of Public Office Bearers Act.
A8: Province | B8: =IF(B4>" ",VLOOKUP(B4,'Lookup and lists'!B28:C311,2, FALSE)," ") -> LIM LIMPOPO
A10: Web Address | B10: www.blouberg.gov.za
A12: e-mail Address | B12: blou@blouberg.gov.za
A14: B. CONTACT INFORMATION
A15: Postal address:
A16: P.O. Box | B16: Box 1593
A17: City / Town | B17: Senwabarwana
A18: Postal Code | B18: 0790
A20: Street address
A21: Building | B21: 2nd Building
A22: Street No. & Name | B22: Senwabarwana/Dendron Road
A23: City / Town | B23: Senwabarwana
A24: Postal Code | B24: 0790
A26: General Contacts
A27: Telephone number | B27: 015 505 7100
A28: Fax number | B28: 015 505 0296
A30: C. POLITICAL LEADERSHIP
A31: Speaker: | C31: Secretary/PA to the Speaker:
A32: ID Number | C32: ID Number
A33: Title | B33: Mrs | C33: Title | D33: Mrs
A34: Name | B34: THAMAGA MN | C34: Name | D34: MALATJI PJ
A35: Telephone number | B35: 015 505 7117 | C35: Telephone number | D35: 015 505 7189
A36: Cell number | B36: 071 234 4190 | C36: Cell number | D36: 076 654 3873
A37: Fax number | B37: 015 505 0296 | C37: Fax number | D37: 105 505 0296
A38: E-mail address | B38: mariankholane@gmail.com | C38: E-mail address | D38: Malatjip@blouberg.gov.za
A40: Mayor/Executive Mayor: | C40: Secretary/PA to the Mayor/Executive Mayor:
A41: ID Number | C41: ID Number
A42: Title | B42: Mr | C42: Title | D42: Ms
A43: Name | B43: PHEEDI S | C43: Name | D43: MATLAPU M
A44: Telephone number | B44: 015 505 7191 | C44: Telephone number | D44: 015 505 7191
A45: Cell number | B45: 082 515 7596 | C45: Cell number | D45: 082 515 7596
A46: Fax number | B46: 015 505 0296 | C46: Fax number | D46: 015 505 0296
A47: E-mail address | B47: Masekapheedi3@gmail.com | C47: E-mail address | D47: matlapum@blouberg.gov.za
A49: Deputy Mayor/Executive Mayor: | C49: Secretary/PA to the Deputy Mayor/Executive Mayor:
A50: ID Number | C50: ID Number
A51: Title | C51: Title
A52: Name | C52: Name
A53: Telephone number | C53: Telephone number
A54: Cell number | C54: Cell number
A55: Fax number | C55: Fax number
A56: E-mail address | C56: E-mail address
A58: D. MANAGEMENT LEADERSHIP
A59: Municipal Manager: | C59: Secretary/PA to the Municipal Manager:
A60: ID Number | C60: ID Number | D60: 8402021376082
A61: Title | B61: Mr | C61: Title | D61: Mrs
A62: Name | B62: RAMOTHOALA R | C62: Name | D62: RAMOLOMO MS
A63: Telephone number | B63: 015 505 7163 | C63: Telephone number | D63: 015 505 7100/21
A64: Cell number | B64: 0825234435 | C64: Cell number | D64: 0786875828
A65: Fax number | B65: 015 505 0296 | C65: Fax number | D65: 015 505 0296
A66: E-mail address | B66: Ramothoalar@blouberg.gov.za | C66: E-mail address | D66: RamolomoM@blouberg.gov.za
A68: Chief Financial Officer | C68: Secretary/PA to the Chief Financial Officer
A69: ID Number | C69: ID Number
A70: Title | B70: Mr | C70: Title
A71: Name | B71: Mabote N.J | C71: Name
A72: Telephone number | B72: 015 505 7147 | C72: Telephone number
A73: Cell number | B73: 082 818 0008 | C73: Cell number
A74: Fax number | B74: 015 505 0296 | C74: Fax number
A75: E-mail address | B75: Mabotej@blouberg.gov.za | C75: E-mail address
A77: Official responsible for submitting financial information | C77: Official responsible for submitting financial information
A78: ID Number | B78: 8107260490086 | C78: ID Number
A79: Title | B79: Ms | C79: Title
A80: Name | B80: Riba M | C80: Name
A81: Telephone number | B81: 015 505 7156 | C81: Telephone number
A82: Cell number | B82: 083 561 9472 | C82: Cell number
A83: Fax number | B83: 015 505 0296 | C83: Fax number
A84: E-mail address | B84: Ribam@blouberg.gov.za | C84: E-mail address
A85: Official responsible for submitting financial information | C85: Official responsible for submitting financial information
A86: ID Number | C86: ID Number
A87: Title | C87: Title
A88: Name | C88: Name
A89: Telephone number | C89: Telephone number
A90: Cell number | C90: Cell number
A91: Fax number | C91: Fax number
A92: E-mail address | C92: E-mail address
A93: Official responsible for submitting financial information | C93: Official responsible for submitting financial information
A94: ID Number | C94: ID Number
A95: Title | C95: Title
A96: Name | C96: Name
A97: Telephone number | C97: Telephone number
A98: Cell number | C98: Cell number
A99: Fax number | C99: Fax number
A100: E-mail address | C100: E-mail address
A101: Official responsible for submitting financial information | C101: Official responsible for submitting financial information
A102: ID Number | C102: ID Number
A103: Title | C103: Title
A104: Name | C104: Name
A105: Telephone number | C105: Telephone number
A106: Cell number | C106: Cell number
A107: Fax number | C107: Fax number
A108: E-mail address | C108: E-mail address
A109: Official responsible for submitting financial information | C109: Official responsible for submitting financial information
A110: ID Number | C110: ID Number
A111: Title | C111: Title
A112: Name | C112: Name
A113: Telephone number | C113: Telephone number
A114: Cell number | C114: Cell number
A115: Fax number | C115: Fax number
A116: E-mail address | C116: E-mail address
A117: Official responsible for submitting financial information | C117: Official responsible for submitting financial information
A118: ID Number | C118: ID Number
A119: Title | C119: Title
A120: Name | C120: Name
A121: Telephone number | C121: Telephone number
A122: Cell number | C122: Cell number
A123: Fax number | C123: Fax number
A124: E-mail address | C124: E-mail address
A125: Official responsible for submitting financial information | C125: Official responsible for submitting financial information
A126: ID Number | C126: ID Number
A127: Title | C127: Title
A128: Name | C128: Name
A129: Telephone number | C129: Telephone number
A130: Cell number | C130: Cell number
A131: Fax number | C131: Fax number
A132: E-mail address | C132: E-mail address
A133: Official responsible for submitting financial information
A134: ID Number
A135: Title
A136: Name
A137: Telephone number
A138: Cell number
A139: Fax number
A140: E-mail address

Sheet C1-Sum
A1: =muni& " - "&s71sum& " - "&date -> LIM351 Blouberg - Table C1 Monthly Budget Statement Summary - M01 July
A2: =desc -> Description | B2: =Head1 -> 2023/24 | C2: =Head2 -> Budget Year 2024/25
B3: =Head5 -> Audited Outcome | C3: =Head6 -> Original Budget | D3: =Head7 -> Adjusted Budget | E3: =Head38 -> Monthly actual | F3: =Head39 -> YearTD actual | G3: =Head40 -> YearTD budget | H3: =Head41 -> YTD variance | I3: =Head41 -> YTD variance | J3: =Head8 -> Full Year Forecast
A4: R thousands | I4: %
A5: Financial Performance
A6: Property rates | B6: =SUM('C4-FinPerf RE'!C22) -> 68960730.64 | C6: =SUM('C4-FinPerf RE'!D22) -> 34586407 | D6: =SUM('C4-FinPerf RE'!E22) -> 34586407 | E6: =SUM('C4-FinPerf RE'!F22) -> 62184653.55 | F6: =SUM('C4-FinPerf RE'!G22) -> 62184653.55 | G6: =SUM('C4-FinPerf RE'!H22) -> 2882195 | H6: =F6-G6 -> 59302458.55 | I6: =IF(H6=0,"",H6/G6) -> 20.5754498 | J6: =SUM('C4-FinPerf RE'!K22) -> 34586407
A7: Service charges | B7: =SUM('C4-FinPerf RE'!C7:C10) -> 37518572.48 | C7: =SUM('C4-FinPerf RE'!D7:D10) -> 57958333 | D7: =SUM('C4-FinPerf RE'!E7:E10) -> 57958333 | E7: =SUM('C4-FinPerf RE'!F7:F10) -> 3222106.98 | F7: =SUM('C4-FinPerf RE'!G7:G10) -> 3222106.98 | G7: =SUM('C4-FinPerf RE'!H7:H10) -> 4829857 | H7: =F7-G7 -> -1607750.02 | I7: =IF(H7=0,"",H7/G7) -> -0.3328773543 | J7: =SUM('C4-FinPerf RE'!K7:K10) -> 57958333
A8: Investment revenue | B8: ='C4-FinPerf RE'!C15 -> 7720659.9 | C8: ='C4-FinPerf RE'!D15 -> 8063596 | D8: ='C4-FinPerf RE'!E15 -> 8063596 | E8: ='C4-FinPerf RE'!F15 -> 375150.26 | F8: ='C4-FinPerf RE'!G15 -> 375150.26 | G8: ='C4-FinPerf RE'!H15 -> 671966 | H8: =F8-G8 -> -296815.74 | I8: =IF(H8=0,"",H8/G8) -> -0.4417124378 | J8: ='C4-FinPerf RE'!K15 -> 8063596
A9: Transfers and subsidies - Operational | B9: ='C4-FinPerf RE'!C26 -> 241376084 | C9: ='C4-FinPerf RE'!D26 -> 250671000 | D9: ='C4-FinPerf RE'!E26 -> 250671000 | E9: ='C4-FinPerf RE'!F26 -> 0 | F9: ='C4-FinPerf RE'!G26 -> 0 | G9: ='C4-FinPerf RE'!H26 -> 20889249 | H9: -20889249 | I9: =IF(H9=0,"",H9/G9) -> -1 | J9: ='C4-FinPerf RE'!K26 -> 250671000
A10: Other own revenue | B10: =+B11-SUM(B6:B9) -> 18026860.49 | C10: =+C11-SUM(C6:C9) -> 14826903 | D10: 14826903 | E10: 510964.58 | F10: 510964.58 | G10: 1235569 | H10: =F10-G10 -> -724604.42 | I10: =IF(H10=0,"",H10/G10) -> -0.5864540305 | J10: 0
A11: Total Revenue (excluding capital transfers and contributions) | B11: =+'C4-FinPerf RE'!C33 -> 373602907.5 | C11: =+'C4-FinPerf RE'!D33 -> 366106239 | D11: =+'C4-FinPerf RE'!E33 -> 366106239 | E11: =+'C4-FinPerf RE'!F33 -> 66292875.37 | F11: =+'C4-FinPerf RE'!G33 -> 66292875.37 | G11: =+'C4-FinPerf RE'!H33 -> 30508836 | H11: =F11-G11 -> 35784039.37 | I11: =IF(H11=0,"",H11/G11) -> 1.172907395 | J11: =+'C4-FinPerf RE'!K33 -> 366106239
A12: Employee costs | B12: ='C4-FinPerf RE'!C35 -> 132264727.5 | C12: ='C4-FinPerf RE'!D35 -> 140755081 | D12: ='C4-FinPerf RE'!E35 -> 140755081 | E12: ='C4-FinPerf RE'!F35 -> 11061325.67 | F12: ='C4-FinPerf RE'!G35 -> 11061325.67 | G12: ='C4-FinPerf RE'!H35 -> 11729660 | H12: -668334.33 | I12: -0.05697815026 | J12: ='C4-FinPerf RE'!K35 -> 140755081
A13: Remuneration of Councillors | B13: ='C4-FinPerf RE'!C36 -> 19212717.03 | C13: ='C4-FinPerf RE'!D36 -> 21997665 | D13: ='C4-FinPerf RE'!E36 -> 21997665 | E13: ='C4-FinPerf RE'!F36 -> 1508631.5 | F13: ='C4-FinPerf RE'!G36 -> 1508631.5 | G13: ='C4-FinPerf RE'!H36 -> 1833152 | H13: -324520.5 | I13: -0.1770286916 | J13: ='C4-FinPerf RE'!K36 -> 21997665
A14: Depreciation and amortisation | B14: ='C4-FinPerf RE'!C40 -> 33819527.29 | C14: ='C4-FinPerf RE'!D40 -> 33513635 | D14: ='C4-FinPerf RE'!E40 -> 33513635 | E14: ='C4-FinPerf RE'!F40 -> 0 | F14: ='C4-FinPerf RE'!G40 -> 0 | G14: ='C4-FinPerf RE'!H40 -> 2792817 | H14: -2792817 | I14: -1 | J14: ='C4-FinPerf RE'!K40 -> 33513635
A15: Interest | B15: ='C4-FinPerf RE'!C41 -> 4441877.01 | C15: ='C4-FinPerf RE'!D41 -> 0 | D15: ='C4-FinPerf RE'!E41 -> 0 | E15: ='C4-FinPerf RE'!F41 -> 0 | F15: ='C4-FinPerf RE'!G41 -> 0 | G15: ='C4-FinPerf RE'!H41 -> 0 | H15: 0 | J15: ='C4-FinPerf RE'!K41 -> 0
A16: Inventory consumed and bulk purchases | B16: =SUM('C4-FinPerf RE'!C37+'C4-FinPerf RE'!C38) -> 63727004.61 | C16: =SUM('C4-FinPerf RE'!D37+'C4-FinPerf RE'!D38) -> 66777183 | D16: =SUM('C4-FinPerf RE'!E37+'C4-FinPerf RE'!E38) -> 66777183 | E16: =SUM('C4-FinPerf RE'!F37+'C4-FinPerf RE'!F38) -> 2862505.96 | F16: =SUM('C4-FinPerf RE'!G37+'C4-FinPerf RE'!G38) -> 2862505.96 | G16: =SUM('C4-FinPerf RE'!H37+'C4-FinPerf RE'!H38) -> 5564768 | H16: -2702262.04 | I16: -0.4856019227 | J16: =SUM('C4-FinPerf RE'!K37+'C4-FinPerf RE'!K38) -> 66777183
A17: Transfers and subsidies | B17: ='C4-FinPerf RE'!C43 -> 0 | C17: ='C4-FinPerf RE'!D43 -> 0 | D17: ='C4-FinPerf RE'!E43 -> 0 | E17: ='C4-FinPerf RE'!F43 -> 0 | F17: ='C4-FinPerf RE'!G43 -> 0 | G17: ='C4-FinPerf RE'!H43 -> 0 | H17: 0 | J17: ='C4-FinPerf RE'!K43 -> 0
A18: Other expenditure | B18: ='C4-FinPerf RE'!C48-SUM('C1-Sum'!B12:B17) -> 96212162.31 | C18: ='C4-FinPerf RE'!D48-SUM('C1-Sum'!C12:C17) -> 169859001 | D18: ='C4-FinPerf RE'!E48-SUM('C1-Sum'!D12:D17) -> 169859001 | E18: ='C4-FinPerf RE'!F48-SUM('C1-Sum'!E12:E17) -> 11237916.66 | F18: ='C4-FinPerf RE'!G48-SUM('C1-Sum'!F12:F17) -> 11237916.66 | G18: ='C4-FinPerf RE'!H48-SUM('C1-Sum'!G12:G17) -> 14154989 | H18: -2917072.34 | I18: -0.2060808624 | J18: ='C4-FinPerf RE'!K48-SUM('C1-Sum'!J12:J17) -> 169859001
A19: Total Expenditure | B19: =SUM(B12:B18) -> 349678015.7 | C19: 432902565 | D19: 432902565 | E19: 26670379.79 | F19: 26670379.79 | G19: 36075386 | H19: -9405006.21 | I19: -0.2607042433 | J19: =SUM(J12:J18) -> 432902565
A20: Surplus/(Deficit) | B20: =B11-B19 -> 23924891.79 | C20: -66796326 | D20: -66796326 | E20: 39622495.58 | F20: 39622495.58 | G20: -5566550 | H20: 45189045.58 | I20: -8.117962756 | J20: =J11-J19 -> -66796326
A21: Transfers and subsidies - capital (monetary allocations) | B21: ='C4-FinPerf RE'!C50 -> 95456552.07 | C21: ='C4-FinPerf RE'!D50 -> 67485000 | D21: ='C4-FinPerf RE'!E50 -> 67485000 | E21: ='C4-FinPerf RE'!F50 -> 0 | F21: ='C4-FinPerf RE'!G50 -> 0 | G21: ='C4-FinPerf RE'!H50 -> 5623749 | H21: -5623749 | I21: -1 | J21: ='C4-FinPerf RE'!K50 -> 67485000
A22: Transfers and subsidies - capital (in-kind) | B22: ='C4-FinPerf RE'!C51 -> 0 | C22: ='C4-FinPerf RE'!D51 -> 0 | D22: ='C4-FinPerf RE'!E51 -> 0 | E22: ='C4-FinPerf RE'!F51 -> 0 | F22: ='C4-FinPerf RE'!G51 -> 0 | G22: ='C4-FinPerf RE'!H51 -> 0 | H22: 0 | J22: ='C4-FinPerf RE'!K51 -> 0
A23: Surplus/(Deficit) after capital transfers & contributions | B23: =B20+B21+B22 -> 119381443.9 | C23: 688674 | D23: 688674 | E23: 39622495.58 | F23: 39622495.58 | G23: 57199 | H23: 39565296.58 | I23: 691.713082 | J23: =J20+J21+J22 -> 688674
A24: Share of surplus/ (deficit) of associate | B24: ='C4-FinPerf RE'!C59 -> 0 | C24: ='C4-FinPerf RE'!D59 -> 0 | D24: ='C4-FinPerf RE'!E59 -> 0 | E24: ='C4-FinPerf RE'!F59 -> 0 | F24: ='C4-FinPerf RE'!G59 -> 0 | G24: ='C4-FinPerf RE'!H59 -> 0 | H24: 0 | J24: ='C4-FinPerf RE'!K59 -> 0
A25: Surplus/ (Deficit) for the year | B25: =B23+B24 -> 119381443.9 | C25: 688674 | D25: 688674 | E25: 39622495.58 | F25: 39622495.58 | G25: 57199 | H25: 39565296.58 | I25: 691.713082 | J25: =J23+J24 -> 688674
A27: Capital expenditure & funds sources
A28: Capital expenditure | B28: ='C5-Capex'!C40 -> 84578647.42 | C28: ='C5-Capex'!D40 -> 74908531 | D28: ='C5-Capex'!E40 -> 74908531 | E28: ='C5-Capex'!F40 -> 6394127.53 | F28: ='C5-Capex'!G40 -> 6394127.53 | G28: ='C5-Capex'!H40 -> 6242385 | H28: =F28-G28 -> 151742.53 | I28: =IF(H28=0,"",H28/G28) -> 0.02430842218 | J28: ='C5-Capex'!K40 -> 74908531
A29: Capital transfers recognised | B29: ='C5-Capex'!C70 -> 83484427.59 | C29: ='C5-Capex'!D70 -> 65785000 | D29: ='C5-Capex'!E70 -> 65785000 | E29: ='C5-Capex'!F70 -> 6394127.53 | F29: ='C5-Capex'!G70 -> 6394127.53 | G29: ='C5-Capex'!H70 -> 5482086 | H29: 912041.53 | I29: 0.1663676071 | J29: ='C5-Capex'!K70 -> 65785000
A31: Borrowing | B31: ='C5-Capex'!C72 -> 0 | C31: ='C5-Capex'!D72 -> 0 | D31: ='C5-Capex'!E72 -> 0 | E31: ='C5-Capex'!F72 -> 0 | F31: ='C5-Capex'!G72 -> 0 | G31: ='C5-Capex'!H72 -> 0 | H31: 0 | J31: ='C5-Capex'!K72 -> 0
A32: Internally generated funds | B32: ='C5-Capex'!C73 -> 1094219.83 | C32: ='C5-Capex'!D73 -> 9123531 | D32: ='C5-Capex'!E73 -> 9123531 | E32: ='C5-Capex'!F73 -> 0 | F32: ='C5-Capex'!G73 -> 0 | G32: ='C5-Capex'!H73 -> 760299 | H32: -760299 | I32: -1 | J32: ='C5-Capex'!K73 -> 9123531
A33: Total sources of capital funds | B33: =+B29+B31+B32 -> 84578647.42 | C33: 74908531 | D33: 74908531 | E33: 6394127.53 | F33: 6394127.53 | G33: 6242385 | H33: 151742.53 | I33: 0.02430842218 | J33: =+J29+J31+J32 -> 74908531
A35: Financial position
A36: Total current assets | B36: ='C6-FinPos'!C14 -> 283401083 | C36: ='C6-FinPos'!D14 -> 323086487 | D36: ='C6-FinPos'!E14 -> 323086487 | F36: ='C6-FinPos'!F14 -> 298187786.4 | J36: ='C6-FinPos'!G14 -> 323086487
A37: Total non current assets | B37: ='C6-FinPos'!C26 -> 1133303904 | C37: ='C6-FinPos'!D26 -> 1138425676 | D37: ='C6-FinPos'!E26 -> 1138425676 | F37: ='C6-FinPos'!F26 -> 1139698031 | J37: ='C6-FinPos'!G26 -> 1138425676
A38: Total current liabilities | B38: ='C6-FinPos'!C38 -> 198344605.6 | C38: ='C6-FinPos'!D38 -> 75307156 | D38: ='C6-FinPos'!E38 -> 75307156 | F38: ='C6-FinPos'!F38 -> 179902940.9 | J38: ='C6-FinPos'!G38 -> 75307156
A39: Total non current liabilities | B39: ='C6-FinPos'!C44 -> 19629114.12 | C39: ='C6-FinPos'!D44 -> 27203817 | D39: ='C6-FinPos'!E44 -> 27203817 | F39: ='C6-FinPos'!F44 -> 19629114.12 | J39: ='C6-FinPos'!G44 -> 27203817
A40: Community wealth/Equity | B40: ='C6-FinPos'!C51 -> 1175936447 | C40: ='C6-FinPos'!D51 -> 1358312516 | D40: ='C6-FinPos'!E51 -> 1358312516 | F40: ='C6-FinPos'!F51 -> 1198731267 | J40: ='C6-FinPos'!G51 -> 1358312516
A42: Cash flows
A43: Net cash from (used) operating | B43: ='C7-CFlow'!C18 -> 119403011.7 | C43: ='C7-CFlow'!D18 -> 79658878 | D43: ='C7-CFlow'!E18 -> 79658878 | E43: ='C7-CFlow'!F18 -> -48916113.1 | F43: ='C7-CFlow'!G18 -> -48916113.1 | G43: ='C7-CFlow'!H18 -> 6638239.82 | H43: =G43-F43 -> 55554352.92 | I43: =IF(H43=0,"",H43/G43) -> 8.368837889 | J43: ='C7-CFlow'!K18 -> 79658878
A44: Net cash from (used) investing | B44: ='C7-CFlow'!C28 -> -94418515.16 | C44: ='C7-CFlow'!D28 -> -85617134 | D44: ='C7-CFlow'!E28 -> -85617134 | E44: ='C7-CFlow'!F28 -> -2910160.31 | F44: ='C7-CFlow'!G28 -> -14309895.88 | G44: ='C7-CFlow'!H28 -> -7134762.58 | H44: =G44-F44 -> 7175133.3 | I44: =IF(H44=0,"",H44/G44) -> -1.005658313 | J44: ='C7-CFlow'!K28 -> -85617134
A45: Net cash from (used) financing | B45: ='C7-CFlow'!C37 -> 6537705.17 | C45: ='C7-CFlow'!D37 -> 0 | D45: ='C7-CFlow'!E37 -> 0 | E45: ='C7-CFlow'!F37 -> 0 | F45: ='C7-CFlow'!G37 -> 0 | G45: ='C7-CFlow'!H37 -> 0 | H45: =G45-F45 -> 0 | I45: =IF(H45=0,"",H45/G45) ->  | J45: ='C7-CFlow'!K37 -> 0
A46: Cash/cash equivalents at the month/year end | B46: ='C7-CFlow'!C41 -> 133364874.8 | C46: ='C7-CFlow'!D41 -> 191532835 | D46: ='C7-CFlow'!E41 -> 191532835 | E46: ='C7-CFlow'!F41 -> 134198321.2 | F46: ='C7-CFlow'!G41 -> 122798585.6 | G46: ='C7-CFlow'!H41 -> 196994568.2 | H46: =G46-F46 -> 74195982.63 | I46: =IF(H46=0,"",H46/G46) -> 0.3766397383 | J46: ='C7-CFlow'!K41 -> 180066338.6
A48: Debtors & creditors analysis | B48: ='SC3'!C3 -> 0-30 Days | C48: ='SC3'!D3 -> 31-60 Days | D48: ='SC3'!E3 -> 61-90 Days | E48: ='SC3'!F3 -> 91-120 Days | F48: ='SC3'!G3 -> 121-150 Dys | G48: ='SC3'!H3 -> 151-180 Dys | H48: ='SC3'!I3 -> 181 Dys-1 Yr | I48: ='SC3'!J3 -> Over 1Yr | J48: Total
A49: =LEFT('SC3'!A4,20) -> Debtors Age Analysis
A50: ='SC3'!A14 -> Total By Income Source | B50: ='SC3'!C14 -> 0 | C50: ='SC3'!D14 -> 0 | D50: ='SC3'!E14 -> 0 | E50: ='SC3'!F14 -> 0 | F50: ='SC3'!G14 -> 0 | G50: ='SC3'!H14 -> 0 | H50: ='SC3'!I14 -> 0 | I50: ='SC3'!J14 -> 0 | J50: ='SC3'!K14 -> 0
A51: =LEFT('SC4'!A5,22) -> Creditors Age Analysis
A52: Total Creditors | B52: ='SC4'!C16 -> 0 | C52: ='SC4'!D16 -> 0 | D52: ='SC4'!E16 -> 0 | E52: ='SC4'!F16 -> 0 | F52: ='SC4'!G16 -> 0 | G52: ='SC4'!H16 -> 0 | H52: ='SC4'!I16 -> 0 | I52: ='SC4'!J16 -> 0 | J52: ='SC4'!K16 -> 0

Sheet C2-FinPerf SC
A1: =muni& " - "&S71A& " - "&date -> LIM351 Blouberg - Table C2 Monthly Budget Statement - Financial Performance (functional classification) - M01 July
A2: =desc -> Description | B2: =head27 -> Ref | C2: =Head1 -> 2023/24 | D2: =Head2 -> Budget Year 2024/25
C3: =Head5 -> Audited Outcome | D3: =Head6 -> Original Budget | E3: =Head7 -> Adjusted Budget | F3: =Head38 -> Monthly actual | G3: =Head39 -> YearTD actual | H3: =Head40 -> YearTD budget | I3: =Head41 -> YTD variance | J3: =Head41 -> YTD variance | K3: =Head8 -> Full Year Forecast
A4: R thousands | B4: 1 | J4: %
A5: Revenue - Functional
A6: Governance and administration | C6: =SUM(C7:C9) -> 318491486.7 | D6: 293731126 | E6: 293731126 | F6: 62805888.57 | G6: 62805888.57 | H6: 24477586 | I6: =G6-H6 -> 38328302.57 | J6: =IF(I6=0,"",I6/H6) -> 1.565853045 | K6: =SUM(K7:K9) -> 293731126
A7: Executive and council | C7: ='C2C'!C7 -> 0 | D7: ='C2C'!D7 -> 0 | E7: ='C2C'!E7 -> 0 | F7: ='C2C'!F7 -> 0 | G7: ='C2C'!G7 -> 0 | H7: ='C2C'!H7 -> 0 | I7: 0 | J7: =IF(I7=0,"",I7/H7) ->  | K7: ='C2C'!K7 -> 0
A8: Finance and administration | C8: ='C2C'!C10 -> 318491486.7 | D8: ='C2C'!D10 -> 293731126 | E8: ='C2C'!E10 -> 293731126 | F8: ='C2C'!F10 -> 62805888.57 | G8: ='C2C'!G10 -> 62805888.57 | H8: ='C2C'!H10 -> 24477586 | I8: 38328302.57 | J8: 1.565853045 | K8: ='C2C'!K10 -> 293731126
A9: Internal audit | C9: ='C2C'!C24 -> 0 | D9: ='C2C'!D24 -> 0 | E9: ='C2C'!E24 -> 0 | F9: ='C2C'!F24 -> 0 | G9: ='C2C'!G24 -> 0 | H9: ='C2C'!H24 -> 0 | I9: 0 | K9: ='C2C'!K24 -> 0
A10: Community and public safety | C10: =SUM(C11:C15) -> 2774533.16 | D10: 6818500 | E10: 6818500 | F10: 80382.62 | G10: 80382.62 | H10: 568207 | I10: -487824.38 | J10: -0.8585328586 | K10: =SUM(K11:K15) -> 6818500
A11: Community and social services | C11: ='C2C'!C27 -> 0 | D11: ='C2C'!D27 -> 0 | E11: ='C2C'!E27 -> 0 | F11: ='C2C'!F27 -> 0 | G11: ='C2C'!G27 -> 0 | H11: ='C2C'!H27 -> 0 | I11: 0 | K11: ='C2C'!K27 -> 0
A12: Sport and recreation | C12: ='C2C'!C49 -> 0 | D12: ='C2C'!D49 -> 0 | E12: ='C2C'!E49 -> 0 | F12: ='C2C'!F49 -> 0 | G12: ='C2C'!G49 -> 0 | H12: ='C2C'!H49 -> 0 | I12: 0 | K12: ='C2C'!K49 -> 0
A13: Public safety | C13: ='C2C'!C55 -> 2774533.16 | D13: ='C2C'!D55 -> 6818500 | E13: ='C2C'!E55 -> 6818500 | F13: ='C2C'!F55 -> 80382.62 | G13: ='C2C'!G55 -> 80382.62 | H13: ='C2C'!H55 -> 568207 | I13: -487824.38 | J13: -0.8585328586 | K13: ='C2C'!K55 -> 6818500
A14: Housing | C14: ='C2C'!C64 -> 0 | D14: ='C2C'!D64 -> 0 | E14: ='C2C'!E64 -> 0 | F14: ='C2C'!F64 -> 0 | G14: ='C2C'!G64 -> 0 | H14: ='C2C'!H64 -> 0 | I14: 0 | K14: ='C2C'!K64 -> 0
A15: Health | C15: ='C2C'!C67 -> 0 | D15: ='C2C'!D67 -> 0 | E15: ='C2C'!E67 -> 0 | F15: ='C2C'!F67 -> 0 | G15: ='C2C'!G67 -> 0 | H15: ='C2C'!H67 -> 0 | I15: 0 | K15: ='C2C'!K67 -> 0
A16: Economic and environmental services | C16: =SUM(C17:C19) -> 85391509.65 | D16: 70003555 | E16: 70003555 | F16: 15526.6 | G16: 15526.6 | H16: 5833626 | I16: -5818099.4 | J16: -0.9973384307 | K16: =SUM(K17:K19) -> 70003555
A17: Planning and development | C17: ='C2C'!C76 -> 76997179.88 | D17: ='C2C'!D76 -> 54287555 | E17: ='C2C'!E76 -> 54287555 | F17: ='C2C'!F76 -> 15526.6 | G17: ='C2C'!G76 -> 15526.6 | H17: ='C2C'!H76 -> 4523960 | I17: -4508433.4 | J17: -0.9965679184 | K17: ='C2C'!K76 -> 54287555
A18: Road transport | C18: ='C2C'!C87 -> 8394329.77 | D18: ='C2C'!D87 -> 15716000 | E18: ='C2C'!E87 -> 15716000 | F18: ='C2C'!F87 -> 0 | G18: ='C2C'!G87 -> 0 | H18: ='C2C'!H87 -> 1309666 | I18: -1309666 | J18: -1 | K18: ='C2C'!K87 -> 15716000
A19: Environmental protection | C19: ='C2C'!C92 -> 0 | D19: ='C2C'!D92 -> 0 | E19: ='C2C'!E92 -> 0 | F19: ='C2C'!F92 -> 0 | G19: ='C2C'!G92 -> 0 | H19: ='C2C'!H92 -> 0 | I19: 0 | K19: ='C2C'!K92 -> 0
A20: Trading services | C20: =SUM(C21:C24) -> 62401930.1 | D20: =SUM(D21:D24) -> 63038058 | E20: 63038058 | F20: 3391077.58 | G20: 3391077.58 | H20: 5253166 | I20: -1862088.42 | J20: -0.3544697464 | K20: =SUM(K21:K24) -> 63038058
A21: Energy sources | C21: ='C2C'!C100 -> 58894783.24 | D21: ='C2C'!D100 -> 56286558 | E21: ='C2C'!E100 -> 56286558 | F21: ='C2C'!F100 -> 2851999.98 | G21: ='C2C'!G100 -> 2851999.98 | H21: ='C2C'!H100 -> 4690542 | I21: =G21-H21 -> -1838542.02 | J21: -0.3919679261 | K21: ='C2C'!K100 -> 56286558
A22: Water management | C22: ='C2C'!C104 -> 0 | D22: ='C2C'!D104 -> 0 | E22: ='C2C'!E104 -> 0 | F22: ='C2C'!F104 -> 321613.98 | G22: ='C2C'!G104 -> 321613.98 | H22: ='C2C'!H104 -> 0 | I22: =G22-H22 -> 321613.98 | K22: ='C2C'!K104 -> 0
A23: Waste water management | C23: ='C2C'!C108 -> 0 | D23: ='C2C'!D108 -> 0 | E23: ='C2C'!E108 -> 0 | F23: ='C2C'!F108 -> 22732.1 | G23: ='C2C'!G108 -> 22732.1 | H23: ='C2C'!H108 -> 0 | I23: =G23-H23 -> 22732.1 | K23: ='C2C'!K108 -> 0
A24: Waste management | C24: ='C2C'!C113 -> 3507146.86 | D24: ='C2C'!D113 -> 6751500 | E24: ='C2C'!E113 -> 6751500 | F24: ='C2C'!F113 -> 194731.52 | G24: ='C2C'!G113 -> 194731.52 | H24: ='C2C'!H113 -> 562624 | I24: =G24-H24 -> -367892.48 | J24: -0.6538869298 | K24: ='C2C'!K113 -> 6751500
A25: Other | B25: 4 | C25: ='C2C'!C118 -> 0 | D25: ='C2C'!D118 -> 0 | E25: ='C2C'!E118 -> 0 | F25: ='C2C'!F118 -> 0 | G25: ='C2C'!G118 -> 0 | H25: ='C2C'!H118 -> 0 | I25: =G25-H25 -> 0 | K25: ='C2C'!K118 -> 0
A26: Total Revenue - Functional | B26: 2 | C26: =C6+C10+C16+C20+C25 -> 469059459.6 | D26: =D6+D10+D16+D20+D25 -> 433591239 | E26: 433591239 | F26: 66292875.37 | G26: 66292875.37 | H26: 36132585 | I26: 30160290.37 | J26: 0.8347116701 | K26: =K6+K10+K16+K20+K25 -> 433591239
A28: Expenditure - Functional
A29: Governance and administration | C29: =SUM(C30:C32) -> 162183596.3 | D29: 226413674 | E29: 226413674 | F29: 17322501.8 | G29: 17322501.8 | H29: 18867898 | I29: =G29-H29 -> -1545396.2 | J29: =IF(I29=0,"",I29/H29) -> -0.08190611376 | K29: =SUM(K30:K32) -> 226413674
A30: Executive and council | C30: ='C2C'!C129 -> 72405817.01 | D30: ='C2C'!D129 -> 74063121 | E30: ='C2C'!E129 -> 74063121 | F30: ='C2C'!F129 -> 5418087.27 | G30: ='C2C'!G129 -> 5418087.27 | H30: ='C2C'!H129 -> 6171972 | I30: -753884.73 | J30: =IF(I30=0,"",I30/H30) -> -0.1221464922 | K30: ='C2C'!K129 -> 74063121
A31: Finance and administration | C31: ='C2C'!C132 -> 89777779.26 | D31: ='C2C'!D132 -> 152350553 | E31: ='C2C'!E132 -> 152350553 | F31: ='C2C'!F132 -> 11904414.53 | G31: ='C2C'!G132 -> 11904414.53 | H31: ='C2C'!H132 -> 12695926 | I31: -791511.47 | J31: -0.06234373688 | K31: ='C2C'!K132 -> 152350553
A32: Internal audit | C32: ='C2C'!C146 -> 0 | D32: ='C2C'!D146 -> 0 | E32: ='C2C'!E146 -> 0 | F32: ='C2C'!F146 -> 0 | G32: ='C2C'!G146 -> 0 | H32: ='C2C'!H146 -> 0 | I32: 0 | K32: ='C2C'!K146 -> 0
A33: Community and public safety | C33: =SUM(C34:C38) -> 19581825.13 | D33: 18551191 | E33: 18551191 | F33: 1663084.62 | G33: 1663084.62 | H33: 1545942 | I33: 117142.62 | J33: 0.07577426579 | K33: =SUM(K34:K38) -> 18551191
A34: Community and social services | C34: ='C2C'!C149 -> 0 | D34: ='C2C'!D149 -> 0 | E34: ='C2C'!E149 -> 0 | F34: ='C2C'!F149 -> 0 | G34: ='C2C'!G149 -> 0 | H34: ='C2C'!H149 -> 0 | I34: 0 | K34: ='C2C'!K149 -> 0
A35: Sport and recreation | C35: ='C2C'!C171 -> 0 | D35: ='C2C'!D171 -> 0 | E35: ='C2C'!E171 -> 0 | F35: ='C2C'!F171 -> 0 | G35: ='C2C'!G171 -> 0 | H35: ='C2C'!H171 -> 0 | I35: 0 | K35: ='C2C'!K171 -> 0
A36: Public safety | C36: ='C2C'!C177 -> 19581825.13 | D36: ='C2C'!D177 -> 18551191 | E36: ='C2C'!E177 -> 18551191 | F36: ='C2C'!F177 -> 1663084.62 | G36: ='C2C'!G177 -> 1663084.62 | H36: ='C2C'!H177 -> 1545942 | I36: 117142.62 | J36: 0.07577426579 | K36: ='C2C'!K177 -> 18551191
A37: Housing | C37: ='C2C'!C186 -> 0 | D37: ='C2C'!D186 -> 0 | E37: ='C2C'!E186 -> 0 | F37: ='C2C'!F186 -> 0 | G37: ='C2C'!G186 -> 0 | H37: ='C2C'!H186 -> 0 | I37: 0 | K37: ='C2C'!K186 -> 0
A38: Health | C38: ='C2C'!C189 -> 0 | D38: ='C2C'!D189 -> 0 | E38: ='C2C'!E189 -> 0 | F38: ='C2C'!F189 -> 0 | G38: ='C2C'!G189 -> 0 | H38: ='C2C'!H189 -> 0 | I38: 0 | K38: ='C2C'!K189 -> 0
A39: Economic and environmental services | C39: =SUM(C40:C42) -> 40924436.05 | D39: 36259765 | E39: 36259765 | F39: 1866810.26 | G39: 1866810.26 | H39: 3021671 | I39: -1154860.74 | J39: -0.382192747 | K39: =SUM(K40:K42) -> 36259765
A40: Planning and development | C40: ='C2C'!C198 -> 18357436.04 | D40: ='C2C'!D198 -> 16534740 | E40: ='C2C'!E198 -> 16534740 | F40: ='C2C'!F198 -> 1040964.81 | G40: ='C2C'!G198 -> 1040964.81 | H40: ='C2C'!H198 -> 1377910 | I40: -336945.19 | J40: -0.2445335254 | K40: ='C2C'!K198 -> 16534740
A41: Road transport | C41: ='C2C'!C209 -> 22567000.01 | D41: ='C2C'!D209 -> 19725025 | E41: ='C2C'!E209 -> 19725025 | F41: ='C2C'!F209 -> 825845.45 | G41: ='C2C'!G209 -> 825845.45 | H41: ='C2C'!H209 -> 1643761 | I41: -817915.55 | J41: -0.4975878793 | K41: ='C2C'!K209 -> 19725025
A42: Environmental protection | C42: ='C2C'!C214 -> 0 | D42: ='C2C'!D214 -> 0 | E42: ='C2C'!E214 -> 0 | F42: ='C2C'!F214 -> 0 | G42: ='C2C'!G214 -> 0 | H42: ='C2C'!H214 -> 0 | I42: 0 | K42: ='C2C'!K214 -> 0
A43: Trading services | C43: =SUM(C44:C47) -> 126988158.3 | D43: =SUM(D44:D47) -> 151677935 | E43: 151677935 | F43: 5817983.11 | G43: 5817983.11 | H43: 12639875 | I43: -6821891.89 | J43: -0.5397119742 | K43: =SUM(K44:K47) -> 151677935
A44: Energy sources | C44: ='C2C'!C222 -> 94625202.05 | D44: ='C2C'!D222 -> 112765648 | E44: ='C2C'!E222 -> 112765648 | F44: ='C2C'!F222 -> 4076728.48 | G44: ='C2C'!G222 -> 4076728.48 | H44: ='C2C'!H222 -> 9397159 | I44: -5320430.52 | J44: -0.566174364 | K44: ='C2C'!K222 -> 112765648
A45: Water management | C45: ='C2C'!C226 -> 0 | D45: ='C2C'!D226 -> 0 | E45: ='C2C'!E226 -> 0 | F45: ='C2C'!F226 -> 0 | G45: ='C2C'!G226 -> 0 | H45: ='C2C'!H226 -> 0 | I45: 0 | K45: ='C2C'!K226 -> 0
A46: Waste water management | C46: ='C2C'!C230 -> 73367.34 | D46: ='C2C'!D230 -> 0 | E46: ='C2C'!E230 -> 0 | F46: ='C2C'!F230 -> 0 | G46: ='C2C'!G230 -> 0 | H46: ='C2C'!H230 -> 0 | I46: 0 | K46: ='C2C'!K230 -> 0
A47: Waste management | C47: ='C2C'!C235 -> 32289588.9 | D47: ='C2C'!D235 -> 38912287 | E47: ='C2C'!E235 -> 38912287 | F47: ='C2C'!F235 -> 1741254.63 | G47: ='C2C'!G235 -> 1741254.63 | H47: ='C2C'!H235 -> 3242716 | I47: -1501461.37 | J47: -0.4630258617 | K47: ='C2C'!K235 -> 38912287
A48: Other | C48: ='C2C'!C240 -> 0 | D48: ='C2C'!D240 -> 0 | E48: ='C2C'!E240 -> 0 | F48: ='C2C'!F240 -> 0 | G48: ='C2C'!G240 -> 0 | H48: ='C2C'!H240 -> 0 | I48: 0 | K48: ='C2C'!K240 -> 0
A49: Total Expenditure - Functional | B49: 3 | C49: =C29+C33+C39+C43+C48 -> 349678015.7 | D49: =D29+D33+D39+D43+D48 -> 432902565 | E49: 432902565 | F49: 26670379.79 | G49: 26670379.79 | H49: 36075386 | I49: -9405006.21 | J49: -0.2607042433 | K49: =K29+K33+K39+K43+K48 -> 432902565
A50: Surplus/ (Deficit) for the year | C50: =C26-C49 -> 119381443.9 | D50: 688674 | E50: 688674 | F50: 39622495.58 | G50: 39622495.58 | H50: 57199 | I50: =I26-I49 -> 39565296.58 | J50: =IF(I50=0,"",I50/H50) -> 691.713082 | K50: =K26-K49 -> 688674
A51: =head27a -> References
A52: 1. Government Finance Statistics Functions and Sub-functions are standardised to assist the compilation of national and international accounts for comparison purposes
A53: 2. Total Revenue by functional classification must reconcile to Total Operating Revenue shown in the Financial Performance Statement
A54: 3. Total Expenditure by functional classification must reconcile to total operating expenditure shown in 'Financial Performance Statement'
A55: 4. All amounts must be classified under a functional classification (modified GFS). The GFS function 'Other' is only for Abbatoirs, Air Transport, Licensing and Regulation, Markets and Tourism - and if used must be supported by footnotes. Nothing else may be placed under 'Other'. Assign associate share to relevant classification

Sheet C2C
A1: =muni& " - "&S71A& " - "&date -> LIM351 Blouberg - Table C2 Monthly Budget Statement - Financial Performance (functional classification) - M01 July
A2: =desc -> Description | B2: =head27 -> Ref | C2: =Head1 -> 2023/24 | D2: =Head2 -> Budget Year 2024/25
C3: =Head5 -> Audited Outcome | D3: =Head6 -> Original Budget | E3: =Head7 -> Adjusted Budget | F3: =Head38 -> Monthly actual | G3: =Head39 -> YearTD actual | H3: =Head40 -> YearTD budget | I3: =Head41 -> YTD variance | J3: =Head41 -> YTD variance | K3: =Head8 -> Full Year Forecast
A4: R thousands | B4: 1 | J4: %
A5: Revenue - Functional
A6: Municipal governance and administration | C6: =C7+C10+C24 -> 318491486.7 | D6: 293731126 | E6: 293731126 | F6: 62805888.57 | G6: 62805888.57 | H6: 24477586 | I6: =G6-H6 -> 38328302.57 | J6: =IF(I6=0,"",I6/H6) -> 1.565853045 | K6: =K7+K10+K24 -> 293731126
A7: Executive and council | C7: =SUM(C8:C9) -> 0 | D7: =SUM(D8:D9) -> 0 | E7: 0 | F7: 0 | G7: 0 | H7: 0 | I7: =G7-H7 -> 0 | J7: =IF(I7=0,"",I7/H7) ->  | K7: 0
A8: Mayor and Council | C8: 0 | D8: 0 | E8: 0 | F8: 0 | G8: 0 | H8: 0 | I8: 0 | K8: 0
A9: Municipal Manager, Town Secretary and Chief Executive | C9: 0 | D9: 0 | E9: 0 | F9: 0 | G9: 0 | H9: 0 | I9: 0 | K9: 0
A10: Finance and administration | C10: =SUM(C11:C23) -> 318491486.7 | D10: 293731126 | E10: 293731126 | F10: 62805888.57 | G10: 62805888.57 | H10: 24477586 | I10: 38328302.57 | J10: 1.565853045 | K10: =SUM(K11:K23) -> 293731126
A11: Administrative and Corporate Support | C11: 468400.48 | D11: 310592 | E11: 310592 | F11: 5758.28 | G11: 5758.28 | H11: 25882 | I11: -20123.72 | J11: -0.7775179662 | K11: 310592
A12: Asset Management | I12: 0
A13: Finance | C13: 318023086.2 | D13: 293420534 | E13: 293420534 | F13: 62800130.29 | G13: 62800130.29 | H13: 24451704 | I13: 38348426.29 | J13: 1.568333491 | K13: 293420534
A14: Fleet Management | I14: 0
A15: Human Resources | I15: 0
A16: Information Technology | I16: 0
A17: Legal Services | I17: 0
A18: Marketing, Customer Relations, Publicity and Media Co-ordination | I18: 0
A19: Property Services | I19: 0
A20: Risk Management | I20: 0
A21: Security Services | I21: 0
A22: Supply Chain Management | I22: 0
A23: Valuation Service | I23: 0
A24: Internal audit | C24: =SUM(C25:C25) -> 0 | D24: 0 | E24: 0 | F24: 0 | G24: 0 | H24: 0 | I24: 0 | K24: =SUM(K25:K25) -> 0
A25: Governance Function | I25: 0
A26: Community and public safety | C26: =C27+C49+C55+C64+C67 -> 2774533.16 | D26: =D27+D49+D55+D64+D67 -> 6818500 | E26: =E27+E49+E55+E64+E67 -> 6818500 | F26: =F27+F49+F55+F64+F67 -> 80382.62 | G26: 80382.62 | H26: 568207 | I26: -487824.38 | J26: -0.8585328586 | K26: =K27+K49+K55+K64+K67 -> 6818500
A27: Community and social services | C27: =SUM(C28:C48) -> 0 | D27: 0 | E27: 0 | F27: 0 | G27: 0 | H27: 0 | I27: 0 | K27: =SUM(K28:K48) -> 0
A28: Aged Care | I28: 0
A29: Agricultural | I29: 0
A30: Animal Care and Diseases | I30: 0
A31: Cemeteries, Funeral Parlours and Crematoriums | C31: 0 | D31: 0 | E31: 0 | F31: 0 | G31: 0 | H31: 0 | I31: 0 | K31: 0
A32: Child Care Facilities | I32: 0
A33: Community Halls and Facilities | I33: 0
A34: Consumer Protection | I34: 0
A35: Cultural Matters | I35: 0
A36: Disaster Management | I36: 0
A37: Education | I37: 0
A38: Indigenous and Customary Law | I38: 0
A39: Industrial Promotion | I39: 0
A40: Language Policy | I40: 0
A41: Libraries and Archives | I41: 0
A42: Literacy Programmes | I42: 0
A43: Media Services | I43: 0
A44: Museums and Art Galleries | I44: 0
A45: Population Development | I45: 0
A46: Provincial Cultural Matters | I46: 0
A47: Theatres | I47: 0
A48: Zoo's | I48: 0
A49: Sport and recreation | C49: =SUM(C50:C54) -> 0 | D49: =SUM(D50:D54) -> 0 | E49: 0 | F49: 0 | G49: 0 | H49: 0 | I49: 0 | K49: 0
A50: Beaches and Jetties | I50: 0
A51: Casinos, Racing, Gambling, Wagering | I51: 0
A52: Community Parks (including Nurseries) | I52: 0
A53: Recreational Facilities | I53: 0
A54: Sports Grounds and Stadiums | I54: 0
A55: Public safety | C55: =SUM(C56:C63) -> 2774533.16 | D55: =SUM(D56:D63) -> 6818500 | E55: 6818500 | F55: 80382.62 | G55: 80382.62 | H55: 568207 | I55: -487824.38 | J55: -0.8585328586 | K55: 6818500
A56: Civil Defence | I56: 0
A57: Cleansing | I57: 0
A58: Control of Public Nuisances | I58: =G58-H58 -> 0 | J58: =IF(I58=0,"",I58/H58) -> 
A59: Fencing and Fences | I59: 0
A60: Fire Fighting and Protection | I60: 0
A61: Licensing and Control of Animals | I61: =G61-H61 -> 0 | J61: =IF(I61=0,"",I61/H61) -> 
A62: Police Forces, Traffic and Street Parking Control | C62: 2774533.16 | D62: 6818500 | E62: 6818500 | F62: 80382.62 | G62: 80382.62 | H62: 568207 | I62: =G62-H62 -> -487824.38 | J62: =IF(I62=0,"",I62/H62) -> -0.8585328586 | K62: 6818500
A63: Pounds | C63: 0 | D63: 0 | E63: 0 | F63: 0 | G63: 0 | H63: 0 | I63: 0 | K63: 0
A64: Housing | C64: =SUM(C65:C66) -> 0 | D64: 0 | E64: 0 | F64: 0 | G64: 0 | H64: 0 | I64: =G64-H64 -> 0 | J64: =IF(I64=0,"",I64/H64) ->  | K64: =SUM(K65:K66) -> 0
A65: Housing | I65: =G65-H65 -> 0 | J65: =IF(I65=0,"",I65/H65) -> 
A66: Informal Settlements | I66: =G66-H66 -> 0 | J66: =IF(I66=0,"",I66/H66) -> 
A67: Health | C67: =SUM(C68:C74) -> 0 | D67: 0 | E67: 0 | F67: 0 | G67: 0 | H67: 0 | I67: 0 | K67: =SUM(K68:K74) -> 0
A68: Ambulance | I68: 0
A69: Health Services | I69: 0
A70: Laboratory Services | I70: =G70-H70 -> 0 | J70: =IF(I70=0,"",I70/H70) -> 
A71: Food Control | I71: =G71-H71 -> 0 | J71: =IF(I71=0,"",I71/H71) -> 
A72: Health Surveillance and Prevention of Communicable Diseases including immunizations | I72: 0
A73: Vector Control | I73: 0
A74: Chemical Safety | I74: 0
A75: Economic and environmental services | C75: =C76+C87+C92 -> 85391509.65 | D75: =D76+D87+D92 -> 70003555 | E75: =E76+E87+E92 -> 70003555 | F75: 15526.6 | G75: 15526.6 | H75: 5833626 | I75: -5818099.4 | J75: -0.9973384307 | K75: =K76+K87+K92 -> 70003555
A76: Planning and development | C76: =SUM(C77:C86) -> 76997179.88 | D76: 54287555 | E76: 54287555 | F76: 15526.6 | G76: 15526.6 | H76: 4523960 | I76: -4508433.4 | J76: -0.9965679184 | K76: =SUM(K77:K86) -> 54287555
A77: Billboards | I77: =G77-H77 -> 0 | J77: =IF(I77=0,"",I77/H77) -> 
A78: Corporate Wide Strategic Planning (IDPs, LEDs) | I78: 0
A79: Central City Improvement District | I79: 0
A80: Development Facilitation | I80: =G80-H80 -> 0 | J80: =IF(I80=0,"",I80/H80) -> 
A81: Economic Development/Planning | C81: 8656006.09 | D81: 2518555 | E81: 2518555 | F81: 15526.6 | G81: 15526.6 | H81: 209877 | I81: =G81-H81 -> -194350.4 | J81: =IF(I81=0,"",I81/H81) -> -0.9260204787 | K81: 2518555
A82: Regional Planning and Development | I82: =G82-H82 -> 0 | J82: =IF(I82=0,"",I82/H82) -> 
A83: Town Planning, Building Regulations and Enforcement, and City Engineer | I83: =G83-H83 -> 0 | J83: =IF(I83=0,"",I83/H83) -> 
A84: Project Management Unit | C84: 68341173.79 | D84: 51769000 | E84: 51769000 | F84: 0 | G84: 0 | H84: 4314083 | I84: -4314083 | J84: -1 | K84: 51769000
A85: Provincial Planning | I85: 0
A86: Support to Local Municipalities | I86: 0
A87: Road transport | C87: =SUM(C88:C91) -> 8394329.77 | D87: 15716000 | E87: 15716000 | F87: 0 | G87: 0 | H87: 1309666 | I87: -1309666 | J87: -1 | K87: =SUM(K88:K91) -> 15716000
A88: Public Transport | I88: 0
A89: Road and Traffic Regulation | I89: 0
A90: Roads | C90: 8394329.77 | D90: 15716000 | E90: 15716000 | F90: 0 | G90: 0 | H90: 1309666 | I90: -1309666 | J90: -1 | K90: 15716000
A91: Taxi Ranks | I91: 0
A92: Environmental protection | C92: =SUM(C93:C98) -> 0 | D92: =SUM(D93:D98) -> 0 | E92: 0 | F92: 0 | G92: 0 | H92: 0 | I92: 0 | K92: 0
A93: Biodiversity and Landscape | I93: 0
A94: Coastal Protection | I94: 0
A95: Indigenous Forests | I95: =G95-H95 -> 0 | J95: =IF(I95=0,"",I95/H95) -> 
A96: Nature Conservation | I96: =G96-H96 -> 0 | J96: =IF(I96=0,"",I96/H96) -> 
A97: Pollution Control | I97: 0
A98: Soil Conservation | I98: 0
A99: Trading services | C99: =C100+C104+C108+C113 -> 62401930.1 | D99: =D100+D104+D108+D113 -> 63038058 | E99: =E100+E104+E108+E113 -> 63038058 | F99: =F100+F104+F108+F113 -> 3391077.58 | G99: =G100+G104+G108+G113 -> 3391077.58 | H99: 5253166 | I99: =I100+I104+I108+I113 -> -1862088.42 | J99: -0.3544697464 | K99: =K100+K104+K108+K113 -> 63038058
A100: Energy sources | C100: =SUM(C101:C103) -> 58894783.24 | D100: =SUM(D101:D103) -> 56286558 | E100: 56286558 | F100: 2851999.98 | G100: 2851999.98 | H100: 4690542 | I100: -1838542.02 | J100: -0.3919679261 | K100: 56286558
A101: Electricity | C101: 58894783.24 | D101: 56286558 | E101: 56286558 | F101: 2851999.98 | G101: 2851999.98 | H101: 4690542 | I101: -1838542.02 | J101: -0.3919679261 | K101: 56286558
A102: Street Lighting and Signal Systems | I102: =G102-H102 -> 0 | J102: =IF(I102=0,"",I102/H102) -> 
A103: Nonelectric Energy | I103: 0
A104: Water management | C104: =SUM(C105:C107) -> 0 | D104: =SUM(D105:D107) -> 0 | E104: 0 | F104: 321613.98 | G104: 321613.98 | H104: 0 | I104: 321613.98 | K104: 0
A105: Water Treatment | C105: 0 | D105: 0 | E105: 0 | F105: 321613.98 | G105: 321613.98 | H105: 0 | I105: 321613.98 | K105: 0
A106: Water Distribution | I106: =G106-H106 -> 0 | J106: =IF(I106=0,"",I106/H106) -> 
A107: Water Storage | I107: 0
A108: Waste water management | C108: =SUM(C109:C112) -> 0 | D108: =SUM(D109:D112) -> 0 | E108: 0 | F108: 22732.1 | G108: 22732.1 | H108: 0 | I108: 22732.1 | K108: 0
A109: Public Toilets | I109: 0
A110: Sewerage | I110: 0
A111: Storm Water Management | C111: 0 | D111: 0 | E111: 0 | F111: 0 | G111: 0 | H111: 0 | I111: =G111-H111 -> 0 | J111: =IF(I111=0,"",I111/H111) ->  | K111: 0
A112: Waste Water Treatment | C112: 0 | D112: 0 | E112: 0 | F112: 22732.1 | G112: 22732.1 | H112: 0 | I112: 22732.1 | K112: 0
A113: Waste management | C113: =SUM(C114:C117) -> 3507146.86 | D113: 6751500 | E113: 6751500 | F113: 194731.52 | G113: 194731.52 | H113: 562624 | I113: -367892.48 | J113: -0.6538869298 | K113: =SUM(K114:K117) -> 6751500
A114: Recycling | I114: =G114-H114 -> 0 | J114: =IF(I114=0,"",I114/H114) -> 
A115: Solid Waste Disposal (Landfill Sites) | C115: 3507146.86 | D115: 6751500 | E115: 6751500 | F115: 194731.52 | G115: 194731.52 | H115: 562624 | I115: =G115-H115 -> -367892.48 | J115: =IF(I115=0,"",I115/H115) -> -0.6538869298 | K115: 6751500
A116: Solid Waste Removal | I116: 0
A117: Street Cleaning | I117: =G117-H117 -> 0 | J117: =IF(I117=0,"",I117/H117) -> 
A118: Other | C118: =SUM(C119:C124) -> 0 | D118: =SUM(D119:D124) -> 0 | E118: 0 | F118: 0 | G118: 0 | H118: 0 | I118: 0 | K118: 0
A119: Abattoirs | I119: 0
A120: Air Transport | I120: 0
A121: Forestry | I121: =G121-H121 -> 0 | J121: =IF(I121=0,"",I121/H121) -> 
A122: Licensing and Regulation | I122: 0
A123: Markets | I123: 0
A124: Tourism | I124: =G124-H124 -> 0 | J124: =IF(I124=0,"",I124/H124) -> 
A125: ="Total "&A5 -> Total Revenue - Functional | B125: 2 | C125: =C6+C26+C75+C99+C118 -> 469059459.6 | D125: =D6+D26+D75+D99+D118 -> 433591239 | E125: 433591239 | F125: 66292875.37 | G125: 66292875.37 | H125: 36132585 | I125: =G125-H125 -> 30160290.37 | J125: =IF(I125=0,"",I125/H125) -> 0.8347116701 | K125: =K6+K26+K75+K99+K118 -> 433591239
A127: Expenditure - Functional
A128: =A6 -> Municipal governance and administration | C128: =C129+C132+C146 -> 162183596.3 | D128: =D129+D132+D146 -> 226413674 | E128: =E129+E132+E146 -> 226413674 | F128: =F129+F132+F146 -> 17322501.8 | G128: 17322501.8 | H128: =H129+H132+H146 -> 18867898 | I128: =G128-H128 -> -1545396.2 | J128: =IF(I128=0,"",I128/H128) -> -0.08190611376 | K128: =K129+K132+K146 -> 226413674
A129: Executive and council | C129: =SUM(C130:C131) -> 72405817.01 | D129: 74063121 | E129: 74063121 | F129: 5418087.27 | G129: 5418087.27 | H129: 6171972 | I129: -753884.73 | J129: -0.1221464922 | K129: 74063121
A130: Mayor and Council | C130: 21767091.31 | D130: 25208466 | E130: 25208466 | F130: 1508631.5 | G130: 1508631.5 | H130: 2100735 | I130: -592103.5 | J130: -0.2818553982 | K130: 25208466
A131: Municipal Manager, Town Secretary and Chief Executive | C131: 50638725.7 | D131: 48854655 | E131: 48854655 | F131: 3909455.77 | G131: 3909455.77 | H131: 4071237 | I131: -161781.23 | J131: -0.03973761046 | K131: 48854655
A132: Finance and administration | C132: =SUM(C133:C145) -> 89777779.26 | D132: 152350553 | E132: 152350553 | F132: 11904414.53 | G132: 11904414.53 | H132: 12695926 | I132: -791511.47 | J132: -0.06234373688 | K132: =SUM(K133:K145) -> 152350553
A133: Administrative and Corporate Support | C133: 66295282.97 | D133: 83701715 | E133: 83701715 | F133: 6711688.84 | G133: 6711688.84 | H133: 6975171 | I133: -263482.16 | J133: -0.03777429399 | K133: 83701715
A134: Asset Management | I134: 0
A135: Finance | C135: 23482496.29 | D135: 68648838 | E135: 68648838 | F135: 5192725.69 | G135: 5192725.69 | H135: 5720755 | I135: -528029.31 | J135: -0.0923006334 | K135: 68648838
A136: Fleet Management | I136: 0
A137: Human Resources | I137: 0
A138: Information Technology | I138: 0
A139: Legal Services | I139: 0
A140: Marketing, Customer Relations, Publicity and Media Co-ordination | I140: 0
A141: Property Services | I141: 0
A142: Risk Management | I142: 0
A143: Security Services | I143: 0
A144: Supply Chain Management | I144: 0
A145: Valuation Service | I145: 0
A146: Internal audit | C146: =SUM(C147:C147) -> 0 | D146: 0 | E146: 0 | F146: 0 | G146: 0 | H146: 0 | I146: 0 | K146: =SUM(K147:K147) -> 0
A147: Governance Function | I147: 0
A148: Community and public safety | C148: =C149+C171+C177+C186+C189 -> 19581825.13 | D148: =D149+D171+D177+D186+D189 -> 18551191 | E148: 18551191 | F148: 1663084.62 | G148: 1663084.62 | H148: 1545942 | I148: 117142.62 | J148: 0.07577426579 | K148: =K149+K171+K177+K186+K189 -> 18551191
A149: Community and social services | C149: =SUM(C150:C170) -> 0 | D149: 0 | E149: 0 | F149: 0 | G149: 0 | H149: 0 | I149: 0 | K149: =SUM(K150:K170) -> 0
A150: Aged Care | I150: 0
A151: Agricultural | I151: 0
A152: Animal Care and Diseases | I152: 0
A153: Cemeteries, Funeral Parlours and Crematoriums | C153: 0 | D153: 0 | E153: 0 | F153: 0 | G153: 0 | H153: 0 | I153: 0 | K153: 0
A154: Child Care Facilities | I154: 0
A155: Community Halls and Facilities | I155: 0
A156: Consumer Protection | I156: 0
A157: Cultural Matters | I157: =G157-H157 -> 0 | J157: =IF(I157=0,"",I157/H157) -> 
A158: Disaster Management | I158: =G158-H158 -> 0 | J158: =IF(I158=0,"",I158/H158) -> 
A159: Education | I159: =G159-H159 -> 0 | J159: =IF(I159=0,"",I159/H159) -> 
A160: Indigenous and Customary Law | I160: 0
A161: Industrial Promotion | I161: 0
A162: Language Policy | I162: 0
A163: Libraries and Archives | C163: 0 | D163: 0 | E163: 0 | F163: 0 | G163: 0 | H163: 0 | I163: 0 | K163: 0
A164: Literacy Programmes | I164: 0
A165: Media Services | I165: 0
A166: Museums and Art Galleries | I166: 0
A167: Population Development | I167: 0
A168: Provincial Cultural Matters | I168: 0
A169: Theatres | I169: 0
A170: Zoo's | I170: 0
A171: Sport and recreation | C171: =SUM(C172:C176) -> 0 | D171: 0 | E171: 0 | F171: 0 | G171: 0 | H171: 0 | I171: 0 | K171: 0
A172: Beaches and Jetties | I172: 0
A173: Casinos, Racing, Gambling, Wagering | I173: 0
A174: Community Parks (including Nurseries) | I174: 0
A175: Recreational Facilities | C175: 0 | D175: 0 | E175: 0 | F175: 0 | G175: 0 | H175: 0 | I175: 0 | K175: 0
A176: Sports Grounds and Stadiums | I176: 0
A177: Public safety | C177: =SUM(C178:C185) -> 19581825.13 | D177: 18551191 | E177: 18551191 | F177: 1663084.62 | G177: 1663084.62 | H177: 1545942 | I177: 117142.62 | J177: 0.07577426579 | K177: 18551191
A178: Civil Defence | I178: 0
A179: Cleansing | I179: 0
A180: Control of Public Nuisances | I180: =G180-H180 -> 0 | J180: =IF(I180=0,"",I180/H180) -> 
A181: Fencing and Fences | I181: 0
A182: Fire Fighting and Protection | I182: 0
A183: Licensing and Control of Animals | I183: =G183-H183 -> 0 | J183: =IF(I183=0,"",I183/H183) -> 
A184: Police Forces, Traffic and Street Parking Control | C184: 19324785.13 | D184: 18257471 | E184: 18257471 | F184: 1633224.62 | G184: 1633224.62 | H184: 1521465 | I184: =G184-H184 -> 111759.62 | J184: =IF(I184=0,"",I184/H184) -> 0.07345526844 | K184: 18257471
A185: Pounds | C185: 257040 | D185: 293720 | E185: 293720 | F185: 29860 | G185: 29860 | H185: 24477 | I185: 5383 | J185: 0.2199207419 | K185: 293720
A186: Housing | C186: =SUM(C187:C188) -> 0 | D186: 0 | E186: 0 | F186: 0 | G186: 0 | H186: 0 | I186: =G186-H186 -> 0 | J186: =IF(I186=0,"",I186/H186) ->  | K186: =SUM(K187:K188) -> 0
A187: Housing | I187: =G187-H187 -> 0 | J187: =IF(I187=0,"",I187/H187) -> 
A188: Informal Settlements | I188: =G188-H188 -> 0 | J188: =IF(I188=0,"",I188/H188) -> 
A189: Health | C189: =SUM(C190:C196) -> 0 | D189: 0 | E189: 0 | F189: 0 | G189: 0 | H189: 0 | I189: 0 | K189: 0
A190: Ambulance | I190: 0
A191: Health Services | I191: 0
A192: =A70 -> Laboratory Services | I192: 0
A193: Food Control | I193: =G193-H193 -> 0 | J193: =IF(I193=0,"",I193/H193) -> 
A194: Health Surveillance and Prevention of Communicable Diseases including immunizations | I194: =G194-H194 -> 0 | J194: =IF(I194=0,"",I194/H194) -> 
A195: Vector Control | I195: 0
A196: Chemical Safety | I196: 0
A197: Economic and environmental services | C197: =C198+C209+C214 -> 40924436.05 | D197: 36259765 | E197: 36259765 | F197: 1866810.26 | G197: 1866810.26 | H197: 3021671 | I197: -1154860.74 | J197: -0.382192747 | K197: =K198+K209+K214 -> 36259765
A198: Planning and development | C198: =SUM(C199:C208) -> 18357436.04 | D198: 16534740 | E198: 16534740 | F198: 1040964.81 | G198: 1040964.81 | H198: 1377910 | I198: -336945.19 | J198: -0.2445335254 | K198: 16534740
A199: Billboards | I199: 0
A200: Corporate Wide Strategic Planning (IDPs, LEDs) | I200: 0
A201: Central City Improvement District | I201: 0
... 54 more rows

Sheet C3-FinPerf V
A1: =muni& " - "&S71C& " - "&date -> LIM351 Blouberg - Table C3 Monthly Budget Statement - Financial Performance (revenue and expenditure by municipal vote) - M01 July
A2: =Vdesc -> Vote Description | B2: =head27 -> Ref | C2: =Head1 -> 2023/24 | D2: =Head2 -> Budget Year 2024/25
C3: =Head5 -> Audited Outcome | D3: =Head6 -> Original Budget | E3: =Head7 -> Adjusted Budget | F3: =Head38 -> Monthly actual | G3: =Head39 -> YearTD actual | H3: =Head40 -> YearTD budget | I3: =Head41 -> YTD variance | J3: =Head41 -> YTD variance | K3: =Head8 -> Full Year Forecast
A4: R thousands | J4: %
A5: Revenue by Vote | B5: 1
A6: ='Org structure'!A2 -> Vote 01 - Executive & Council | C6: ='C3C'!C6 -> 0 | D6: ='C3C'!D6 -> 0 | E6: ='C3C'!E6 -> 0 | F6: ='C3C'!F6 -> 0 | G6: ='C3C'!G6 -> 0 | H6: ='C3C'!H6 -> 0 | I6: =G6-H6 -> 0 | J6: =IF(I6=0,"",I6/H6) ->  | K6: ='C3C'!K6 -> 0
A7: ='Org structure'!A3 -> Vote 02 - Finance And Administration | C7: ='C3C'!C8 -> 0 | D7: ='C3C'!D8 -> 0 | E7: ='C3C'!E8 -> 0 | F7: ='C3C'!F8 -> 0 | G7: ='C3C'!G8 -> 0 | H7: ='C3C'!H8 -> 0 | I7: 0 | K7: ='C3C'!K8 -> 0
A8: ='Org structure'!A4 -> Vote 03 - Community Service | C8: ='C3C'!C10 -> 318023086.2 | D8: ='C3C'!D10 -> 293420534 | E8: ='C3C'!E10 -> 293420534 | F8: ='C3C'!F10 -> 62800130.29 | G8: ='C3C'!G10 -> 62800130.29 | H8: ='C3C'!H10 -> 24451704 | I8: 38348426.29 | J8: 1.568333491 | K8: ='C3C'!K10 -> 293420534
A9: ='Org structure'!A5 -> Vote 04 - Public And Safety | C9: ='C3C'!C12 -> 468400.48 | D9: ='C3C'!D12 -> 310592 | E9: ='C3C'!E12 -> 310592 | F9: ='C3C'!F12 -> 5758.28 | G9: ='C3C'!G12 -> 5758.28 | H9: ='C3C'!H12 -> 25882 | I9: -20123.72 | J9: -0.7775179662 | K9: ='C3C'!K12 -> 310592
A10: ='Org structure'!A6 -> Vote 05 - Waste Management | C10: ='C3C'!C14 -> 67289113.01 | D10: ='C3C'!D14 -> 72002558 | E10: ='C3C'!E14 -> 72002558 | F10: ='C3C'!F14 -> 3196346.06 | G10: ='C3C'!G14 -> 3196346.06 | H10: ='C3C'!H14 -> 6000208 | I10: -2803861.94 | J10: -0.4672941238 | K10: ='C3C'!K14 -> 72002558
A11: ='Org structure'!A7 -> Vote 06 - Roads Services | C11: ='C3C'!C20 -> 6281680.02 | D11: ='C3C'!D20 -> 13570000 | E11: ='C3C'!E20 -> 13570000 | F11: ='C3C'!F20 -> 275114.14 | G11: ='C3C'!G20 -> 275114.14 | H11: ='C3C'!H20 -> 1130831 | I11: -855716.86 | J11: -0.7567150706 | K11: ='C3C'!K20 -> 13570000
A12: ='Org structure'!A8 -> Vote 07 - Econominc Development And Planning | C12: ='C3C'!C25 -> 76997179.88 | D12: ='C3C'!D25 -> 54287555 | E12: ='C3C'!E25 -> 54287555 | F12: ='C3C'!F25 -> 15526.6 | G12: ='C3C'!G25 -> 15526.6 | H12: ='C3C'!H25 -> 4523960 | I12: -4508433.4 | J12: -0.9965679184 | K12: ='C3C'!K25 -> 54287555
A13: ='Org structure'!A9 -> Vote 08 - | C13: ='C3C'!C28 -> 0 | D13: ='C3C'!D28 -> 0 | E13: ='C3C'!E28 -> 0 | F13: ='C3C'!F28 -> 0 | G13: ='C3C'!G28 -> 0 | H13: ='C3C'!H28 -> 0 | I13: =G13-H13 -> 0 | J13: =IF(I13=0,"",I13/H13) ->  | K13: ='C3C'!K28 -> 0
A14: ='Org structure'!A10 -> Vote 09 - | C14: ='C3C'!C29 -> 0 | D14: ='C3C'!D29 -> 0 | E14: ='C3C'!E29 -> 0 | F14: ='C3C'!F29 -> 0 | G14: ='C3C'!G29 -> 0 | H14: ='C3C'!H29 -> 0 | I14: 0 | K14: ='C3C'!K29 -> 0
A15: ='Org structure'!A11 -> Vote 10 - | C15: ='C3C'!C30 -> 0 | D15: ='C3C'!D30 -> 0 | E15: ='C3C'!E30 -> 0 | F15: ='C3C'!F30 -> 0 | G15: ='C3C'!G30 -> 0 | H15: ='C3C'!H30 -> 0 | I15: 0 | K15: ='C3C'!K30 -> 0
A16: ='Org structure'!A12 -> Vote 11 - | C16: ='C3C'!C31 -> 0 | D16: ='C3C'!D31 -> 0 | E16: ='C3C'!E31 -> 0 | F16: ='C3C'!F31 -> 0 | G16: ='C3C'!G31 -> 0 | H16: ='C3C'!H31 -> 0 | I16: 0 | K16: ='C3C'!K31 -> 0
A17: ='Org structure'!A13 -> Vote 12 - | C17: ='C3C'!C32 -> 0 | D17: ='C3C'!D32 -> 0 | E17: ='C3C'!E32 -> 0 | F17: ='C3C'!F32 -> 0 | G17: ='C3C'!G32 -> 0 | H17: ='C3C'!H32 -> 0 | I17: 0 | K17: ='C3C'!K32 -> 0
A18: ='Org structure'!A14 -> Vote 13 - | C18: ='C3C'!C33 -> 0 | D18: ='C3C'!D33 -> 0 | E18: ='C3C'!E33 -> 0 | F18: ='C3C'!F33 -> 0 | G18: ='C3C'!G33 -> 0 | H18: ='C3C'!H33 -> 0 | I18: 0 | K18: ='C3C'!K33 -> 0
A19: ='Org structure'!A15 -> Vote 14 - | C19: ='C3C'!C34 -> 0 | D19: ='C3C'!D34 -> 0 | E19: ='C3C'!E34 -> 0 | F19: ='C3C'!F34 -> 0 | G19: ='C3C'!G34 -> 0 | H19: ='C3C'!H34 -> 0 | I19: 0 | K19: ='C3C'!K34 -> 0
A20: ='Org structure'!A16 -> Vote 15 - Other | C20: ='C3C'!C35 -> 0 | D20: ='C3C'!D35 -> 0 | E20: ='C3C'!E35 -> 0 | F20: ='C3C'!F35 -> 0 | G20: ='C3C'!G35 -> 0 | H20: ='C3C'!H35 -> 0 | I20: 0 | K20: ='C3C'!K35 -> 0
A21: Total Revenue by Vote | B21: 2 | C21: =SUM(C6:C20) -> 469059459.6 | D21: =SUM(D6:D20) -> 433591239 | E21: 433591239 | F21: 66292875.37 | G21: 66292875.37 | H21: 36132585 | I21: 30160290.37 | J21: 0.8347116701 | K21: =SUM(K6:K20) -> 433591239
A23: Expenditure by Vote | B23: 1
A24: ='Org structure'!A2 -> Vote 01 - Executive & Council | C24: ='C3C'!C39 -> 21767091.31 | D24: ='C3C'!D39 -> 25208466 | E24: ='C3C'!E39 -> 25208466 | F24: ='C3C'!F39 -> 1508631.5 | G24: ='C3C'!G39 -> 1508631.5 | H24: ='C3C'!H39 -> 2100735 | I24: =G24-H24 -> -592103.5 | J24: =IF(I24=0,"",I24/H24) -> -0.2818553982 | K24: ='C3C'!K39 -> 25208466
A25: ='Org structure'!A3 -> Vote 02 - Finance And Administration | C25: ='C3C'!C41 -> 50638725.7 | D25: ='C3C'!D41 -> 48854655 | E25: ='C3C'!E41 -> 48854655 | F25: ='C3C'!F41 -> 3909455.77 | G25: ='C3C'!G41 -> 3909455.77 | H25: ='C3C'!H41 -> 4071237 | I25: -161781.23 | J25: -0.03973761046 | K25: ='C3C'!K41 -> 48854655
A26: ='Org structure'!A4 -> Vote 03 - Community Service | C26: ='C3C'!C43 -> 23482496.29 | D26: ='C3C'!D43 -> 68648838 | E26: ='C3C'!E43 -> 68648838 | F26: ='C3C'!F43 -> 5192725.69 | G26: ='C3C'!G43 -> 5192725.69 | H26: ='C3C'!H43 -> 5720755 | I26: -528029.31 | J26: -0.0923006334 | K26: ='C3C'!K43 -> 68648838
A27: ='Org structure'!A5 -> Vote 04 - Public And Safety | C27: ='C3C'!C45 -> 66295282.97 | D27: ='C3C'!D45 -> 83701715 | E27: ='C3C'!E45 -> 83701715 | F27: ='C3C'!F45 -> 6711688.84 | G27: ='C3C'!G45 -> 6711688.84 | H27: ='C3C'!H45 -> 6975171 | I27: -263482.16 | J27: -0.03777429399 | K27: ='C3C'!K45 -> 83701715
A28: ='Org structure'!A6 -> Vote 05 - Waste Management | C28: ='C3C'!C47 -> 117265569.4 | D28: ='C3C'!D47 -> 132490673 | E28: ='C3C'!E47 -> 132490673 | F28: ='C3C'!F47 -> 4902573.93 | G28: ='C3C'!G47 -> 4902573.93 | H28: ='C3C'!H47 -> 11040920 | I28: -6138346.07 | J28: -0.5559632775 | K28: ='C3C'!K47 -> 132490673
A29: ='Org structure'!A7 -> Vote 06 - Roads Services | C29: ='C3C'!C53 -> 51871414.03 | D29: ='C3C'!D53 -> 57463478 | E29: ='C3C'!E53 -> 57463478 | F29: ='C3C'!F53 -> 3404339.25 | G29: ='C3C'!G53 -> 3404339.25 | H29: ='C3C'!H53 -> 4788658 | I29: -1384318.75 | J29: -0.2890828182 | K29: ='C3C'!K53 -> 57463478
A30: ='Org structure'!A8 -> Vote 07 - Econominc Development And Planning | C30: ='C3C'!C58 -> 18357436.04 | D30: ='C3C'!D58 -> 16534740 | E30: ='C3C'!E58 -> 16534740 | F30: ='C3C'!F58 -> 1040964.81 | G30: ='C3C'!G58 -> 1040964.81 | H30: ='C3C'!H58 -> 1377910 | I30: -336945.19 | J30: -0.2445335254 | K30: ='C3C'!K58 -> 16534740
A31: ='Org structure'!A9 -> Vote 08 - | C31: ='C3C'!C61 -> 0 | D31: ='C3C'!D61 -> 0 | E31: ='C3C'!E61 -> 0 | F31: ='C3C'!F61 -> 0 | G31: ='C3C'!G61 -> 0 | H31: ='C3C'!H61 -> 0 | I31: =G31-H31 -> 0 | J31: =IF(I31=0,"",I31/H31) ->  | K31: ='C3C'!K61 -> 0
A32: ='Org structure'!A10 -> Vote 09 - | C32: ='C3C'!C62 -> 0 | D32: ='C3C'!D62 -> 0 | E32: ='C3C'!E62 -> 0 | F32: ='C3C'!F62 -> 0 | G32: ='C3C'!G62 -> 0 | H32: ='C3C'!H62 -> 0 | I32: 0 | K32: ='C3C'!K62 -> 0
A33: ='Org structure'!A11 -> Vote 10 - | C33: ='C3C'!C63 -> 0 | D33: ='C3C'!D63 -> 0 | E33: ='C3C'!E63 -> 0 | F33: ='C3C'!F63 -> 0 | G33: ='C3C'!G63 -> 0 | H33: ='C3C'!H63 -> 0 | I33: 0 | J33: =IF(I33=0,"",I33/H33) ->  | K33: ='C3C'!K63 -> 0
A34: ='Org structure'!A12 -> Vote 11 - | C34: ='C3C'!C64 -> 0 | D34: ='C3C'!D64 -> 0 | E34: ='C3C'!E64 -> 0 | F34: ='C3C'!F64 -> 0 | G34: ='C3C'!G64 -> 0 | H34: ='C3C'!H64 -> 0 | I34: 0 | J34: =IF(I34=0,"",I34/H34) ->  | K34: ='C3C'!K64 -> 0
A35: ='Org structure'!A13 -> Vote 12 - | C35: ='C3C'!C65 -> 0 | D35: ='C3C'!D65 -> 0 | E35: ='C3C'!E65 -> 0 | F35: ='C3C'!F65 -> 0 | G35: ='C3C'!G65 -> 0 | H35: ='C3C'!H65 -> 0 | I35: 0 | J35: =IF(I35=0,"",I35/H35) ->  | K35: ='C3C'!K65 -> 0
A36: ='Org structure'!A14 -> Vote 13 - | C36: ='C3C'!C66 -> 0 | D36: ='C3C'!D66 -> 0 | E36: ='C3C'!E66 -> 0 | F36: ='C3C'!F66 -> 0 | G36: ='C3C'!G66 -> 0 | H36: ='C3C'!H66 -> 0 | I36: 0 | J36: =IF(I36=0,"",I36/H36) ->  | K36: ='C3C'!K66 -> 0
A37: ='Org structure'!A15 -> Vote 14 - | C37: ='C3C'!C67 -> 0 | D37: ='C3C'!D67 -> 0 | E37: ='C3C'!E67 -> 0 | F37: ='C3C'!F67 -> 0 | G37: ='C3C'!G67 -> 0 | H37: ='C3C'!H67 -> 0 | I37: 0 | J37: =IF(I37=0,"",I37/H37) ->  | K37: ='C3C'!K67 -> 0
A38: ='Org structure'!A16 -> Vote 15 - Other | C38: ='C3C'!C68 -> 0 | D38: ='C3C'!D68 -> 0 | E38: ='C3C'!E68 -> 0 | F38: ='C3C'!F68 -> 0 | G38: ='C3C'!G68 -> 0 | H38: ='C3C'!H68 -> 0 | I38: 0 | K38: ='C3C'!K68 -> 0
A39: Total Expenditure by Vote | B39: 2 | C39: =SUM(C24:C38) -> 349678015.7 | D39: =SUM(D24:D38) -> 432902565 | E39: 432902565 | F39: 26670379.79 | G39: 26670379.79 | H39: 36075386 | I39: -9405006.21 | J39: =IF(I39=0,"",I39/H39) -> -0.2607042433 | K39: =SUM(K24:K38) -> 432902565
A40: =result -> Surplus/ (Deficit) for the year | B40: 2 | C40: =C21-C39 -> 119381443.9 | D40: 688674 | E40: 688674 | F40: 39622495.58 | G40: 39622495.58 | H40: 57199 | I40: =I21-I39 -> 39565296.58 | J40: =IF(I40=0,"",I40/H40) -> 691.713082 | K40: =K21-K39 -> 688674
A41: =head27a -> References
A42: 1. Insert 'Vote'; e.g. Department, if different to standard classification structure
A43: 2. Must reconcile to Monthly Budget Statement - Financial Performance Statement (standard classification)

Sheet C3C
A1: =muni& " - "&S71C& " - "&"A"& " - "&date -> LIM351 Blouberg - Table C3 Monthly Budget Statement - Financial Performance (revenue and expenditure by municipal vote) - A - M01 July
A2: =Vdesc -> Vote Description | B2: =head27 -> Ref | C2: =Head1 -> 2023/24 | D2: =Head2 -> Budget Year 2024/25 | L2: =Head4 -> 
A3: R thousand | C3: =Head5 -> Audited Outcome | D3: =Head6 -> Original Budget | E3: =Head7 -> Adjusted Budget | F3: =Head38 -> Monthly actual | G3: =Head39 -> YearTD actual | H3: =Head40 -> YearTD budget | I3: =Head41 -> YTD variance | J3: =Head41 -> YTD variance | K3: =Head8 -> Full Year Forecast | L3: =Head12 -> Forecast 2010/11 | M3: =Head13 -> Forecast 2011/12 | N3: =Head14 -> Forecast 2012/13 | O3: =Head15 -> Forecast 2013/14 | P3: =Head16 -> Forecast 2014/15 | Q3: =Head17 -> Forecast 2015/16 | R3: =Head18 -> Forecast 2016/17 | S3: =Head19 -> Forecast 2017/18 | T3: =Head20 -> Forecast 2018/19 | U3: =Head21 -> Forecast 2019/20 | V3: =Head22 -> Forecast 2020/21 | W3: =Head23 -> Forecast 2021/22
J4: %
A5: Revenue by Vote | B5: 1
A6: ='Org structure'!A2 -> Vote 01 - Executive & Council | C6: =SUM(C7:C7) -> 0 | D6: 0 | E6: 0 | F6: 0 | G6: 0 | H6: 0 | I6: =G6-H6 -> 0 | J6: =IF(I6=0,"",I6/H6) ->  | K6: =SUM(K7:K7) -> 0
A7: ='Org structure'!E3 -> 01.1 - Council General | C7: 0 | D7: 0 | E7: 0 | F7: 0 | G7: 0 | H7: 0 | I7: =G7-H7 -> 0 | J7: =IF(I7=0,"",I7/H7) ->  | K7: 0
A8: ='Org structure'!A3 -> Vote 02 - Finance And Administration | C8: =SUM(C9:C9) -> 0 | D8: 0 | E8: 0 | F8: 0 | G8: 0 | H8: 0 | I8: 0 | K8: =SUM(K9:K9) -> 0
A9: ='Org structure'!E5 -> 02.1 - Municipal Manager | C9: 0 | D9: 0 | E9: 0 | F9: 0 | G9: 0 | H9: 0 | I9: =G9-H9 -> 0 | J9: =IF(I9=0,"",I9/H9) ->  | K9: 0
A10: ='Org structure'!A4 -> Vote 03 - Community Service | C10: =SUM(C11:C11) -> 318023086.2 | D10: 293420534 | E10: 293420534 | F10: 62800130.29 | G10: 62800130.29 | H10: 24451704 | I10: 38348426.29 | J10: 1.568333491 | K10: =SUM(K11:K11) -> 293420534
A11: ='Org structure'!E7 -> 03.1 - Finance Services Administration | C11: 318023086.2 | D11: 293420534 | E11: 293420534 | F11: 62800130.29 | G11: 62800130.29 | H11: 24451704 | I11: =G11-H11 -> 38348426.29 | J11: =IF(I11=0,"",I11/H11) -> 1.568333491 | K11: 293420534
A12: ='Org structure'!A5 -> Vote 04 - Public And Safety | C12: =SUM(C13:C13) -> 468400.48 | D12: 310592 | E12: 310592 | F12: 5758.28 | G12: 5758.28 | H12: 25882 | I12: -20123.72 | J12: -0.7775179662 | K12: =SUM(K13:K13) -> 310592
A13: ='Org structure'!E9 -> 04.1 - Corporate Services Administration | C13: 468400.48 | D13: 310592 | E13: 310592 | F13: 5758.28 | G13: 5758.28 | H13: 25882 | I13: =G13-H13 -> -20123.72 | J13: =IF(I13=0,"",I13/H13) -> -0.7775179662 | K13: 310592
A14: ='Org structure'!A6 -> Vote 05 - Waste Management | C14: =SUM(C15:C19) -> 67289113.01 | D14: 72002558 | E14: 72002558 | F14: 3196346.06 | G14: 3196346.06 | H14: 6000208 | I14: -2803861.94 | J14: -0.4672941238 | K14: =SUM(K15:K19) -> 72002558
A15: ='Org structure'!E11 -> 05.1 - Technical Services Administration | C15: 0 | D15: 0 | E15: 0 | F15: 0 | G15: 0 | H15: 0 | I15: =G15-H15 -> 0 | J15: =IF(I15=0,"",I15/H15) ->  | K15: 0
A16: ='Org structure'!E12 -> 05.2 - Electrical Services | C16: 58894783.24 | D16: 56286558 | E16: 56286558 | F16: 2851999.98 | G16: 2851999.98 | H16: 4690542 | I16: =G16-H16 -> -1838542.02 | J16: =IF(I16=0,"",I16/H16) -> -0.3919679261 | K16: 56286558
A17: ='Org structure'!E13 -> 05.3 - Water Services | C17: 0 | D17: 0 | E17: 0 | F17: 321613.98 | G17: 321613.98 | H17: 0 | I17: =G17-H17 -> 321613.98 | J17: =IF(I17=0,"",I17/H17) ->  | K17: 0
A18: ='Org structure'!E14 -> 05.4 - Sanitation Services | C18: 0 | D18: 0 | E18: 0 | F18: 22732.1 | G18: 22732.1 | H18: 0 | I18: =G18-H18 -> 22732.1 | J18: =IF(I18=0,"",I18/H18) ->  | K18: 0
A19: ='Org structure'!E15 -> 05.5 - Roads Services | C19: 8394329.77 | D19: 15716000 | E19: 15716000 | F19: 0 | G19: 0 | H19: 1309666 | I19: =G19-H19 -> -1309666 | J19: =IF(I19=0,"",I19/H19) -> -1 | K19: 15716000
A20: ='Org structure'!A7 -> Vote 06 - Roads Services | C20: =SUM(C21:C24) -> 6281680.02 | D20: 13570000 | E20: 13570000 | F20: 275114.14 | G20: 275114.14 | H20: 1130831 | I20: -855716.86 | J20: -0.7567150706 | K20: =SUM(K21:K24) -> 13570000
A21: ='Org structure'!E17 -> 06.1 - Community Services Administration | C21: 1185000 | D21: 3319700 | E21: 3319700 | F21: 0 | G21: 0 | H21: 276641 | I21: =G21-H21 -> -276641 | J21: =IF(I21=0,"",I21/H21) -> -1 | K21: 3319700
A22: ='Org structure'!E18 -> 06.2 - Traffic Services | C22: 2774533.16 | D22: 6818500 | E22: 6818500 | F22: 80382.62 | G22: 80382.62 | H22: 568207 | I22: =G22-H22 -> -487824.38 | J22: =IF(I22=0,"",I22/H22) -> -0.8585328586 | K22: 6818500
A23: ='Org structure'!E19 -> 06.3 - Refuse | C23: 2322146.86 | D23: 3431800 | E23: 3431800 | F23: 194731.52 | G23: 194731.52 | H23: 285983 | I23: =G23-H23 -> -91251.48 | J23: =IF(I23=0,"",I23/H23) -> -0.3190800852 | K23: 3431800
A24: ='Org structure'!E20 -> 06.4 - Pound Services | C24: 0 | D24: 0 | E24: 0 | F24: 0 | G24: 0 | H24: 0 | I24: =G24-H24 -> 0 | J24: =IF(I24=0,"",I24/H24) ->  | K24: 0
A25: ='Org structure'!A8 -> Vote 07 - Econominc Development And Planning | C25: =SUM(C26:C27) -> 76997179.88 | D25: 54287555 | E25: 54287555 | F25: 15526.6 | G25: 15526.6 | H25: 4523960 | I25: =G25-H25 -> -4508433.4 | J25: =IF(I25=0,"",I25/H25) -> -0.9965679184 | K25: =SUM(K26:K27) -> 54287555
A26: ='Org structure'!E22 -> 07.1 - Project Management Unit | C26: 68341173.79 | D26: 51769000 | E26: 51769000 | F26: 0 | G26: 0 | H26: 4314083 | I26: =G26-H26 -> -4314083 | J26: =IF(I26=0,"",I26/H26) -> -1 | K26: 51769000
A27: ='Org structure'!E23 -> 07.2 - Economic Development And Planning | C27: 8656006.09 | D27: 2518555 | E27: 2518555 | F27: 15526.6 | G27: 15526.6 | H27: 209877 | I27: =G27-H27 -> -194350.4 | J27: =IF(I27=0,"",I27/H27) -> -0.9260204787 | K27: 2518555
A28: ='Org structure'!A9 -> Vote 08 - | C28: 0 | D28: 0 | E28: 0 | F28: 0 | G28: 0 | H28: 0 | I28: 0 | K28: 0
A29: ='Org structure'!A10 -> Vote 09 - | C29: 0 | D29: 0 | E29: 0 | F29: 0 | G29: 0 | H29: 0 | I29: 0 | K29: 0
A30: ='Org structure'!A11 -> Vote 10 - | C30: 0 | D30: 0 | E30: 0 | F30: 0 | G30: 0 | H30: 0 | I30: 0 | K30: 0
A31: ='Org structure'!A12 -> Vote 11 - | C31: 0 | D31: 0 | E31: 0 | F31: 0 | G31: 0 | H31: 0 | I31: 0 | K31: 0
A32: ='Org structure'!A13 -> Vote 12 - | C32: 0 | D32: 0 | E32: 0 | F32: 0 | G32: 0 | H32: 0 | I32: 0 | K32: 0
A33: ='Org structure'!A14 -> Vote 13 - | C33: 0 | D33: 0 | E33: 0 | F33: 0 | G33: 0 | H33: 0 | I33: =G33-H33 -> 0 | J33: =IF(I33=0,"",I33/H33) ->  | K33: 0
A34: ='Org structure'!A15 -> Vote 14 - | C34: 0 | D34: 0 | E34: 0 | F34: 0 | G34: 0 | H34: 0 | I34: 0 | K34: 0
A35: ='Org structure'!A16 -> Vote 15 - Other | C35: 0 | D35: 0 | E35: 0 | F35: 0 | G35: 0 | H35: 0 | I35: 0 | K35: 0
A36: Total Revenue by Vote | B36: 2 | C36: =C6+C8+C10+C12+C14+C20+C25+C28+C29+C30+C31+C32+C33+C34+C35 -> 469059459.6 | D36: 433591239 | E36: 433591239 | F36: 66292875.37 | G36: 66292875.37 | H36: 36132585 | I36: 30160290.37 | J36: 0.8347116701 | K36: =K6+K8+K10+K12+K14+K20+K25+K28+K29+K30+K31+K32+K33+K34+K35 -> 433591239
I37: 0
A38: Expenditure by Vote | B38: 1 | I38: 0
A39: ='Org structure'!A2 -> Vote 01 - Executive & Council | C39: =SUM(C40:C40) -> 21767091.31 | D39: 25208466 | E39: 25208466 | F39: 1508631.5 | G39: 1508631.5 | H39: 2100735 | I39: -592103.5 | J39: -0.2818553982 | K39: =SUM(K40:K40) -> 25208466
A40: ='Org structure'!E3 -> 01.1 - Council General | C40: 21767091.31 | D40: 25208466 | E40: 25208466 | F40: 1508631.5 | G40: 1508631.5 | H40: 2100735 | I40: =G40-H40 -> -592103.5 | J40: =IF(I40=0,"",I40/H40) -> -0.2818553982 | K40: 25208466
A41: ='Org structure'!A3 -> Vote 02 - Finance And Administration | C41: =SUM(C42:C42) -> 50638725.7 | D41: 48854655 | E41: 48854655 | F41: 3909455.77 | G41: 3909455.77 | H41: 4071237 | I41: -161781.23 | J41: -0.03973761046 | K41: =SUM(K42:K42) -> 48854655
A42: ='Org structure'!E5 -> 02.1 - Municipal Manager | C42: 50638725.7 | D42: 48854655 | E42: 48854655 | F42: 3909455.77 | G42: 3909455.77 | H42: 4071237 | I42: =G42-H42 -> -161781.23 | J42: =IF(I42=0,"",I42/H42) -> -0.03973761046 | K42: 48854655
A43: ='Org structure'!A4 -> Vote 03 - Community Service | C43: =SUM(C44:C44) -> 23482496.29 | D43: 68648838 | E43: 68648838 | F43: 5192725.69 | G43: 5192725.69 | H43: 5720755 | I43: -528029.31 | J43: -0.0923006334 | K43: =SUM(K44:K44) -> 68648838
A44: ='Org structure'!E7 -> 03.1 - Finance Services Administration | C44: 23482496.29 | D44: 68648838 | E44: 68648838 | F44: 5192725.69 | G44: 5192725.69 | H44: 5720755 | I44: =G44-H44 -> -528029.31 | J44: =IF(I44=0,"",I44/H44) -> -0.0923006334 | K44: 68648838
A45: ='Org structure'!A5 -> Vote 04 - Public And Safety | C45: =SUM(C46:C46) -> 66295282.97 | D45: 83701715 | E45: 83701715 | F45: 6711688.84 | G45: 6711688.84 | H45: 6975171 | I45: =G45-H45 -> -263482.16 | J45: =IF(I45=0,"",I45/H45) -> -0.03777429399 | K45: =SUM(K46:K46) -> 83701715
A46: ='Org structure'!E9 -> 04.1 - Corporate Services Administration | C46: 66295282.97 | D46: 83701715 | E46: 83701715 | F46: 6711688.84 | G46: 6711688.84 | H46: 6975171 | I46: =G46-H46 -> -263482.16 | J46: =IF(I46=0,"",I46/H46) -> -0.03777429399 | K46: 83701715
A47: ='Org structure'!A6 -> Vote 05 - Waste Management | C47: =SUM(C48:C52) -> 117265569.4 | D47: 132490673 | E47: 132490673 | F47: 4902573.93 | G47: 4902573.93 | H47: 11040920 | I47: -6138346.07 | J47: -0.5559632775 | K47: =SUM(K48:K52) -> 132490673
A48: ='Org structure'!E11 -> 05.1 - Technical Services Administration | C48: 6731822.7 | D48: 7404611 | E48: 7404611 | F48: 524470.34 | G48: 524470.34 | H48: 617061 | I48: =G48-H48 -> -92590.66 | J48: =IF(I48=0,"",I48/H48) -> -0.1500510646 | K48: 7404611
A49: ='Org structure'!E12 -> 05.2 - Electrical Services | C49: 87893379.35 | D49: 105361037 | E49: 105361037 | F49: 3552258.14 | G49: 3552258.14 | H49: 8780098 | I49: =G49-H49 -> -5227839.86 | J49: =IF(I49=0,"",I49/H49) -> -0.5954193063 | K49: 105361037
A50: ='Org structure'!E13 -> 05.3 - Water Services | C50: 0 | D50: 0 | E50: 0 | F50: 0 | G50: 0 | H50: 0 | I50: =G50-H50 -> 0 | J50: =IF(I50=0,"",I50/H50) ->  | K50: 0
A51: ='Org structure'!E14 -> 05.4 - Sanitation Services | C51: 73367.34 | D51: 0 | E51: 0 | F51: 0 | G51: 0 | H51: 0 | I51: =G51-H51 -> 0 | J51: =IF(I51=0,"",I51/H51) ->  | K51: 0
A52: ='Org structure'!E15 -> 05.5 - Roads Services | C52: 22567000.01 | D52: 19725025 | E52: 19725025 | F52: 825845.45 | G52: 825845.45 | H52: 1643761 | I52: =G52-H52 -> -817915.55 | J52: =IF(I52=0,"",I52/H52) -> -0.4975878793 | K52: 19725025
A53: ='Org structure'!A7 -> Vote 06 - Roads Services | C53: =SUM(C54:C57) -> 51871414.03 | D53: 57463478 | E53: 57463478 | F53: 3404339.25 | G53: 3404339.25 | H53: 4788658 | I53: -1384318.75 | J53: -0.2890828182 | K53: =SUM(K54:K57) -> 57463478
A54: ='Org structure'!E17 -> 06.1 - Community Services Administration | C54: 27398281.18 | D54: 31983411 | E54: 31983411 | F54: 1726647.79 | G54: 1726647.79 | H54: 2665309 | I54: =G54-H54 -> -938661.21 | J54: =IF(I54=0,"",I54/H54) -> -0.352177256 | K54: 31983411
A55: ='Org structure'!E18 -> 06.2 - Traffic Services | C55: 19324785.13 | D55: 18257471 | E55: 18257471 | F55: 1633224.62 | G55: 1633224.62 | H55: 1521465 | I55: =G55-H55 -> 111759.62 | J55: =IF(I55=0,"",I55/H55) -> 0.07345526844 | K55: 18257471
A56: ='Org structure'!E19 -> 06.3 - Refuse | C56: 4891307.72 | D56: 6928876 | E56: 6928876 | F56: 14606.84 | G56: 14606.84 | H56: 577407 | I56: =G56-H56 -> -562800.16 | J56: =IF(I56=0,"",I56/H56) -> -0.9747026967 | K56: 6928876
A57: ='Org structure'!E20 -> 06.4 - Pound Services | C57: 257040 | D57: 293720 | E57: 293720 | F57: 29860 | G57: 29860 | H57: 24477 | I57: =G57-H57 -> 5383 | J57: =IF(I57=0,"",I57/H57) -> 0.2199207419 | K57: 293720
A58: ='Org structure'!A8 -> Vote 07 - Econominc Development And Planning | C58: =SUM(C59:C60) -> 18357436.04 | D58: 16534740 | E58: 16534740 | F58: 1040964.81 | G58: 1040964.81 | H58: 1377910 | I58: -336945.19 | J58: -0.2445335254 | K58: =SUM(K59:K60) -> 16534740
A59: ='Org structure'!E22 -> 07.1 - Project Management Unit | C59: 0 | D59: 2100000 | E59: 2100000 | F59: 34164 | G59: 34164 | H59: 175002 | I59: =G59-H59 -> -140838 | J59: =IF(I59=0,"",I59/H59) -> -0.804779374 | K59: 2100000
A60: ='Org structure'!E23 -> 07.2 - Economic Development And Planning | C60: 18357436.04 | D60: 14434740 | E60: 14434740 | F60: 1006800.81 | G60: 1006800.81 | H60: 1202908 | I60: =G60-H60 -> -196107.19 | J60: =IF(I60=0,"",I60/H60) -> -0.1630275881 | K60: 14434740
A61: ='Org structure'!A9 -> Vote 08 - | C61: 0 | D61: 0 | E61: 0 | F61: 0 | G61: 0 | H61: 0 | I61: 0 | K61: 0
A62: ='Org structure'!A10 -> Vote 09 - | C62: 0 | D62: 0 | E62: 0 | F62: 0 | G62: 0 | H62: 0 | I62: =G62-H62 -> 0 | J62: =IF(I62=0,"",I62/H62) ->  | K62: 0
A63: ='Org structure'!A11 -> Vote 10 - | C63: 0 | D63: 0 | E63: 0 | F63: 0 | G63: 0 | H63: 0 | I63: 0 | K63: 0
A64: ='Org structure'!A12 -> Vote 11 - | C64: 0 | D64: 0 | E64: 0 | F64: 0 | G64: 0 | H64: 0 | I64: 0 | K64: 0
A65: ='Org structure'!A13 -> Vote 12 - | C65: 0 | D65: 0 | E65: 0 | F65: 0 | G65: 0 | H65: 0 | I65: 0 | K65: 0
A66: ='Org structure'!A14 -> Vote 13 - | C66: 0 | D66: 0 | E66: 0 | F66: 0 | G66: 0 | H66: 0 | I66: 0 | K66: 0
A67: ='Org structure'!A15 -> Vote 14 - | C67: 0 | D67: 0 | E67: 0 | F67: 0 | G67: 0 | H67: 0 | I67: 0 | K67: 0
A68: ='Org structure'!A16 -> Vote 15 - Other | C68: 0 | D68: 0 | E68: 0 | F68: 0 | G68: 0 | H68: 0 | I68: =G68-H68 -> 0 | J68: =IF(I68=0,"",I68/H68) ->  | K68: 0
A69: Total Expenditure by Vote | B69: 2 | C69: =C39+C41+C43+C45+C47+C53+C58+C61+C62+C63+C64+C65+C66+C67+C68 -> 349678015.7 | D69: 432902565 | E69: 432902565 | F69: 26670379.79 | G69: 26670379.79 | H69: 36075386 | I69: -9405006.21 | J69: -0.2607042433 | K69: =K39+K41+K43+K45+K47+K53+K58+K61+K62+K63+K64+K65+K66+K67+K68 -> 432902565
I70: 0 | L70: =#REF!-#REF! ->  | M70: =#REF!-#REF! ->  | N70: =#REF!-#REF! ->  | O70: =#REF!-#REF! ->  | P70: =#REF!-#REF! ->  | Q70: =#REF!-#REF! ->  | R70: =#REF!-#REF! ->  | S70: =#REF!-#REF! ->  | T70: =#REF!-#REF! ->  | U70: =#REF!-#REF! ->  | V70: =#REF!-#REF! ->  | W70: =#REF!-#REF! -> 
A71: =result -> Surplus/ (Deficit) for the year | B71: 2 | C71: =C36-C69 -> 119381443.9 | D71: 688674 | E71: 688674 | F71: 39622495.58 | G71: 39622495.58 | H71: 57199 | I71: 39565296.58 | J71: 691.713082 | K71: =K36-K69 -> 688674
A72: =head27a -> References
A73: 1. Insert 'Vote'; e.g. Department, if different to standard structure
A74: 2. Must reconcile to Financial Performance ('Revenue and Expenditure by Standard Classification' and 'Revenue and Expenditure')
A75: 3. Assign share in 'associate' to relevant Vote
A77: check revenue
A78: check expenditure

Sheet C4-FinPerf RE
A1: =muni& " - "&S71B& " - "&date -> LIM351 Blouberg - Table C4 Monthly Budget Statement - Financial Performance (revenue and expenditure) - M01 July
A2: =desc -> Description | B2: =head27 -> Ref | C2: =Head1 -> 2023/24 | D2: =Head2 -> Budget Year 2024/25
C3: =Head5 -> Audited Outcome | D3: =Head6 -> Original Budget | E3: =Head7 -> Adjusted Budget | F3: =Head38 -> Monthly actual | G3: =Head39 -> YearTD actual | H3: =Head40 -> YearTD budget | I3: =Head41 -> YTD variance | J3: =Head41 -> YTD variance | K3: =Head8 -> Full Year Forecast
A4: R thousands | J4: %
A5: Revenue
A6: Exchange Revenue
A7: Service charges - Electricity | C7: 35449328.96 | D7: 55308333 | E7: 55308333 | F7: 2786741.02 | G7: 2786741.02 | H7: 4609024 | I7: =G7-H7 -> -1822282.98 | J7: =IF(I7=0,"",I7/H7) -> -0.3953728555 | K7: 55308333
A8: Service charges - Water | C8: 0 | D8: 0 | E8: 0 | F8: 260367 | G8: 260367 | H8: 0 | I8: 260367 | K8: 0
A9: Service charges - Waste Water Management | C9: 0 | D9: 0 | E9: 0 | F9: 2562 | G9: 2562 | H9: 0 | I9: 2562 | K9: 0
A10: Service charges - Waste management | C10: 2069243.52 | D10: 2650000 | E10: 2650000 | F10: 172436.96 | G10: 172436.96 | H10: 220833 | I10: -48396.04 | J10: -0.21915221 | K10: 2650000
A11: Sale of Goods and Rendering of Services | C11: 604998.04 | D11: 416090 | E11: 416090 | F11: 22878.91 | G11: 22878.91 | H11: 34672 | I11: -11793.09 | J11: -0.3401329603 | K11: 416090
A12: Agency services | C12: 0 | D12: 314700 | E12: 314700 | F12: 0 | G12: 0 | H12: 26225 | I12: -26225 | J12: -1 | K12: 314700
A13: Interest | I13: 0
A14: Interest earned from Receivables | C14: 1065528.1 | D14: 1500000 | E14: 1500000 | F14: 178182.87 | G14: 178182.87 | H14: 125000 | I14: 53182.87 | J14: 0.42546296 | K14: 1500000
A15: Interest from Current and Non Current Assets | C15: 7720659.9 | D15: 8063596 | E15: 8063596 | F15: 375150.26 | G15: 375150.26 | H15: 671966 | I15: -296815.74 | J15: -0.4417124378 | K15: 8063596
A16: Dividends | I16: 0
A17: Rent on Land | C17: 604906.35 | D17: 926053 | E17: 926053 | F17: 73409.01 | G17: 73409.01 | H17: 77171 | I17: -3761.99 | J17: -0.04874875277 | K17: 926053
A18: Rental from Fixed Assets | C18: 0 | D18: 0 | E18: 0 | F18: 0 | G18: 0 | H18: 0 | I18: 0 | K18: 0
A19: Licence and permits | C19: 1223369.91 | D19: 5245000 | E19: 5245000 | F19: 55632.62 | G19: 55632.62 | H19: 437082 | I19: -381449.38 | J19: -0.872718117 | K19: 5245000
A20: Operational Revenue | C20: 8797485.81 | D20: 2294857 | E20: 2294857 | F20: 0 | G20: 0 | H20: 191237 | I20: -191237 | J20: -1 | K20: 2294857
A21: Non-Exchange Revenue | I21: 0
A22: Property rates | C22: 68960730.64 | D22: 34586407 | E22: 34586407 | F22: 62184653.55 | G22: 62184653.55 | H22: 2882195 | I22: 59302458.55 | J22: 20.5754498 | K22: 34586407
A23: Surcharges and Taxes | I23: 0
A24: Fines, penalties and forfeits | C24: 0 | D24: 2801725 | E24: 2801725 | F24: 24750 | G24: 24750 | H24: 233476 | I24: -208726 | J24: -0.8939933869 | K24: 2801725
A25: Licence and permits | C25: 2774533.16 | D25: 0 | E25: 0 | F25: 55632.62 | G25: 55632.62 | H25: 0 | I25: 55632.62 | K25: 0
A26: Transfers and subsidies - Operational | C26: 241376084 | D26: 250671000 | E26: 250671000 | F26: 0 | G26: 0 | H26: 20889249 | I26: -20889249 | J26: -1 | K26: 250671000
A27: Interest | C27: 1396171.29 | D27: 1328478 | E27: 1328478 | F27: 100478.55 | G27: 100478.55 | H27: 110706 | I27: -10227.45 | J27: -0.09238388163 | K27: 1328478
A28: Fuel Levy | I28: 0
A29: Operational Revenue | C29: 0 | D29: 0 | E29: 0 | F29: 0 | G29: 0 | H29: 0 | I29: 0 | K29: 0
A30: Gains on disposal of Assets | C30: 1559867.83 | D30: 0 | E30: 0 | F30: 0 | G30: 0 | H30: 0 | I30: 0 | K30: 0
A31: Other Gains | C31: 0 | D31: 0 | E31: 0 | F31: 0 | G31: 0 | H31: 0 | I31: 0 | K31: 0
A32: Discontinued Operations | I32: 0
A33: Total Revenue (excluding capital transfers and contributions) | C33: =SUM(C7:C20)+SUM(C22:C32) -> 373602907.5 | D33: 366106239 | E33: 366106239 | F33: 66292875.37 | G33: 66292875.37 | H33: 30508836 | I33: =G33-H33 -> 35784039.37 | J33: 1.172907395 | K33: =SUM(K7:K20)+SUM(K22:K32) -> 366106239
A34: Expenditure By Type
A35: Employee related costs | C35: 132264727.5 | D35: 140755081 | E35: 140755081 | F35: 11061325.67 | G35: 11061325.67 | H35: 11729660 | I35: =G35-H35 -> -668334.33 | J35: =IF(I35=0,"",I35/H35) -> -0.05697815026 | K35: 140755081
A36: Remuneration of councillors | C36: 19212717.03 | D36: 21997665 | E36: 21997665 | F36: 1508631.5 | G36: 1508631.5 | H36: 1833152 | I36: -324520.5 | J36: -0.1770286916 | K36: 21997665
A37: Bulk purchases - electricity | C37: 58974105.39 | D37: 61440000 | E37: 61440000 | F37: 2714988.88 | G37: 2714988.88 | H37: 5120000 | I37: -2405011.12 | J37: -0.4697287344 | K37: 61440000
A38: Inventory consumed | C38: 4752899.22 | D38: 5337183 | E38: 5337183 | F38: 147517.08 | G38: 147517.08 | H38: 444768 | I38: -297250.92 | J38: -0.6683280272 | K38: 5337183
A39: Debt impairment | C39: 0 | D39: 49170559 | E39: 49170559 | F39: 0 | G39: 0 | H39: 4097548 | I39: -4097548 | J39: -1 | K39: 49170559
A40: Depreciation and amortisation | C40: 33819527.29 | D40: 33513635 | E40: 33513635 | F40: 0 | G40: 0 | H40: 2792817 | I40: -2792817 | J40: -1 | K40: 33513635
A41: Interest | C41: 4441877.01 | D41: 0 | E41: 0 | F41: 0 | G41: 0 | H41: 0 | I41: 0 | K41: 0
A42: Contracted services | C42: 47356874.34 | D42: 54287316 | E42: 54287316 | F42: 2910527.58 | G42: 2910527.58 | H42: 4523977 | I42: -1613449.42 | J42: -0.3566440369 | K42: 54287316
A43: Transfers and subsidies | C43: 0 | D43: 0 | E43: 0 | F43: 0 | G43: 0 | H43: 0 | I43: 0 | K43: 0
A44: Irrecoverable debts written off | C44: -9057591.09 | D44: 0 | E44: 0 | F44: 0 | G44: 0 | H44: 0 | I44: 0 | K44: 0
A45: Operational costs | C45: 57016689.05 | D45: 66401126 | E45: 66401126 | F45: 8327389.08 | G45: 8327389.08 | H45: 5533464 | I45: 2793925.08 | J45: 0.504914296 | K45: 66401126
A46: Losses on Disposal of Assets | C46: 896190.01 | D46: 0 | E46: 0 | F46: 0 | G46: 0 | H46: 0 | I46: 0 | K46: 0
A47: Other Losses | C47: 0 | D47: 0 | E47: 0 | F47: 0 | G47: 0 | H47: 0 | I47: 0 | K47: 0
A48: Total Expenditure | C48: =SUM(C35:C47) -> 349678015.7 | D48: 432902565 | E48: 432902565 | F48: 26670379.79 | G48: 26670379.79 | H48: 36075386 | I48: =G48-H48 -> -9405006.21 | J48: -0.2607042433 | K48: =SUM(K35:K47) -> 432902565
A49: Surplus/(Deficit) | C49: =C33-C48 -> 23924891.79 | D49: -66796326 | E49: -66796326 | F49: 39622495.58 | G49: 39622495.58 | H49: =H33-H48 -> -5566550 | I49: =I33-I48 -> 45189045.58 | J49: -8.117962756 | K49: =K33-K48 -> -66796326
A50: Transfers and subsidies - capital (monetary allocations) | C50: 95456552.07 | D50: 67485000 | E50: 67485000 | F50: 0 | G50: 0 | H50: 5623749 | I50: =G50-H50 -> -5623749 | J50: -1 | K50: 67485000
A51: Transfers and subsidies - capital (in-kind) | I51: =G51-H51 -> 0
A52: Surplus/(Deficit) after capital transfers & contributions | C52: =C49+SUM(C50:C51) -> 119381443.9 | D52: 688674 | E52: 688674 | F52: 39622495.58 | G52: 39622495.58 | H52: 57199 | I52: =G52-H52 -> 39565296.58 | J52: 691.713082 | K52: =K49+SUM(K50:K51) -> 688674
A53: Income Tax | I53: =G53-H53 -> 0
A54: Surplus/(Deficit) after income tax | C54: =C52-C53 -> 119381443.9 | D54: 688674 | E54: 688674 | F54: 39622495.58 | G54: 39622495.58 | H54: 57199 | I54: 39565296.58 | J54: 691.713082 | K54: =K52-K53 -> 688674
A55: Share of Surplus/Deficit attributable to Joint Venture | I55: 0
A56: Share of Surplus/Deficit attributable to Minorities | I56: 0
A57: Surplus/(Deficit) attributable to municipality | C57: =SUM(C54:C56) -> 119381443.9 | D57: 688674 | E57: 688674 | F57: 39622495.58 | G57: 39622495.58 | H57: 57199 | I57: 39565296.58 | J57: 691.713082 | K57: =SUM(K54:K56) -> 688674
A58: Share of Surplus/Deficit attributable to Associate | I58: 0
A59: Intercompany/Parent subsidiary transactions | I59: 0
A60: Surplus/ (Deficit) for the year | C60: =SUM(C57:C59) -> 119381443.9 | D60: 688674 | E60: 688674 | F60: 39622495.58 | G60: 39622495.58 | H60: 57199 | I60: 39565296.58 | J60: 691.713082 | K60: =SUM(K57:K59) -> 688674
A61: =head27a -> References
A62: 1. Material variances to be explained on Table SC1
A65: =A33&" including capital transfers/contributions etc" -> Total Revenue (excluding capital transfers and contributions) including capital transfers/contributions etc | C65: =C33+SUM(C50:C51) -> 469059459.6 | D65: 433591239 | E65: 433591239 | F65: 66292875.37 | G65: 66292875.37 | H65: 36132585 | K65: =K33+SUM(K50:K51) -> 433591239

Sheet C5-Capex
A1: =muni& " - "&S71D& " - "&date -> LIM351 Blouberg - Table C5 Monthly Budget Statement - Capital Expenditure (municipal vote, functional classification and funding) - M01 July
A2: =Vdesc -> Vote Description | B2: =head27 -> Ref | C2: =Head1 -> 2023/24 | D2: =Head2 -> Budget Year 2024/25
C3: =Head5 -> Audited Outcome | D3: =Head6 -> Original Budget | E3: =Head7 -> Adjusted Budget | F3: =Head38 -> Monthly actual | G3: =Head39 -> YearTD actual | H3: =Head40 -> YearTD budget | I3: =Head41 -> YTD variance | J3: =Head41 -> YTD variance | K3: =Head8 -> Full Year Forecast
A4: R thousands | B4: 1 | J4: %
A5: Multi-Year expenditure appropriation | B5: 2
A6: ='Org structure'!A2 -> Vote 01 - Executive & Council | C6: ='C5C'!C7 -> 0 | D6: ='C5C'!D7 -> 0 | E6: ='C5C'!E7 -> 0 | F6: ='C5C'!F7 -> 0 | G6: ='C5C'!G7 -> 0 | H6: ='C5C'!H7 -> 0 | I6: =G6-H6 -> 0 | J6: =IF(I6=0,"",I6/H6) ->  | K6: ='C5C'!K7 -> 0
A7: ='Org structure'!A3 -> Vote 02 - Finance And Administration | C7: ='C5C'!C8 -> 0 | D7: ='C5C'!D8 -> 0 | E7: ='C5C'!E8 -> 0 | F7: ='C5C'!F8 -> 0 | G7: ='C5C'!G8 -> 0 | H7: ='C5C'!H8 -> 0 | I7: 0 | K7: ='C5C'!K8 -> 0
A8: ='Org structure'!A4 -> Vote 03 - Community Service | C8: ='C5C'!C9 -> 0 | D8: ='C5C'!D9 -> 0 | E8: ='C5C'!E9 -> 0 | F8: ='C5C'!F9 -> 0 | G8: ='C5C'!G9 -> 0 | H8: ='C5C'!H9 -> 0 | I8: 0 | K8: ='C5C'!K9 -> 0
A9: ='Org structure'!A5 -> Vote 04 - Public And Safety | C9: ='C5C'!C10 -> 0 | D9: ='C5C'!D10 -> 0 | E9: ='C5C'!E10 -> 0 | F9: ='C5C'!F10 -> 0 | G9: ='C5C'!G10 -> 0 | H9: ='C5C'!H10 -> 0 | I9: 0 | K9: ='C5C'!K10 -> 0
A10: ='Org structure'!A6 -> Vote 05 - Waste Management | C10: ='C5C'!C11 -> 0 | D10: ='C5C'!D11 -> 0 | E10: ='C5C'!E11 -> 0 | F10: ='C5C'!F11 -> 0 | G10: ='C5C'!G11 -> 0 | H10: ='C5C'!H11 -> 0 | I10: 0 | K10: ='C5C'!K11 -> 0
A11: ='Org structure'!A7 -> Vote 06 - Roads Services | C11: ='C5C'!C12 -> 0 | D11: ='C5C'!D12 -> 0 | E11: ='C5C'!E12 -> 0 | F11: ='C5C'!F12 -> 0 | G11: ='C5C'!G12 -> 0 | H11: ='C5C'!H12 -> 0 | I11: 0 | K11: ='C5C'!K12 -> 0
A12: ='Org structure'!A8 -> Vote 07 - Econominc Development And Planning | C12: ='C5C'!C13 -> 0 | D12: ='C5C'!D13 -> 0 | E12: ='C5C'!E13 -> 0 | F12: ='C5C'!F13 -> 0 | G12: ='C5C'!G13 -> 0 | H12: ='C5C'!H13 -> 0 | I12: 0 | K12: ='C5C'!K13 -> 0
A13: ='Org structure'!A9 -> Vote 08 - | C13: ='C5C'!C14 -> 0 | D13: ='C5C'!D14 -> 0 | E13: ='C5C'!E14 -> 0 | F13: ='C5C'!F14 -> 0 | G13: ='C5C'!G14 -> 0 | H13: ='C5C'!H14 -> 0 | I13: =G13-H13 -> 0 | J13: =IF(I13=0,"",I13/H13) ->  | K13: ='C5C'!K14 -> 0
A14: ='Org structure'!A10 -> Vote 09 - | C14: ='C5C'!C15 -> 0 | D14: ='C5C'!D15 -> 0 | E14: ='C5C'!E15 -> 0 | F14: ='C5C'!F15 -> 0 | G14: ='C5C'!G15 -> 0 | H14: ='C5C'!H15 -> 0 | I14: 0 | K14: ='C5C'!K15 -> 0
A15: ='Org structure'!A11 -> Vote 10 - | C15: ='C5C'!C16 -> 0 | D15: ='C5C'!D16 -> 0 | E15: ='C5C'!E16 -> 0 | F15: ='C5C'!F16 -> 0 | G15: ='C5C'!G16 -> 0 | H15: ='C5C'!H16 -> 0 | I15: 0 | K15: ='C5C'!K16 -> 0
A16: ='Org structure'!A12 -> Vote 11 - | C16: ='C5C'!C17 -> 0 | D16: ='C5C'!D17 -> 0 | E16: ='C5C'!E17 -> 0 | F16: ='C5C'!F17 -> 0 | G16: ='C5C'!G17 -> 0 | H16: ='C5C'!H17 -> 0 | I16: 0 | K16: ='C5C'!K17 -> 0
A17: ='Org structure'!A13 -> Vote 12 - | C17: ='C5C'!C18 -> 0 | D17: ='C5C'!D18 -> 0 | E17: ='C5C'!E18 -> 0 | F17: ='C5C'!F18 -> 0 | G17: ='C5C'!G18 -> 0 | H17: ='C5C'!H18 -> 0 | I17: 0 | K17: ='C5C'!K18 -> 0
A18: ='Org structure'!A14 -> Vote 13 - | C18: ='C5C'!C19 -> 0 | D18: ='C5C'!D19 -> 0 | E18: ='C5C'!E19 -> 0 | F18: ='C5C'!F19 -> 0 | G18: ='C5C'!G19 -> 0 | H18: ='C5C'!H19 -> 0 | I18: =G18-H18 -> 0 | J18: =IF(I18=0,"",I18/H18) ->  | K18: ='C5C'!K19 -> 0
A19: ='Org structure'!A15 -> Vote 14 - | C19: ='C5C'!C20 -> 0 | D19: ='C5C'!D20 -> 0 | E19: ='C5C'!E20 -> 0 | F19: ='C5C'!F20 -> 0 | G19: ='C5C'!G20 -> 0 | H19: ='C5C'!H20 -> 0 | I19: =G19-H19 -> 0 | J19: =IF(I19=0,"",I19/H19) ->  | K19: ='C5C'!K20 -> 0
A20: ='Org structure'!A16 -> Vote 15 - Other | C20: ='C5C'!C21 -> 0 | D20: ='C5C'!D21 -> 0 | E20: ='C5C'!E21 -> 0 | F20: ='C5C'!F21 -> 0 | G20: ='C5C'!G21 -> 0 | H20: ='C5C'!H21 -> 0 | I20: =G20-H20 -> 0 | J20: =IF(I20=0,"",I20/H20) ->  | K20: ='C5C'!K21 -> 0
A21: Total Capital Multi-year expenditure | B21: 4,7 | C21: =SUM(C6:C20) -> 0 | D21: =SUM(D6:D20) -> 0 | E21: 0 | F21: 0 | G21: 0 | H21: 0 | I21: 0 | J21: =IF(I21=0,"",I21/H21) ->  | K21: =SUM(K6:K20) -> 0
A23: Single Year expenditure appropriation | B23: 2
A24: ='C5C'!A26 -> Vote 01 - Executive & Council | C24: ='C5C'!C26 -> 0 | D24: ='C5C'!D26 -> 0 | E24: ='C5C'!E26 -> 0 | F24: ='C5C'!F26 -> 0 | G24: ='C5C'!G26 -> 0 | H24: ='C5C'!H26 -> 0 | I24: =G24-H24 -> 0 | J24: =IF(I24=0,"",I24/H24) ->  | K24: ='C5C'!K26 -> 0
A25: ='C5C'!A27 -> Vote 02 - Finance And Administration | C25: ='C5C'!C27 -> 0 | D25: ='C5C'!D27 -> 0 | E25: ='C5C'!E27 -> 0 | F25: ='C5C'!F27 -> 0 | G25: ='C5C'!G27 -> 0 | H25: ='C5C'!H27 -> 0 | I25: 0 | K25: ='C5C'!K27 -> 0
A26: ='C5C'!A29 -> Vote 03 - Community Service | C26: ='C5C'!C29 -> 0 | D26: ='C5C'!D29 -> 0 | E26: ='C5C'!E29 -> 0 | F26: ='C5C'!F29 -> 0 | G26: ='C5C'!G29 -> 0 | H26: ='C5C'!H29 -> 0 | I26: 0 | K26: ='C5C'!K29 -> 0
A27: ='C5C'!A30 -> Vote 04 - Public And Safety | C27: ='C5C'!C30 -> 209230.94 | D27: ='C5C'!D30 -> 5600000 | E27: ='C5C'!E30 -> 5600000 | F27: ='C5C'!F30 -> 0 | G27: ='C5C'!G30 -> 0 | H27: ='C5C'!H30 -> 466669 | I27: -466669 | J27: -1 | K27: ='C5C'!K30 -> 5600000
A28: ='C5C'!A32 -> Vote 05 - Waste Management | C28: ='C5C'!C32 -> 24979542.16 | D28: ='C5C'!D32 -> 18689531 | E28: ='C5C'!E32 -> 18689531 | F28: ='C5C'!F32 -> 0 | G28: ='C5C'!G32 -> 0 | H28: ='C5C'!H32 -> 1557463 | I28: -1557463 | J28: -1 | K28: ='C5C'!K32 -> 18689531
A29: ='C5C'!A35 -> Vote 06 - Roads Services | C29: ='C5C'!C35 -> 0 | D29: ='C5C'!D35 -> 250000 | E29: ='C5C'!E35 -> 250000 | F29: ='C5C'!F35 -> 0 | G29: ='C5C'!G35 -> 0 | H29: ='C5C'!H35 -> 20834 | I29: -20834 | J29: -1 | K29: ='C5C'!K35 -> 250000
A30: ='C5C'!A38 -> Vote 07 - Econominc Development And Planning | C30: ='C5C'!C38 -> 59389874.32 | D30: ='C5C'!D38 -> 50369000 | E30: ='C5C'!E38 -> 50369000 | F30: ='C5C'!F38 -> 6394127.53 | G30: ='C5C'!G38 -> 6394127.53 | H30: ='C5C'!H38 -> 4197419 | I30: 2196708.53 | J30: 0.5233474499 | K30: ='C5C'!K38 -> 50369000
A31: ='Org structure'!A9 -> Vote 08 - | C31: ='C5C'!C41 -> 0 | D31: ='C5C'!D41 -> 0 | E31: ='C5C'!E41 -> 0 | F31: ='C5C'!F41 -> 0 | G31: ='C5C'!G41 -> 0 | H31: ='C5C'!H41 -> 0 | I31: ='C5C'!I41 -> 0 | J31: =IF(I31=0,"",I31/H31) ->  | K31: ='C5C'!K41 -> 0
A32: ='Org structure'!A10 -> Vote 09 - | C32: ='C5C'!C42 -> 0 | D32: ='C5C'!D42 -> 0 | E32: ='C5C'!E42 -> 0 | F32: ='C5C'!F42 -> 0 | G32: ='C5C'!G42 -> 0 | H32: ='C5C'!H42 -> 0 | I32: ='C5C'!I42 -> 0 | K32: ='C5C'!K42 -> 0
A33: ='Org structure'!A11 -> Vote 10 - | C33: ='C5C'!C43 -> 0 | D33: ='C5C'!D43 -> 0 | E33: ='C5C'!E43 -> 0 | F33: ='C5C'!F43 -> 0 | G33: ='C5C'!G43 -> 0 | H33: ='C5C'!H43 -> 0 | I33: ='C5C'!I43 -> 0 | K33: ='C5C'!K43 -> 0
A34: ='Org structure'!A12 -> Vote 11 - | C34: ='C5C'!C44 -> 0 | D34: ='C5C'!D44 -> 0 | E34: ='C5C'!E44 -> 0 | F34: ='C5C'!F44 -> 0 | G34: ='C5C'!G44 -> 0 | H34: ='C5C'!H44 -> 0 | I34: ='C5C'!I44 -> 0 | K34: ='C5C'!K44 -> 0
A35: ='Org structure'!A13 -> Vote 12 - | C35: ='C5C'!C45 -> 0 | D35: ='C5C'!D45 -> 0 | E35: ='C5C'!E45 -> 0 | F35: ='C5C'!F45 -> 0 | G35: ='C5C'!G45 -> 0 | H35: ='C5C'!H45 -> 0 | I35: ='C5C'!I45 -> 0 | K35: ='C5C'!K45 -> 0
A36: ='Org structure'!A14 -> Vote 13 - | C36: ='C5C'!C46 -> 0 | D36: ='C5C'!D46 -> 0 | E36: ='C5C'!E46 -> 0 | F36: ='C5C'!F46 -> 0 | G36: ='C5C'!G46 -> 0 | H36: ='C5C'!H46 -> 0 | I36: ='C5C'!I46 -> 0 | K36: ='C5C'!K46 -> 0
A37: ='Org structure'!A15 -> Vote 14 - | C37: ='C5C'!C47 -> 0 | D37: ='C5C'!D47 -> 0 | E37: ='C5C'!E47 -> 0 | F37: ='C5C'!F47 -> 0 | G37: ='C5C'!G47 -> 0 | H37: ='C5C'!H47 -> 0 | I37: ='C5C'!I47 -> 0 | K37: ='C5C'!K47 -> 0
A38: ='Org structure'!A16 -> Vote 15 - Other | C38: ='C5C'!C48 -> 0 | D38: ='C5C'!D48 -> 0 | E38: ='C5C'!E48 -> 0 | F38: ='C5C'!F48 -> 0 | G38: ='C5C'!G48 -> 0 | H38: ='C5C'!H48 -> 0 | I38: ='C5C'!I48 -> 0 | K38: ='C5C'!K48 -> 0
A39: Total Capital single-year expenditure | B39: 4 | C39: =SUM(C24:C38) -> 84578647.42 | D39: 74908531 | E39: 74908531 | F39: 6394127.53 | G39: 6394127.53 | H39: 6242385 | I39: 151742.53 | J39: 0.02430842218 | K39: =SUM(K24:K38) -> 74908531
A40: Total Capital Expenditure | C40: =C39+C21 -> 84578647.42 | D40: 74908531 | E40: 74908531 | F40: 6394127.53 | G40: 6394127.53 | H40: 6242385 | I40: 151742.53 | J40: =IF(I40=0,"",I40/H40) -> 0.02430842218 | K40: =K39+K21 -> 74908531
A42: Capital Expenditure - Functional Classification
A43: Governance and administration | C43: =SUM(C44:C46) -> 209230.94 | D43: 5600000 | E43: 5600000 | F43: 0 | G43: 0 | H43: 466669 | I43: =G43-H43 -> -466669 | J43: =IF(I43=0,"",I43/H43) -> -1 | K43: =SUM(K44:K46) -> 5600000
A44: Executive and council | C44: 0 | D44: 0 | E44: 0 | F44: 0 | G44: 0 | H44: 0 | I44: 0 | J44: =IF(I44=0,"",I44/H44) ->  | K44: 0
A45: Finance and administration | C45: 209230.94 | D45: 5600000 | E45: 5600000 | F45: 0 | G45: 0 | H45: 466669 | I45: -466669 | J45: -1 | K45: 5600000
A46: Internal audit | I46: 0
A47: Community and public safety | C47: =SUM(C48:C52) -> 0 | D47: 0 | E47: 0 | F47: 0 | G47: 0 | H47: 0 | I47: 0 | K47: =SUM(K48:K52) -> 0
A48: Community and social services | I48: 0
A49: Sport and recreation | I49: 0
A50: Public safety | C50: 0 | D50: 0 | E50: 0 | F50: 0 | G50: 0 | H50: 0 | I50: 0 | K50: 0
A51: Housing | I51: 0
A52: Health | I52: 0
A53: Economic and environmental services | C53: =SUM(C54:C56) -> 63211634.15 | D53: 66085000 | E53: 66085000 | F53: 6394127.53 | G53: 6394127.53 | H53: 5507086 | I53: 887041.53 | J53: 0.1610727579 | K53: =SUM(K54:K56) -> 66085000
A54: Planning and development | C54: 59389874.32 | D54: 50369000 | E54: 50369000 | F54: 6394127.53 | G54: 6394127.53 | H54: 4197419 | I54: 2196708.53 | J54: 0.5233474499 | K54: 50369000
A55: Road transport | C55: 3821759.83 | D55: 15716000 | E55: 15716000 | F55: 0 | G55: 0 | H55: 1309667 | I55: -1309667 | J55: -1 | K55: 15716000
A56: Environmental protection | I56: 0
A57: Trading services | C57: =SUM(C58:C61) -> 21157782.33 | D57: 3223531 | E57: 3223531 | F57: 0 | G57: 0 | H57: 268630 | I57: -268630 | J57: -1 | K57: =SUM(K58:K61) -> 3223531
A58: Energy sources | C58: 21157782.33 | D58: 2973531 | E58: 2973531 | F58: 0 | G58: 0 | H58: 247796 | I58: -247796 | J58: -1 | K58: 2973531
A59: Water management | I59: 0
A60: Waste water management | I60: 0
A61: Waste management | C61: 0 | D61: 250000 | E61: 250000 | F61: 0 | G61: 0 | H61: 20834 | I61: -20834 | J61: -1 | K61: 250000
A62: Other | I62: 0
A63: Total Capital Expenditure - Functional Classification | B63: 3 | C63: =C43+C47+C53+C57+C62 -> 84578647.42 | D63: =D43+D47+D53+D57+D62 -> 74908531 | E63: 74908531 | F63: 6394127.53 | G63: 6394127.53 | H63: 6242385 | I63: 151742.53 | J63: 0.02430842218 | K63: =K43+K47+K53+K57+K62 -> 74908531
A65: Funded by:
A66: National Government | C66: 83484427.59 | D66: 65785000 | E66: 65785000 | F66: 6394127.53 | G66: 6394127.53 | H66: 5482086 | I66: =G66-H66 -> 912041.53 | J66: =IF(I66=0,"",I66/H66) -> 0.1663676071 | K66: 65785000
A67: Provincial Government | I67: 0
A68: District Municipality | I68: 0
A69: Transfers and subsidies - capital (monetary allocations) (Nat / Prov Departm Agencies, Households, Non-profit Institutions, Private Enterprises, Public Corporatons, Higher Educ Institutions) | C69: 0 | D69: 0 | E69: 0 | F69: 0 | G69: 0 | H69: 0 | I69: 0 | K69: 0
A70: Transfers recognised - capital | C70: =SUM(C66:C69) -> 83484427.59 | D70: 65785000 | E70: 65785000 | F70: 6394127.53 | G70: 6394127.53 | H70: 5482086 | I70: 912041.53 | J70: 0.1663676071 | K70: =SUM(K66:K69) -> 65785000
A72: Borrowing | B72: 6 | C72: 0 | D72: 0 | E72: 0 | F72: 0 | G72: 0 | H72: 0 | I72: 0 | K72: 0
A73: Internally generated funds | C73: 1094219.83 | D73: 9123531 | E73: 9123531 | F73: 0 | G73: 0 | H73: 760299 | I73: -760299 | J73: -1 | K73: 9123531
A74: Total Capital Funding | C74: =+C70+C72+C73 -> 84578647.42 | D74: 74908531 | E74: 74908531 | F74: 6394127.53 | G74: 6394127.53 | H74: 6242385 | I74: 151742.53 | J74: 0.02430842218 | K74: =+K70+K72+K73 -> 74908531
A75: =head27a -> References
A76: 1. Municipalities may choose to appropriate for capital expenditure for three years or for one year (if one year appropriation projected expenditure required for yr2 and yr3).
A77: 2. Include capital component of PPP unitary payment
A78: 3. Capital expenditure by functional classification must reconcile to the total of multi-year and single year appropriations
A79: 4. Include expenditure on investment property, intangible and biological assets
A81: 6. Include finance leases and PPP capital funding component of unitary payment - total borrowing/repayments to reconcile to changes in Table SA17
A82: 7. Total Capital Funding must balance with Total Capital Expenditure
A86: check balance | C86: =C40-C74 -> 0 | D86: =D40-D74 -> 0 | E86: 0 | F86: 0 | G86: 0 | H86: 0 | K86: 0

Sheet C5C
A1: =muni& " - "&S71D& " - "&"A"& " - "&date -> LIM351 Blouberg - Table C5 Monthly Budget Statement - Capital Expenditure (municipal vote, functional classification and funding) - A - M01 July
A2: =Vdesc -> Vote Description | B2: =head27 -> Ref | C2: =Head1 -> 2023/24 | D2: =Head2 -> Budget Year 2024/25 | L2: =Head4 -> 
A3: R thousand | C3: =Head5 -> Audited Outcome | D3: =Head6 -> Original Budget | E3: =Head7 -> Adjusted Budget | F3: =Head38 -> Monthly actual | G3: =Head39 -> YearTD actual | H3: =Head40 -> YearTD budget | I3: =Head41 -> YTD variance | J3: =Head41 -> YTD variance | K3: =Head8 -> Full Year Forecast | L3: =Head12 -> Forecast 2010/11 | M3: =Head13 -> Forecast 2011/12 | N3: =Head14 -> Forecast 2012/13 | O3: =Head15 -> Forecast 2013/14 | P3: =Head16 -> Forecast 2014/15 | Q3: =Head17 -> Forecast 2015/16 | R3: =Head18 -> Forecast 2016/17 | S3: =Head19 -> Forecast 2017/18 | T3: =Head20 -> Forecast 2018/19 | U3: =Head21 -> Forecast 2019/20 | V3: =Head22 -> Forecast 2020/21 | W3: =Head23 -> Forecast 2021/22
J4: %
A5: Capital expenditure - Municipal Vote
A6: Expenditure of multi-year capital appropriation | B6: 1
A7: ='Org structure'!A2 -> Vote 01 - Executive & Council | C7: 0 | D7: 0 | E7: 0 | F7: 0 | G7: 0 | H7: 0 | I7: =G7-H7 -> 0 | J7: =IF(I7=0,"",I7/H7) ->  | K7: 0
A8: ='Org structure'!A3 -> Vote 02 - Finance And Administration | C8: 0 | D8: 0 | E8: 0 | F8: 0 | G8: 0 | H8: 0 | I8: 0 | K8: 0
A9: ='Org structure'!A4 -> Vote 03 - Community Service | C9: 0 | D9: 0 | E9: 0 | F9: 0 | G9: 0 | H9: 0 | I9: 0 | K9: 0
A10: ='Org structure'!A5 -> Vote 04 - Public And Safety | C10: 0 | D10: 0 | E10: 0 | F10: 0 | G10: 0 | H10: 0 | I10: 0 | K10: 0
A11: ='Org structure'!A6 -> Vote 05 - Waste Management | C11: 0 | D11: 0 | E11: 0 | F11: 0 | G11: 0 | H11: 0 | I11: 0 | K11: 0
A12: ='Org structure'!A7 -> Vote 06 - Roads Services | C12: 0 | D12: 0 | E12: 0 | F12: 0 | G12: 0 | H12: 0 | I12: 0 | K12: 0
A13: ='Org structure'!A8 -> Vote 07 - Econominc Development And Planning | C13: 0 | D13: 0 | E13: 0 | F13: 0 | G13: 0 | H13: 0 | I13: =G13-H13 -> 0 | J13: =IF(I13=0,"",I13/H13) ->  | K13: 0
A14: ='Org structure'!A9 -> Vote 08 - | C14: 0 | D14: 0 | E14: 0 | F14: 0 | G14: 0 | H14: 0 | I14: 0 | K14: 0
A15: ='Org structure'!A10 -> Vote 09 - | C15: 0 | D15: 0 | E15: 0 | F15: 0 | G15: 0 | H15: 0 | I15: 0 | K15: 0
A16: ='Org structure'!A11 -> Vote 10 - | C16: 0 | D16: 0 | E16: 0 | F16: 0 | G16: 0 | H16: 0 | I16: 0 | K16: 0
A17: ='Org structure'!A12 -> Vote 11 - | C17: 0 | D17: 0 | E17: 0 | F17: 0 | G17: 0 | H17: 0 | I17: 0 | K17: 0
A18: ='Org structure'!A13 -> Vote 12 - | C18: 0 | D18: 0 | E18: 0 | F18: 0 | G18: 0 | H18: 0 | I18: 0 | K18: 0
A19: ='Org structure'!A14 -> Vote 13 - | C19: 0 | D19: 0 | E19: 0 | F19: 0 | G19: 0 | H19: 0 | I19: =G19-H19 -> 0 | J19: =IF(I19=0,"",I19/H19) ->  | K19: 0
A20: ='Org structure'!A15 -> Vote 14 - | C20: 0 | D20: 0 | E20: 0 | F20: 0 | G20: 0 | H20: 0 | I20: 0 | K20: 0
A21: ='Org structure'!A16 -> Vote 15 - Other | C21: 0 | D21: 0 | E21: 0 | F21: 0 | G21: 0 | H21: 0 | I21: 0 | K21: 0
A22: Total multi-year capital expenditure | C22: =C7+C8+C9+C10+C11+C12+C13+C14+C15+C16+C17+C18+C19+C20+C21 -> 0 | D22: 0 | E22: 0 | F22: 0 | G22: 0 | H22: 0 | I22: 0 | K22: =K7+K8+K9+K10+K11+K12+K13+K14+K15+K16+K17+K18+K19+K20+K21 -> 0
I23: 0
A24: Capital expenditure - Municipal Vote
A25: Expenditue of single-year capital appropriation | B25: 1
A26: ='Org structure'!A2 -> Vote 01 - Executive & Council | C26: 0 | D26: 0 | E26: 0 | F26: 0 | G26: 0 | H26: 0 | I26: 0 | K26: 0
A27: ='Org structure'!A3 -> Vote 02 - Finance And Administration | C27: =SUM(C28:C28) -> 0 | D27: 0 | E27: 0 | F27: 0 | G27: 0 | H27: 0 | I27: 0 | K27: =SUM(K28:K28) -> 0
A28: ='Org structure'!E5 -> 02.1 - Municipal Manager | C28: 0 | D28: 0 | E28: 0 | F28: 0 | G28: 0 | H28: 0 | I28: 0 | K28: 0
A29: ='Org structure'!A4 -> Vote 03 - Community Service | C29: 0 | D29: 0 | E29: 0 | F29: 0 | G29: 0 | H29: 0 | I29: 0 | K29: 0
A30: ='Org structure'!A5 -> Vote 04 - Public And Safety | C30: =SUM(C31:C31) -> 209230.94 | D30: 5600000 | E30: 5600000 | F30: 0 | G30: 0 | H30: 466669 | I30: =G30-H30 -> -466669 | J30: =IF(I30=0,"",I30/H30) -> -1 | K30: =SUM(K31:K31) -> 5600000
A31: ='Org structure'!E9 -> 04.1 - Corporate Services Administration | C31: 209230.94 | D31: 5600000 | E31: 5600000 | F31: 0 | G31: 0 | H31: 466669 | I31: -466669 | J31: -1 | K31: 5600000
A32: ='Org structure'!A6 -> Vote 05 - Waste Management | C32: =SUM(C33:C34) -> 24979542.16 | D32: 18689531 | E32: 18689531 | F32: 0 | G32: 0 | H32: 1557463 | I32: -1557463 | J32: -1 | K32: =SUM(K33:K34) -> 18689531
A33: ='Org structure'!E12 -> 05.2 - Electrical Services | C33: 21157782.33 | D33: 2973531 | E33: 2973531 | F33: 0 | G33: 0 | H33: 247796 | I33: -247796 | J33: -1 | K33: 2973531
A34: ='Org structure'!E15 -> 05.5 - Roads Services | C34: 3821759.83 | D34: 15716000 | E34: 15716000 | F34: 0 | G34: 0 | H34: 1309667 | I34: -1309667 | J34: -1 | K34: 15716000
A35: ='Org structure'!A7 -> Vote 06 - Roads Services | C35: =SUM(C36:C37) -> 0 | D35: 250000 | E35: 250000 | F35: 0 | G35: 0 | H35: 20834 | I35: -20834 | J35: -1 | K35: =SUM(K36:K37) -> 250000
A36: ='Org structure'!E17 -> 06.1 - Community Services Administration | C36: 0 | D36: 250000 | E36: 250000 | F36: 0 | G36: 0 | H36: 20834 | I36: -20834 | J36: -1 | K36: 250000
A37: ='Org structure'!E18 -> 06.2 - Traffic Services | C37: 0 | D37: 0 | E37: 0 | F37: 0 | G37: 0 | H37: 0 | I37: 0 | K37: 0
A38: ='Org structure'!A8 -> Vote 07 - Econominc Development And Planning | C38: =SUM(C39:C40) -> 59389874.32 | D38: 50369000 | E38: 50369000 | F38: 6394127.53 | G38: 6394127.53 | H38: 4197419 | I38: 2196708.53 | J38: 0.5233474499 | K38: =SUM(K39:K40) -> 50369000
A39: ='Org structure'!E22 -> 07.1 - Project Management Unit | C39: 59389874.32 | D39: 49769000 | E39: 49769000 | F39: 6394127.53 | G39: 6394127.53 | H39: 4147419 | I39: 2246708.53 | J39: 0.5417124554 | K39: 49769000
A40: ='Org structure'!E23 -> 07.2 - Economic Development And Planning | C40: 0 | D40: 600000 | E40: 600000 | F40: 0 | G40: 0 | H40: 50000 | I40: -50000 | J40: -1 | K40: 600000
A41: ='Org structure'!A9 -> Vote 08 - | C41: 0 | D41: 0 | E41: 0 | F41: 0 | G41: 0 | H41: 0 | I41: 0 | K41: 0
A42: ='Org structure'!A10 -> Vote 09 - | C42: 0 | D42: 0 | E42: 0 | F42: 0 | G42: 0 | H42: 0 | I42: =G42-H42 -> 0 | J42: =IF(I42=0,"",I42/H42) ->  | K42: 0
A43: ='Org structure'!A11 -> Vote 10 - | C43: 0 | D43: 0 | E43: 0 | F43: 0 | G43: 0 | H43: 0 | I43: 0 | K43: 0
A44: ='Org structure'!A12 -> Vote 11 - | C44: 0 | D44: 0 | E44: 0 | F44: 0 | G44: 0 | H44: 0 | I44: 0 | K44: 0
A45: ='Org structure'!A13 -> Vote 12 - | C45: 0 | D45: 0 | E45: 0 | F45: 0 | G45: 0 | H45: 0 | I45: 0 | K45: 0
A46: ='Org structure'!A14 -> Vote 13 - | C46: 0 | D46: 0 | E46: 0 | F46: 0 | G46: 0 | H46: 0 | I46: 0 | K46: 0
A47: ='Org structure'!A15 -> Vote 14 - | C47: 0 | D47: 0 | E47: 0 | F47: 0 | G47: 0 | H47: 0 | I47: 0 | K47: 0
A48: ='Org structure'!A16 -> Vote 15 - Other | C48: 0 | D48: 0 | E48: 0 | F48: 0 | G48: 0 | H48: 0 | I48: =G48-H48 -> 0 | J48: =IF(I48=0,"",I48/H48) ->  | K48: 0
A49: Total single-year capital expenditure | C49: =C26+C27+C29+C30+C32+C35+C38+C41+C42+C43+C44+C45+C46+C47+C48 -> 84578647.42 | D49: 74908531 | E49: 74908531 | F49: 6394127.53 | G49: 6394127.53 | H49: 6242385 | I49: 151742.53 | J49: 0.02430842218 | K49: =K26+K27+K29+K30+K32+K35+K38+K41+K42+K43+K44+K45+K46+K47+K48 -> 74908531
A50: Total Capital Expenditure | C50: =C22+C49 -> 84578647.42 | D50: 74908531 | E50: 74908531 | F50: 6394127.53 | G50: 6394127.53 | H50: 6242385 | I50: 151742.53 | J50: 0.02430842218 | K50: =K22+K49 -> 74908531
A51: =head27a -> References
A52: 1. Insert 'Vote'; e.g. Department, if different to standard structure

Sheet C6-FinPos
A1: =muni& " - "&S71E& " - "&date -> LIM351 Blouberg - Table C6 Monthly Budget Statement - Financial Position - M01 July
A2: =desc -> Description | B2: =head27 -> Ref | C2: =Head1 -> 2023/24 | D2: =Head2 -> Budget Year 2024/25
C3: =Head5 -> Audited Outcome | D3: =Head6 -> Original Budget | E3: =Head7 -> Adjusted Budget | F3: =Head39 -> YearTD actual | G3: =Head8 -> Full Year Forecast
A4: R thousands | B4: 1
A5: ASSETS
A6: Current assets
A7: Cash and cash equivalents | C7: 186024594.6 | D7: 204752687 | E7: 204752687 | F7: 137826294.2 | G7: 204752687
A8: Trade and other receivables from exchange transactions | C8: 10991355.62 | D8: 4649905 | E8: 4649905 | F8: 12530650.14 | G8: 4649905
A9: Receivables from non-exchange transactions | C9: 57755090.03 | D9: 35928077 | E9: 35928077 | F9: 117509489.8 | G9: 35928077
A10: Current portion of non-current receivables
A11: Inventory | C11: 1853960.61 | D11: 62056410 | E11: 62056410 | F11: 1503290.84 | G11: 62056410
A12: VAT | C12: 27714138.15 | D12: 2930660 | E12: 2930660 | F12: 29756117.41 | G12: 2930660
A13: Other current assets | C13: -938056 | D13: 12768748 | E13: 12768748 | F13: -938056 | G13: 12768748
A14: Total current assets | C14: =SUM(C7:C13) -> 283401083 | D14: =SUM(D7:D13) -> 323086487 | E14: =SUM(E7:E13) -> 323086487 | F14: =SUM(F7:F13) -> 298187786.4 | G14: =SUM(G7:G13) -> 323086487
A15: Non current assets
A16: Investments | C16: 11399735.57 | D16: 10708603 | E16: 10708603 | F16: 11399735.57 | G16: 10708603
A17: Investment property | C17: 9916000.01 | D17: 9516517 | E17: 9516517 | F17: 9916000.01 | G17: 9516517
A18: Property, plant and equipment | C18: 1111879283 | D18: 1117417188 | E18: 1117417188 | F18: 1118273411 | G18: 1117417188
A19: Biological assets
A20: Living and non-living resources
A21: Heritage assets | C21: 0 | D21: 0 | E21: 0 | F21: 0 | G21: 0
A22: Intangible assets | C22: 108884.85 | D22: 783368 | E22: 783368 | F22: 108884.85 | G22: 783368
A23: Trade and other receivables from exchange transactions
A24: Non-current receivables from non-exchange transactions
A25: Other non-current assets
A26: Total non current assets | C26: =SUM(C16:C25) -> 1133303904 | D26: =SUM(D16:D25) -> 1138425676 | E26: =SUM(E16:E25) -> 1138425676 | F26: =SUM(F16:F25) -> 1139698031 | G26: =SUM(G16:G25) -> 1138425676
A27: TOTAL ASSETS | C27: =C14+C26 -> 1416704987 | D27: =D14+D26 -> 1461512163 | E27: =E14+E26 -> 1461512163 | F27: =F14+F26 -> 1437885817 | G27: =G14+G26 -> 1461512163
A28: LIABILITIES
A29: Current liabilities
A30: Bank overdraft | C30: 0 | D30: 0 | E30: 0 | F30: 0 | G30: 0
A31: Financial liabilities | C31: 6537705.17 | D31: 9322788 | E31: 9322788 | F31: 6537705.17 | G31: 9322788
A32: Consumer deposits | C32: -7959.44 | D32: 0 | E32: 0 | F32: -7959.44 | G32: 0
A33: Trade and other payables from exchange transactions | C33: 98739160.95 | D33: 35483462 | E33: 35483462 | F33: 79783049.86 | G33: 35483462
A34: Trade and other payables from non-exchange transactions | C34: 59646502.42 | D34: 23000000 | E34: 23000000 | F34: 59646502.42 | G34: 23000000
A35: Provision | C35: 2591202.14 | D35: 2200906 | E35: 2200906 | F35: 2591202.14 | G35: 2200906
A36: VAT | C36: 30837994.36 | D36: 5300000 | E36: 5300000 | F36: 31352440.75 | G36: 5300000
A37: Other current liabilities | C37: 0 | D37: 0 | E37: 0 | F37: 0 | G37: 0
A38: Total current liabilities | C38: =SUM(C30:C37) -> 198344605.6 | D38: =SUM(D30:D37) -> 75307156 | E38: =SUM(E30:E37) -> 75307156 | F38: =SUM(F30:F37) -> 179902940.9 | G38: =SUM(G30:G37) -> 75307156
A39: Non current liabilities
A40: Financial liabilities | C40: 2768429.12 | D40: 4864257 | E40: 4864257 | F40: 2768429.12 | G40: 4864257
A41: Provision | C41: 16860685 | D41: 22339560 | E41: 22339560 | F41: 16860685 | G41: 22339560
A42: Long term portion of trade payables | C42: 0 | D42: 0 | E42: 0 | F42: 0 | G42: 0
A43: Other non-current liabilities | C43: 0 | D43: 0 | E43: 0 | F43: 0 | G43: 0
A44: Total non current liabilities | C44: =SUM(C40:C43) -> 19629114.12 | D44: =SUM(D40:D43) -> 27203817 | E44: =SUM(E40:E43) -> 27203817 | F44: =SUM(F40:F43) -> 19629114.12 | G44: =SUM(G40:G43) -> 27203817
A45: TOTAL LIABILITIES | C45: =C38+C44 -> 217973719.7 | D45: =D38+D44 -> 102510973 | E45: =E38+E44 -> 102510973 | F45: =F38+F44 -> 199532055 | G45: =G38+G44 -> 102510973
A46: NET ASSETS | B46: 2 | C46: =C27-C45 -> 1198731267 | D46: =D27-D45 -> 1359001190 | E46: =E27-E45 -> 1359001190 | F46: =F27-F45 -> 1238353762 | G46: =G27-G45 -> 1359001190
A47: COMMUNITY WEALTH/EQUITY
A48: Accumulated surplus/(deficit) | C48: 1175936447 | D48: 1358312516 | E48: 1358312516 | F48: 1198731267 | G48: 1358312516
A49: Reserves and funds | C49: 0 | D49: 0 | E49: 0 | F49: 0 | G49: 0
A50: Other | C50: 0 | D50: 0 | E50: 0 | F50: 0 | G50: 0
A51: TOTAL COMMUNITY WEALTH/EQUITY | B51: 2 | C51: =SUM(C48:C50) -> 1175936447 | D51: =SUM(D48:D50) -> 1358312516 | E51: =SUM(E48:E50) -> 1358312516 | F51: =SUM(F48:F50) -> 1198731267 | G51: =SUM(G48:G50) -> 1358312516
A52: =head27a -> References
A53: 1. Material variances to be explained in Table SC1
A54: 2. Net assets must balance with Total Community Wealth/Equity
A57: check balance | C57: =C46-C51 -> 22794819.91 | D57: =D46-D51 -> 688674 | E57: =E46-E51 -> 688674 | F57: =F46-F51 -> 39622495.58 | G57: =G46-G51 -> 688674

Sheet C7-CFlow
A1: =muni& " - "&S71F& " - "&date -> LIM351 Blouberg - Table C7 Monthly Budget Statement - Cash Flow - M01 July
A2: =desc -> Description | B2: =head27 -> Ref | C2: =Head1 -> 2023/24 | D2: =Head2 -> Budget Year 2024/25
C3: =Head5 -> Audited Outcome | D3: =Head6 -> Original Budget | E3: =Head7 -> Adjusted Budget | F3: =Head38 -> Monthly actual | G3: =Head39 -> YearTD actual | H3: =Head40 -> YearTD budget | I3: =Head41 -> YTD variance | J3: =Head41 -> YTD variance | K3: =Head8 -> Full Year Forecast
A4: R thousands | B4: 1 | J4: %
A5: CASH FLOW FROM OPERATING ACTIVITIES
A6: Receipts
A7: Property rates | C7: 45142804.84 | D7: 32857088 | E7: 32857088 | F7: 1880.47 | G7: 1880.47 | H7: 2738090.67 | I7: =G7-H7 -> -2736210.2 | J7: =IF(I7=0,"",I7/H7) -> -0.9993132185 | K7: 32857088
A8: Service charges | C8: 32988116.1 | D8: 57824150 | E8: 57824150 | F8: 2107793.27 | G8: 2107793.27 | H8: 4818679.16 | I8: -2710885.89 | J8: =IF(I8=0,"",I8/H8) -> -0.5625786237 | K8: 57824150
A9: Other revenue | C9: 230097920.3 | D9: 12975762 | E9: 12975762 | F9: 1627701.48 | G9: 1627701.48 | H9: 1081313.5 | I9: 546387.98 | J9: =IF(I9=0,"",I9/H9) -> 0.5053002483 | K9: 12975762
A10: Transfers and Subsidies - Operational | C10: 237376778.1 | D10: 250671000 | E10: 250671000 | F10: 0 | G10: 0 | H10: 20889250 | I10: -20889250 | J10: =IF(I10=0,"",I10/H10) -> -1 | K10: 250671000
A11: Transfers and Subsidies - Capital | C11: 139159000 | D11: 67485000 | E11: 67485000 | F11: 0 | G11: 0 | H11: 5623750 | I11: -5623750 | J11: =IF(I11=0,"",I11/H11) -> -1 | K11: 67485000
A12: Interest | C12: 3104351.95 | D12: 8063596 | E12: 8063596 | F12: 0 | G12: 0 | H12: 671966.33 | I12: -671966.33 | J12: -1 | K12: 8063596
A13: Dividends | I13: 0
A14: Payments
A15: Suppliers and employees | C15: -568465959.6 | D15: -350217718 | E15: -350217718 | F15: -52653488.32 | G15: -52653488.32 | H15: -29184809.84 | I15: =H15-G15 -> 23468678.48 | J15: -0.8041401883 | K15: -350217718
A16: Interest | I16: =H16-G16 -> 0
A17: Transfers and Subsidies | I17: =H17-G17 -> 0
A18: NET CASH FROM/(USED) OPERATING ACTIVITIES | C18: =SUM(C7:C13)+SUM(C15:C17) -> 119403011.7 | D18: 79658878 | E18: 79658878 | F18: -48916113.1 | G18: -48916113.1 | H18: 6638239.82 | I18: =H18-G18 -> 55554352.92 | J18: 8.368837889 | K18: =SUM(K7:K13)+SUM(K15:K17) -> 79658878
A20: CASH FLOWS FROM INVESTING ACTIVITIES
A21: Receipts
A22: Proceeds on disposal of PPE | C22: 1559867.83 | D22: 0 | E22: 0 | F22: 0 | G22: 0 | H22: 0 | I22: =G22-H22 -> 0 | J22: =IF(I22=0,"",I22/H22) ->  | K22: 0
A24: Decrease (increase) in non-current receivables | I24: =G24-H24 -> 0
A25: Decrease (increase) in non-current investments | C25: -11399735.57 | D25: -10708603 | E25: -10708603 | F25: 0 | G25: -11399735.57 | H25: -892385 | I25: =G25-H25 -> -10507350.57 | J25: 11.77445897 | K25: -10708603
A26: Payments
A27: Capital assets | C27: -84578647.42 | D27: -74908531 | E27: -74908531 | F27: -2910160.31 | G27: -2910160.31 | H27: -6242377.58 | I27: =H27-G27 -> -3332217.27 | J27: 0.5338057859 | K27: -74908531
A28: NET CASH FROM/(USED) INVESTING ACTIVITIES | C28: =SUM(C22:C25)+C27 -> -94418515.16 | D28: =SUM(D22:D25)+D27 -> -85617134 | E28: -85617134 | F28: -2910160.31 | G28: -14309895.88 | H28: -7134762.58 | I28: =H28-G28 -> 7175133.3 | J28: -1.005658313 | K28: =SUM(K22:K25)+K27 -> -85617134
A30: CASH FLOWS FROM FINANCING ACTIVITIES
A31: Receipts
A32: Short term loans | C32: 6537705.17 | D32: 0 | E32: 0 | F32: 0 | G32: 0 | H32: 0 | I32: =G32-H32 -> 0 | J32: =IF(I32=0,"",I32/H32) ->  | K32: 0
A33: Borrowing long term/refinancing | I33: =G33-H33 -> 0
A34: Increase (decrease) in consumer deposits | I34: =G34-H34 -> 0
A35: Payments
A36: Repayment of borrowing | I36: =H36-G36 -> 0
A37: NET CASH FROM/(USED) FINANCING ACTIVITIES | C37: =SUM(C32:C34)+C36 -> 6537705.17 | D37: 0 | E37: 0 | F37: 0 | G37: 0 | H37: 0 | I37: =H37-G37 -> 0 | K37: =SUM(K32:K34)+K36 -> 0
A39: NET INCREASE/ (DECREASE) IN CASH HELD | C39: =C18+C28+C37 -> 31522201.68 | D39: -5958256 | E39: -5958256 | F39: -51826273.41 | G39: -63226008.98 | H39: -496522.76 | K39: =K18+K28+K37 -> -5958256
A40: Cash/cash equivalents at beginning: | C40: 101842673.1 | D40: 197491091 | E40: 197491091 | F40: 186024594.6 | G40: 186024594.6 | H40: =IF(E40=0, D40, E40) -> 197491091 | K40: =G40 -> 186024594.6
A41: Cash/cash equivalents at month/year end: | C41: =C39+C40 -> 133364874.8 | D41: 191532835 | E41: 191532835 | F41: 134198321.2 | G41: 122798585.6 | H41: 196994568.2 | K41: =K39+K40 -> 180066338.6
A42: References
A43: 1. Material variances to be explained in Table SC1

Sheet SC1
A1: =muni& " - "&S71G& " - "&date -> LIM351 Blouberg - Supporting Table SC1 Material variance explanations - M01 July
A2: =head27 -> Ref | B2: =desc -> Description
C3: Variance | D3: Reasons for material deviations | E3: Remedial or corrective steps/remarks
B4: R thousands
A5: 1 | B5: Revenue
B6: Client elected Not to populate this sheet
A10: 2 | B10: Expenditure By Type
B11: Client elected Not to populate this sheet
A15: 3 | B15: =RIGHT('C5-Capex'!A40,19) -> Capital Expenditure
B16: Client elected Not to populate this sheet
A20: 4 | B20: Financial Position
B21: Client elected Not to populate this sheet
A25: 5 | B25: Cash Flow
B26: Client elected Not to populate this sheet
A30: 6 | B30: Measureable performance
B31: Client elected Not to populate this sheet
A35: 7 | B35: Municipal Entities
B36: Client elected Not to populate this sheet
A41: =head27a -> References
A42: 1. Revenue for each source, vote and standard classification
A43: 2. Expenditure for each type, vote and standard classification
A44: 3. Capital expenditure for each vote and standard classification
A45: 4. Explain any material variances between the annual budget and the expected financial position based on current trends
A46: 5. Cash receipts by source and cash payments by type where not explained under revenue and expenditure
A47: 6. For Sept, Dec, Mar and Jun statements explain any material variances in achievement of measurable performance objectives

Sheet SC2
A1: =muni& " - "&S71H& " - "&Head57 -> LIM351 Blouberg - Supporting Table SC2 Monthly Budget Statement - performance indicators - M01 July
A2: Description of financial indicator | B2: Basis of calculation | C2: =head27 -> Ref | D2: =Head1 -> 2023/24 | E2: =Head2 -> Budget Year 2024/25
D3: =Head5 -> Audited Outcome | E3: =Head6 -> Original Budget | F3: =Head7 -> Adjusted Budget | G3: =Head39 -> YearTD actual | H3: =Head8 -> Full Year Forecast
A5: Borrowing Management
A7: Capital Charges to Operating Expenditure | B7: Interest & principal paid/Operating Expenditure | D7: =IF(ISERROR((D42-D43)/D45),0,((D42-D43)/D45)) -> 0.01270276314 | E7: =IF(ISERROR((E42+E44)/E45),0,((E42+E44)/E45)) -> 0.07741611556 | F7: =IF(ISERROR((F42+F44)/F45),0,((F42+F44)/F45)) -> 0.07741611556 | G7: =IF(ISERROR((G42+G44)/G45),0,((G42+G44)/G45)) -> 0 | H7: =IF(ISERROR((H42+H44)/H45),0,((H42+H44)/H45)) -> 0.05081435588
A8: Borrowed funding of 'own' capital expenditure | B8: Borrowings/Capital expenditure excl. transfers and grants | D8: =IF(ISERROR(D47/D46),0,(D47/D46)) -> 0 | E8: =IF(ISERROR(E47/E46),0,(E47/E46)) -> 0 | F8: =IF(ISERROR(F47/F46),0,(F47/F46)) -> 0 | G8: =IF(ISERROR(G47/G46),0,(G47/G46)) -> 0 | H8: =IF(ISERROR(H47/H46),0,(H47/H46)) -> 0
A9: Safety of Capital
A10: Debt to Equity | B10: Loans, Accounts Payable, Overdraft & Tax Provision/ Funds & Reserves | D10: =IF(ISERROR(D48/D49),0,(D48/D49)) -> 0.1426027725 | E10: =IF(ISERROR(E48/E49),0,(E48/E49)) -> 0.05350057969 | F10: =IF(ISERROR(F48/F49),0,(F48/F49)) -> 0.05350057969 | G10: =IF(ISERROR(G48/G49),0,(G48/G49)) -> 0.1240775899 | H10: =IF(ISERROR(H48/H49),0,(H48/H49)) -> 0.05350057969
A11: Gearing | B11: Long Term Borrowing/ Funds & Reserves | D11: =IF(ISERROR(D51/D50),0,(D51/D50)) -> 0 | E11: =IF(ISERROR(E51/E50),0,(E51/E50)) -> 0 | F11: =IF(ISERROR(F51/F50),0,(F51/F50)) -> 0 | G11: =IF(ISERROR(G51/G50),0,(G51/G50)) -> 0 | H11: =IF(ISERROR(H51/H50),0,(H51/H50)) -> 0
A12: Liquidity
A13: Current Ratio | B13: Current assets/current liabilities | C13: 1 | D13: =IF(ISERROR(D52/D53),0,(D52/D53)) -> 1.428831816 | E13: =IF(ISERROR(E52/E53),0,(E52/E53)) -> 4.290249482 | F13: =IF(ISERROR(F52/F53),0,(F52/F53)) -> 4.290249482 | G13: =IF(ISERROR(G52/G53),0,(G52/G53)) -> 1.657492562 | H13: =IF(ISERROR(H52/H53),0,(H52/H53)) -> 4.290249482
A14: Liquidity Ratio | B14: Monetary Assets/Current Liabilities | D14: =IF(ISERROR(D54/D53),0,(D54/D53)) -> 0.9378858277 | E14: =IF(ISERROR(E54/E53),0,(E54/E53)) -> 2.718900804 | F14: =IF(ISERROR(F54/F53),0,(F54/F53)) -> 2.718900804 | G14: =IF(ISERROR(G54/G53),0,(G54/G53)) -> 0.7661147366 | H14: =IF(ISERROR(H54/H53),0,(H54/H53)) -> 2.718900804
A15: Revenue Management
A16: Annual Debtors Collection Rate (Payment Level %) | B16: Last 12 Mths Receipts/ Last 12 Mths Billing
A17: Outstanding Debtors to Revenue | B17: Total Outstanding Debtors to Annual Revenue | D17: =IF(ISERROR(D59/D55),0,(D59/D55)) -> 0.1814985598 | E17: =IF(ISERROR(E59/E55),0,(E59/E55)) -> 0.1457137965 | F17: =IF(ISERROR(F59/F55),0,(F59/F55)) -> 0.1457137965 | G17: =IF(ISERROR(G59/G55),0,(G59/G55)) -> 1.947450359 | H17: =IF(ISERROR(H59/H55),0,(H59/H55)) -> 0.1457137965
A18: Longstanding Debtors Recovered | B18: Debtors > 12 Mths Recovered/Total Debtors > 12 Months Old | D18: =IF(ISERROR(D64/D63),0,(D64/D63)) -> 0 | E18: =IF(ISERROR(E64/E63),0,(E64/E63)) -> 0 | F18: =IF(ISERROR(F64/F63),0,(F64/F63)) -> 0 | G18: =IF(ISERROR(G64/G63),0,(G64/G63)) -> 0 | H18: =IF(ISERROR(H64/H63),0,(H64/H63)) -> 0
A19: Creditors Management
A20: Creditors System Efficiency | B20: % of Creditors Paid Within Terms (within MFMA s 65(e)) | D20: 0 | E20: 1 | F20: 1 | G20: 0 | H20: 1
A21: Funding of Provisions
A22: Percentage Of Provisions Not Funded | B22: Unfunded Provisions/Total Provisions
A23: Other Indicators
A24: Electricity Distribution Losses | B24: % Volume (units purchased and generated less units sold)/units purchased and generated | C24: 2 | D24: 0 | E24: 0.097 | F24: 0.097 | G24: 0 | H24: 0.097
A25: Water Distribution Losses | B25: % Volume (units purchased and own source less units sold)/Total units purchased and own source | C25: 2
A26: Employee costs | B26: Employee costs/Total Revenue - capital revenue | D26: =IF(ISERROR(D40/D55),0,(D40/D55)) -> 0.354024888 | E26: =IF(ISERROR(E40/E55),0,(E40/E55)) -> 0.3844651252 | F26: =IF(ISERROR(F40/F55),0,(F40/F55)) -> 0.3844651252 | G26: =IF(ISERROR(G40/G55),0,(G40/G55)) -> 0.1668554216 | H26: =IF(ISERROR(H40/H55),0,(H40/H55)) -> 0.3844651252
A27: Repairs & Maintenance | B27: R&M/Total Revenue - capital revenue | D27: =IF(ISERROR(D41/D55),0,(D41/D55)) -> 0.02697190471 | E27: =IF(ISERROR(E41/E55),0,(E41/E55)) -> 0.01620025929 | F27: =IF(ISERROR(F41/F55),0,(F41/F55)) -> 0.01620025929 | G27: =IF(ISERROR(G41/G55),0,(G41/G55)) -> 0.0004627945285 | H27: =IF(ISERROR(H41/H55),0,(H41/H55)) -> 0.01620025929
A28: Interest & Depreciation | B28: I&D/Total Revenue - capital revenue | D28: =IF(ISERROR((D42+D44)/D55),0,((D42+D44)/D55)) -> 0.1024119554 | E28: =IF(ISERROR((E42+E44)/E55),0,((E42+E44)/E55)) -> 0.09154073717 | F28: =IF(ISERROR((F42+F44)/F55),0,((F42+F44)/F55)) -> 0.09154073717 | G28: =IF(ISERROR((G42+G44)/G55),0,((G42+G44)/G55)) -> 0 | H28: =IF(ISERROR((H42+H44)/H55),0,((H42+H44)/H55)) -> 0.0600854688
A29: IDP regulation financial viability indicators
A30: i. Debt coverage | B30: (Total Operating Revenue - Operating Grants)/Debt service payments due within financial year)
A31: ii. O/S Service Debtors to Revenue | B31: Total outstanding service debtors/annual revenue received for services
A32: iii. Cost coverage | B32: (Available cash + Investments)/monthly fixed operational expenditure
A33: References
A34: 1. Consumer debtors > 12 months old are excluded from current assets.
A35: 2. Material variances to be explained.
A37: Calculations
A38: ='C6-FinPos'!A40 -> Financial liabilities | D38: ='C6-FinPos'!C40 -> 2768429.12 | E38: ='C6-FinPos'!D40 -> 4864257 | F38: ='C6-FinPos'!E40 -> 4864257 | G38: ='C6-FinPos'!F40 -> 2768429.12 | H38: ='C6-FinPos'!G40 -> 4864257
A39: Total Assets | D39: ='C6-FinPos'!C27 -> 1416704987 | E39: ='C6-FinPos'!D27 -> 1461512163 | F39: ='C6-FinPos'!E27 -> 1461512163 | G39: ='C6-FinPos'!F27 -> 1437885817 | H39: ='C6-FinPos'!G27 -> 1461512163
A40: Employee related costs | D40: ='C4-FinPerf RE'!C35 -> 132264727.5 | E40: ='C4-FinPerf RE'!D35 -> 140755081 | F40: ='C4-FinPerf RE'!E35 -> 140755081 | G40: ='C4-FinPerf RE'!G35 -> 11061325.67 | H40: ='C4-FinPerf RE'!K35 -> 140755081
A41: =A27 -> Repairs & Maintenance | D41: =+SC13c!C173 -> 10076782.02 | E41: =+SC13c!D173 -> 5931016 | F41: =+SC13c!E173 -> 5931016 | G41: =+SC13c!G173 -> 30679.98 | H41: =+SC13c!K173 -> 5931016
A42: Interest (finance charges) | D42: ='C4-FinPerf RE'!C41 -> 4441877.01 | E42: ='C4-FinPerf RE'!D41 -> 0 | F42: ='C4-FinPerf RE'!E41 -> 0 | G42: ='C4-FinPerf RE'!G41 -> 0 | H42: ='C4-FinPerf RE'!K41 -> 0
A43: Principal paid | D43: =-'C7-CFlow'!C36 -> 0 | E43: =-'C7-CFlow'!D36 -> 0 | F43: =-'C7-CFlow'!E36 -> 0 | G43: =-'C7-CFlow'!G36 -> 0 | H43: =-'C7-CFlow'!K36 -> 0
A44: Depreciation | D44: ='C4-FinPerf RE'!C40 -> 33819527.29 | E44: ='C4-FinPerf RE'!D40 -> 33513635 | F44: ='C4-FinPerf RE'!E40 -> 33513635 | G44: ='C4-FinPerf RE'!F40 -> 0 | H44: ='C4-FinPerf RE'!K36 -> 21997665
A45: Operating expenditure | D45: ='C4-FinPerf RE'!C48 -> 349678015.7 | E45: ='C4-FinPerf RE'!D48 -> 432902565 | F45: ='C4-FinPerf RE'!E48 -> 432902565 | G45: ='C4-FinPerf RE'!G48 -> 26670379.79 | H45: ='C4-FinPerf RE'!K48 -> 432902565
A46: ='C5-Capex'!A40 -> Total Capital Expenditure | D46: ='C5-Capex'!C63 -> 84578647.42 | E46: ='C5-Capex'!D63 -> 74908531 | F46: ='C5-Capex'!E63 -> 74908531 | G46: ='C5-Capex'!F63 -> 6394127.53 | H46: ='C5-Capex'!G63 -> 6394127.53
A47: Borrowed funding for capital | D47: ='C5-Capex'!C72 -> 0 | E47: ='C5-Capex'!D72 -> 0 | F47: ='C5-Capex'!E72 -> 0 | G47: ='C5-Capex'!G72 -> 0 | H47: ='C5-Capex'!K72 -> 0
A48: Debt | D48: ='C6-FinPos'!C30+'C6-FinPos'!C31+'C6-FinPos'!C33+'C6-FinPos'!C34+'C6-FinPos'!C40+'C6-FinPos'!C43 -> 167691797.7 | E48: ='C6-FinPos'!D30+'C6-FinPos'!D31+'C6-FinPos'!D33+'C6-FinPos'!D34+'C6-FinPos'!D40+'C6-FinPos'!D43 -> 72670507 | F48: ='C6-FinPos'!E30+'C6-FinPos'!E31+'C6-FinPos'!E33+'C6-FinPos'!E34+'C6-FinPos'!E40+'C6-FinPos'!E43 -> 72670507 | G48: ='C6-FinPos'!F30+'C6-FinPos'!F31+'C6-FinPos'!F33+'C6-FinPos'!F34+'C6-FinPos'!F40+'C6-FinPos'!F43 -> 148735686.6 | H48: ='C6-FinPos'!G30+'C6-FinPos'!G31+'C6-FinPos'!G33+'C6-FinPos'!G34+'C6-FinPos'!G40+'C6-FinPos'!G43 -> 72670507
A49: Equity | D49: ='C6-FinPos'!C51 -> 1175936447 | E49: ='C6-FinPos'!D51 -> 1358312516 | F49: ='C6-FinPos'!E51 -> 1358312516 | G49: ='C6-FinPos'!F51 -> 1198731267 | H49: ='C6-FinPos'!G51 -> 1358312516
A50: ='C6-FinPos'!A49 -> Reserves and funds | D50: ='C6-FinPos'!C50 -> 0 | E50: ='C6-FinPos'!D50 -> 0 | F50: ='C6-FinPos'!E50 -> 0 | G50: ='C6-FinPos'!F50 -> 0 | H50: ='C6-FinPos'!G50 -> 0
A51: Borrowing | D51: ='C6-FinPos'!C40 -> 2768429.12 | E51: ='C6-FinPos'!D40 -> 4864257 | F51: ='C6-FinPos'!E40 -> 4864257 | G51: ='C6-FinPos'!F40 -> 2768429.12 | H51: ='C6-FinPos'!G40 -> 4864257
A52: ='C6-FinPos'!A6 -> Current assets | D52: ='C6-FinPos'!C14 -> 283401083 | E52: ='C6-FinPos'!D14 -> 323086487 | F52: ='C6-FinPos'!E14 -> 323086487 | G52: ='C6-FinPos'!F14 -> 298187786.4 | H52: ='C6-FinPos'!G14 -> 323086487
A53: ='C6-FinPos'!A29 -> Current liabilities | D53: ='C6-FinPos'!C38 -> 198344605.6 | E53: ='C6-FinPos'!D38 -> 75307156 | F53: ='C6-FinPos'!E38 -> 75307156 | G53: ='C6-FinPos'!F38 -> 179902940.9 | H53: ='C6-FinPos'!G38 -> 75307156
A54: Monetary assets | D54: ='C6-FinPos'!C7 -> 186024594.6 | E54: ='C6-FinPos'!D7 -> 204752687 | F54: ='C6-FinPos'!E7 -> 204752687 | G54: ='C6-FinPos'!F7 -> 137826294.2 | H54: ='C6-FinPos'!G7 -> 204752687
A55: Total Revenue (excluding capital transfers and contributions) | D55: ='C4-FinPerf RE'!C33 -> 373602907.5 | E55: ='C4-FinPerf RE'!D33 -> 366106239 | F55: ='C4-FinPerf RE'!E33 -> 366106239 | G55: ='C4-FinPerf RE'!G33 -> 66292875.37 | H55: ='C4-FinPerf RE'!K33 -> 366106239
A56: Transfers and subsidies - Operational | D56: ='C4-FinPerf RE'!C26 -> 241376084 | E56: ='C4-FinPerf RE'!D28 -> 0 | F56: ='C4-FinPerf RE'!E28 -> 0 | G56: ='C4-FinPerf RE'!G28 -> 0 | H56: ='C4-FinPerf RE'!K28 -> 0
A57: Transfers and subsidies - capital (monetary allocations) | D57: ='C4-FinPerf RE'!C50 -> 95456552.07 | E57: ='C4-FinPerf RE'!D50 -> 67485000 | F57: ='C4-FinPerf RE'!E50 -> 67485000 | G57: ='C4-FinPerf RE'!G50 -> 0 | H57: ='C4-FinPerf RE'!K50 -> 67485000
A58: Debt service payments | D58: ='C7-CFlow'!C12+'C7-CFlow'!C36 -> 3104351.95 | E58: ='C7-CFlow'!D12+'C7-CFlow'!D36 -> 8063596 | F58: ='C7-CFlow'!E12+'C7-CFlow'!E36 -> 8063596 | G58: ='C7-CFlow'!F12+'C7-CFlow'!F36 -> 0 | H58: ='C7-CFlow'!G12+'C7-CFlow'!G36 -> 0
A59: Outstanding debtors (receivables) | D59: ='C6-FinPos'!C8+'C6-FinPos'!C9+'C6-FinPos'!C10+'C6-FinPos'!C13+'C6-FinPos'!C23+'C6-FinPos'!C24 -> 67808389.65 | E59: ='C6-FinPos'!D8+'C6-FinPos'!D9+'C6-FinPos'!D10+'C6-FinPos'!D13+'C6-FinPos'!D23+'C6-FinPos'!D24 -> 53346730 | F59: ='C6-FinPos'!E8+'C6-FinPos'!E9+'C6-FinPos'!E10+'C6-FinPos'!E13+'C6-FinPos'!E23+'C6-FinPos'!E24 -> 53346730 | G59: ='C6-FinPos'!F8+'C6-FinPos'!F9+'C6-FinPos'!F10+'C6-FinPos'!F13+'C6-FinPos'!F23+'C6-FinPos'!F24 -> 129102083.9 | H59: ='C6-FinPos'!G8+'C6-FinPos'!G9+'C6-FinPos'!G10+'C6-FinPos'!G13+'C6-FinPos'!G23+'C6-FinPos'!G24 -> 53346730
A60: Annual services revenue | D60: ='C4-FinPerf RE'!C7+'C4-FinPerf RE'!C8+'C4-FinPerf RE'!C9+'C4-FinPerf RE'!C10+'C4-FinPerf RE'!C22 -> 106479303.1 | E60: ='C4-FinPerf RE'!D7+'C4-FinPerf RE'!D8+'C4-FinPerf RE'!D9+'C4-FinPerf RE'!D10+'C4-FinPerf RE'!D22 -> 92544740 | F60: ='C4-FinPerf RE'!E7+'C4-FinPerf RE'!E8+'C4-FinPerf RE'!E9+'C4-FinPerf RE'!E10+'C4-FinPerf RE'!E22 -> 92544740 | G60: ='C4-FinPerf RE'!F7+'C4-FinPerf RE'!F8+'C4-FinPerf RE'!F9+'C4-FinPerf RE'!F10+'C4-FinPerf RE'!F22 -> 65406760.53 | H60: ='C4-FinPerf RE'!G7+'C4-FinPerf RE'!G8+'C4-FinPerf RE'!G9+'C4-FinPerf RE'!G10+'C4-FinPerf RE'!G22 -> 65406760.53
A61: Cash + investments | B61: Including LT investments | D61: ='C6-FinPos'!C7+'C6-FinPos'!C16-'C6-FinPos'!C30 -> 197424330.2 | E61: ='C6-FinPos'!D7+'C6-FinPos'!D16-'C6-FinPos'!D30 -> 215461290 | F61: ='C6-FinPos'!E7+'C6-FinPos'!E16-'C6-FinPos'!E30 -> 215461290 | G61: ='C6-FinPos'!F7+'C6-FinPos'!F16-'C6-FinPos'!F30 -> 149226029.8 | H61: ='C6-FinPos'!G7+'C6-FinPos'!G16-'C6-FinPos'!G30 -> 215461290
A62: Fixed operational expend. (monthly)
A63: Longstanding debtors outstanding | D63: ='C6-FinPos'!C23+'C6-FinPos'!C24 -> 0 | E63: ='C6-FinPos'!D23+'C6-FinPos'!D24 -> 0 | F63: ='C6-FinPos'!E23+'C6-FinPos'!E24 -> 0 | G63: ='C6-FinPos'!F23+'C6-FinPos'!F24 -> 0 | H63: ='C6-FinPos'!G23+'C6-FinPos'!G24 -> 0
A64: Longstanding debtors recovered
A65: Attorney collections

Sheet SC3
A1: =muni& " - "&S71I& " - "&Head57 -> LIM351 Blouberg - Supporting Table SC3 Monthly Budget Statement - aged debtors - M01 July
A2: =desc -> Description | C2: =Head2 -> Budget Year 2024/25
A3: R thousands | B3: NT Code | C3: 0-30 Days | D3: 31-60 Days | E3: 61-90 Days | F3: 91-120 Days | G3: 121-150 Dys | H3: 151-180 Dys | I3: 181 Dys-1 Yr | J3: Over 1Yr | K3: Total | L3: Total over 90 days | M3: Actual Bad Debts Written Off against Debtors | N3: Impairment - Bad Debts i.t.o Council Policy
A4: Debtors Age Analysis By Income Source
A5: Trade and Other Receivables from Exchange Transactions - Water | B5: 1200 | K5: =SUM(C5:J5) -> 0 | L5: =SUM(F5:J5) -> 0
A6: Trade and Other Receivables from Exchange Transactions - Electricity | B6: 1300 | K6: =SUM(C6:J6) -> 0 | L6: =SUM(F6:J6) -> 0
A7: Receivables from Non-exchange Transactions - Property Rates | B7: 1400 | K7: =SUM(C7:J7) -> 0 | L7: 0
A8: Receivables from Exchange Transactions - Waste Water Management | B8: 1500 | K8: 0 | L8: 0
A9: Receivables from Exchange Transactions - Waste Management | B9: 1600 | K9: 0 | L9: =SUM(F9:J9) -> 0
A10: Receivables from Exchange Transactions - Property Rental Debtors | B10: 1700 | K10: 0 | L10: =SUM(F10:J10) -> 0
A11: Interest on Arrear Debtor Accounts | B11: 1810 | K11: 0 | L11: 0
A12: Recoverable unauthorised, irregular, fruitless and wasteful expenditure | B12: 1820 | K12: 0 | L12: 0
A13: Other | B13: 1900 | K13: 0 | L13: =SUM(F13:J13) -> 0
A14: Total By Income Source | B14: 2000 | C14: =SUM(C5:C13) -> 0 | D14: 0 | E14: 0 | F14: 0 | G14: 0 | H14: 0 | I14: 0 | J14: 0 | K14: 0 | L14: =SUM(L5:L13) -> 0 | M14: 0 | N14: 0
A15: =Head1&" - totals only" -> 2023/24 - totals only | K15: =SUM(C15:J15) -> 0 | L15: =SUM(F15:J15) -> 0
A16: Debtors Age Analysis By Customer Group
A17: Organs of State | B17: 2200 | K17: =SUM(C17:J17) -> 0 | L17: =SUM(F17:J17) -> 0
A18: Commercial | B18: 2300 | K18: =SUM(C18:J18) -> 0 | L18: =SUM(F18:J18) -> 0
A19: Households | B19: 2400 | K19: =SUM(C19:J19) -> 0 | L19: =SUM(F19:J19) -> 0
A20: Other | B20: 2500 | K20: =SUM(C20:J20) -> 0 | L20: =SUM(F20:J20) -> 0
A21: Total By Customer Group | B21: 2600 | C21: =SUM(C17:C20) -> 0 | D21: 0 | E21: 0 | F21: 0 | G21: 0 | H21: 0 | I21: 0 | J21: =SUM(J17:J20) -> 0 | K21: =SUM(K17:K20) -> 0 | L21: =SUM(L17:L20) -> 0 | M21: =SUM(M17:M20) -> 0 | N21: =SUM(N17:N20) -> 0
A22: Notes
A23: Material increases in value of debtors' categories compared to previous month to be explained
A24: Bad debts = amounts actually written off in the month
A25: Total by Income Source must reconcile with Total by Customer Group
C26: =C14-C21 -> 0 | D26: =D14-D21 -> 0 | E26: =E14-E21 -> 0 | F26: 0 | G26: 0 | H26: 0 | I26: 0 | J26: =J14-J21 -> 0 | K26: 0
C27: =IF(C26=0,"","MUST AGREE") ->  | D27: =IF(D26=0,"","MUST AGREE") -> 

Sheet SC4
A1: =muni& " - "&S71J& " - "&Head57 -> LIM351 Blouberg - Supporting Table SC4 Monthly Budget Statement - aged creditors - M01 July
A2: =desc -> Description | B2: NT Code | C2: =Head2 -> Budget Year 2024/25 | L2: Prior year totals for chart (same period)
C3: 0 - 30 Days | D3: 31 - 60 Days | E3: 61 - 90 Days | F3: 91 - 120 Days | G3: 121 - 150 Days | H3: 151 - 180 Days | I3: 181 Days - 1 Year | J3: Over 1 Year | K3: Total
A4: R thousands
A5: Creditors Age Analysis By Customer Type
A6: Bulk Electricity | B6: 0100 | K6: =SUM(C6:J6) -> 0
A7: Bulk Water | B7: 0200 | K7: =SUM(C7:J7) -> 0
A8: PAYE deductions | B8: 0300 | K8: 0
A9: VAT (output less input) | B9: 0400 | K9: 0
A10: Pensions / Retirement deductions | B10: 0500 | K10: 0
A11: Loan repayments | B11: 0600 | K11: 0
A12: Trade Creditors | B12: 0700 | K12: 0
A13: Auditor General | B13: 0800 | K13: 0
A14: Other | B14: 0900 | K14: =SUM(C14:J14) -> 0
A15: Medical Aid deductions | K15: =SUM(C15:J15) -> 0
A16: Total By Customer Type | B16: 1000 | C16: =SUM(C6:C15) -> 0 | D16: =SUM(D6:D15) -> 0 | E16: 0 | F16: 0 | G16: 0 | H16: 0 | I16: 0 | J16: 0 | K16: 0 | L16: 0
A17: Notes
A18: Material increases in value of creditors' categories compared to previous month to be explained

Sheet SC5
A1: =muni& " - "&S71K& " - "&Head57 -> LIM351 Blouberg - Supporting Table SC5 Monthly Budget Statement - investment portfolio - M01 July
A2: Investments by maturity Name of institution & investment ID | B2: Ref | C2: Period of Investment | D2: Type of Investment | E2: Capital Guarantee (Yes/ No) | F2: Variable or Fixed interest rate | G2: Interest Rate ᶟ | H2: Commission Paid (Rands) | I2: Commission Recipient | J2: Expiry date of investment | K2: Opening balance | L2: Interest to be realised | M2: Partial / Premature Withdrawal (4) | N2: Investment Top Up | O2: Closing Balance
A3: R thousands | C3: Yrs/Months
A4: Municipality
A5: Absa | C5: Months | D5: Fixed | E5: Yes | F5: Variable | G5: 7.22 | H5: 0 | I5: 0 | J5: 0000/00/00 | K5: 57 | L5: 0 | M5: 0 | N5: 0 | O5: =SUM(K5:N5) -> 57
A6: Municipality sub-total | K6: =SUM(K5:K5) -> 57 | L6: =SUM(L5:L5) -> 0 | M6: =SUM(M5:M5) -> 0 | N6: =SUM(N5:N5) -> 0 | O6: =SUM(O5:O5) -> 57
A8: Entities
O9: =SUM(K9:N9) -> 0
O10: 0
O11: 0
O12: 0
O13: 0
O14: 0
O15: 0
A16: Entities sub-total | K16: =SUM(K9:K15) -> 0 | L16: =SUM(L9:L15) -> 0 | M16: =SUM(M9:M15) -> 0 | N16: =SUM(N9:N15) -> 0 | O16: =SUM(O9:O15) -> 0
A18: TOTAL INVESTMENTS AND INTEREST | B18: 2 | K18: =K6+K16 -> 57 | L18: =L6+L16 -> 0 | M18: =M6+M16 -> 0 | N18: =N6+N16 -> 0 | O18: =O6+O16 -> 57
A19: =head27a -> References
A20: 2. List investments in expiry date order
A21: 3. If 'variable' is selected in column F, input interest rate range
A22: 4. Withdrawals to be entered as negative

Sheet SC6
A1: =muni& " - "&S71L& " - "&Head57 -> LIM351 Blouberg - Supporting Table SC6 Monthly Budget Statement - transfers and grant receipts - M01 July
A2: =desc -> Description | B2: =head27 -> Ref | C2: =Head1 -> 2023/24 | D2: =Head2 -> Budget Year 2024/25
C3: =Head5 -> Audited Outcome | D3: =Head6 -> Original Budget | E3: =Head7 -> Adjusted Budget | F3: =Head38 -> Monthly actual | G3: =Head39 -> YearTD actual | H3: =Head40 -> YearTD budget | I3: =Head41 -> YTD variance | J3: =Head41 -> YTD variance | K3: =Head8 -> Full Year Forecast
A4: R thousands | J4: %
A5: RECEIPTS: | B5: 1,2
A7: Operating Transfers and Grants
A8: National Government: | C8: =SUM(C9:C14) -> 241376084 | D8: 250671000 | E8: 250671000 | F8: 0 | G8: 0 | H8: 20889249 | I8: =G8-H8 -> -20889249 | J8: =IF(H8=0,"",I8/H8) -> -1 | K8: =SUM(K9:K14) -> 250671000
A9: Energy Efficiency and Demand Side Management Grant | C9: 0 | D9: 0 | E9: 0 | F9: 0 | G9: 0 | H9: 0 | I9: 0 | K9: 0
A10: Equitable Share | C10: 233791778.1 | D10: 246266000 | E10: 246266000 | F10: 0 | G10: 0 | H10: 20522166 | I10: -20522166 | J10: -1 | K10: 246266000
A11: Expanded Public Works Programme Integrated Grant | C11: 1185000 | D11: 2005000 | E11: 2005000 | F11: 0 | G11: 0 | H11: 167083 | I11: -167083 | J11: -1 | K11: 2005000
A12: Local Government Financial Management Grant | C12: 2400000 | D12: 2400000 | E12: 2400000 | F12: 0 | G12: 0 | H12: 200000 | I12: -200000 | J12: -1 | K12: 2400000
A13: Municipal Demarcation Transition Grant | C13: 0 | D13: 0 | E13: 0 | F13: 0 | G13: 0 | H13: 0 | I13: 0 | K13: 0
A14: Municipal Disaster Relief Grant | B14: 3 | C14: 3999305.96 | D14: 0 | E14: 0 | F14: 0 | G14: 0 | H14: 0 | I14: 0 | K14: 0
A15: Other transfers and grants [insert description] | I15: =G15-H15 -> 0 | J15: =IF(I15=0,"",I15/H15) -> 
A16: Provincial Government: | C16: =SUM(C17:C18) -> 0 | D16: 0 | E16: 0 | F16: 0 | G16: 0 | H16: 0 | I16: 0 | K16: =SUM(K17:K18) -> 0
I17: =G17-H17 -> 0
A18: Other transfers and grants [insert description] | I18: 0
A19: District Municipality: | C19: =SUM(C20:C20) -> 0 | D19: 0 | E19: 0 | F19: 0 | G19: 0 | H19: 0 | I19: =G19-H19 -> 0 | J19: =IF(H19=0,"",I19/H19) ->  | K19: =SUM(K20:K20) -> 0
A20: Specify (Add grant description) | C20: 0 | D20: 0 | E20: 0 | F20: 0 | G20: 0 | H20: 0 | I20: =G20-H20 -> 0 | J20: =IF(H20=0,"",I20/H20) ->  | K20: 0
A21: Other grant providers: | C21: =SUM(C22:C23) -> 0 | D21: 0 | E21: 0 | F21: 0 | G21: 0 | H21: 0 | I21: =G21-H21 -> 0 | J21: =IF(H21=0,"",I21/H21) ->  | K21: =SUM(K22:K23) -> 0
A22: Mayors' Charity Fund | C22: 0 | D22: 0 | E22: 0 | F22: 0 | G22: 0 | H22: 0 | I22: =G22-H22 -> 0 | J22: =IF(H22=0,"",I22/H22) ->  | K22: 0
A23: National Skills Fund | C23: 0 | D23: 0 | E23: 0 | F23: 0 | G23: 0 | H23: 0 | I23: =G23-H23 -> 0 | J23: =IF(H23=0,"",I23/H23) ->  | K23: 0
A24: Total Operating Transfers and Grants | B24: 5 | C24: =C8+C16+C19+C21 -> 241376084 | D24: 250671000 | E24: 250671000 | F24: 0 | G24: 0 | H24: 20889249 | I24: -20889249 | J24: -1 | K24: =K8+K16+K19+K21 -> 250671000
A26: Capital Transfers and Grants
A27: =A8 -> National Government: | C27: =SUM(C28:C31) -> 95456552.07 | D27: 67485000 | E27: 67485000 | F27: 0 | G27: 0 | H27: 5623749 | I27: =G27-H27 -> -5623749 | J27: =IF(H27=0,"",I27/H27) -> -1 | K27: =SUM(K28:K31) -> 67485000
A28: Energy Efficiency and Demand Side Management Grant | C28: 0 | D28: 0 | E28: 0 | F28: 0 | G28: 0 | H28: 0 | I28: =G28-H28 -> 0 | J28: =IF(H28=0,"",I28/H28) ->  | K28: 0
A29: Integrated National Electrification Programme Grant | C29: 22720354.47 | D29: 0 | E29: 0 | F29: 0 | G29: 0 | H29: 0 | I29: =G29-H29 -> 0 | J29: =IF(H29=0,"",I29/H29) ->  | K29: 0
A30: Municipal Disaster Relief Grant | C30: 4395023.81 | D30: 15716000 | E30: 15716000 | F30: 0 | G30: 0 | H30: 1309666 | I30: =G30-H30 -> -1309666 | J30: =IF(H30=0,"",I30/H30) -> -1 | K30: 15716000
A31: Municipal Infrastructure Grant | C31: 68341173.79 | D31: 51769000 | E31: 51769000 | F31: 0 | G31: 0 | H31: 4314083 | I31: =G31-H31 -> -4314083 | J31: =IF(H31=0,"",I31/H31) -> -1 | K31: 51769000
A32: =A16 -> Provincial Government: | C32: =SUM(C33:C33) -> 0 | D32: 0 | E32: 0 | F32: 0 | G32: 0 | H32: 0 | I32: =G32-H32 -> 0 | J32: =IF(I32=0,"",I32/H32) ->  | K32: =SUM(K33:K33) -> 0
A33: [insert description] | I33: 0 | J33: =IF(I33=0,"",I33/H33) -> 
A34: =A19 -> District Municipality: | C34: =SUM(C35:C35) -> 0 | D34: 0 | E34: 0 | F34: 0 | G34: 0 | H34: 0 | I34: 0 | J34: =IF(I34=0,"",I34/H34) ->  | K34: =SUM(K35:K35) -> 0
A35: [insert description] | I35: 0
A36: =A21 -> Other grant providers: | C36: =SUM(C37:C37) -> 0 | D36: 0 | E36: 0 | F36: 0 | G36: 0 | H36: 0 | I36: 0 | K36: =SUM(K37:K37) -> 0
A37: [insert description] | I37: =G37-H37 -> 0
A38: Total Capital Transfers and Grants | B38: 5 | C38: =C27+C32+C34+C36 -> 95456552.07 | D38: 67485000 | E38: 67485000 | F38: 0 | G38: 0 | H38: 5623749 | I38: -5623749 | J38: -1 | K38: =K27+K32+K34+K36 -> 67485000
A40: TOTAL RECEIPTS OF TRANSFERS & GRANTS | B40: 5 | C40: =C24+C38 -> 336832636.1 | D40: 318156000 | E40: 318156000 | F40: 0 | G40: 0 | H40: 26512998 | I40: -26512998 | J40: -1 | K40: =K24+K38 -> 318156000
A41: =head27a -> References
A42: 1. Each grant is listed by name as gazetted together with the name of the transferring department or municipality, donor or other organisation
A43: 2. Grant expenditure must be separately listed for each grant received
A44: 3. Replacement of RSC levies
A45: 4. Housing subsidies for housing where ownership transferred
A46: 5. Total recurrent/capital grants and subsidies must reconcile to the 'Financial Performance' Statement

Sheet SC8
A1: =muni& " - "&S71N& " - "&Head57 -> LIM351 Blouberg - Supporting Table SC8 Monthly Budget Statement - councillor and staff benefits - M01 July
A2: Summary of Employee and Councillor remuneration | B2: =head27 -> Ref | C2: =Head1 -> 2023/24 | D2: =Head2 -> Budget Year 2024/25
C3: =Head5 -> Audited Outcome | D3: =Head6 -> Original Budget | E3: =Head7 -> Adjusted Budget | F3: =Head38 -> Monthly actual | G3: =Head39 -> YearTD actual | H3: =Head40 -> YearTD budget | I3: =Head41 -> YTD variance | J3: =Head41 -> YTD variance | K3: =Head8 -> Full Year Forecast
A4: R thousands | J4: %
B5: 1 | C5: A | D5: B | E5: C | K5: D
A6: Councillors (Political Office Bearers plus Other)
A7: Basic Salaries and Wages | C7: 9242462.53 | D7: 11074677 | E7: 11074677 | F7: 902560.43 | G7: 902560.43 | H7: 922893 | I7: =G7-H7 -> -20332.57 | J7: =IF(I7=0,"",I7/H7) -> -0.02203134058 | K7: 11074677
A8: Pension and UIF Contributions | C8: 3036249.24 | D8: 3489800 | E8: 3489800 | F8: 0 | G8: 0 | H8: 290820 | I8: -290820 | J8: -1 | K8: 3489800
A9: Medical Aid Contributions | C9: 0 | D9: 0 | E9: 0 | F9: 0 | G9: 0 | H9: 0 | I9: 0 | K9: 0
A10: Motor Vehicle Allowance | C10: 221855.68 | D10: 246580 | E10: 246580 | F10: 18601.47 | G10: 18601.47 | H10: 20549 | I10: -1947.53 | J10: -0.09477492822 | K10: 246580
A11: Cellphone Allowance | C11: 2033653.8 | D11: 2817483 | E11: 2817483 | F11: 168231 | G11: 168231 | H11: 234794 | I11: -66563 | J11: -0.2834953193 | K11: 2817483
A12: Housing Allowances | C12: 0 | D12: 0 | E12: 0 | F12: 0 | G12: 0 | H12: 0 | I12: 0 | K12: 0
A13: Other benefits and allowances | C13: 4678495.78 | D13: 4369125 | E13: 4369125 | F13: 419238.6 | G13: 419238.6 | H13: 364096 | I13: 55142.6 | J13: 0.1514507163 | K13: 4369125
A14: Sub Total - Councillors | C14: =SUM(C7:C13) -> 19212717.03 | D14: 21997665 | E14: 21997665 | F14: 1508631.5 | G14: 1508631.5 | H14: 1833152 | I14: -324520.5 | J14: -0.1770286916 | K14: =SUM(K7:K13) -> 21997665
A15: % increase | B15: 4 | D15: =IF(D14=0,"",(D14/C14)-1) -> 0.1449533643 | E15: =IF(E14=0,"",(E14/C14)-1) -> 0.1449533643 | K15: =IF(K14=0,"",(K14/C14)-1) -> 0.1449533643
A17: Senior Managers of the Municipality | B17: 3
A18: Basic Salaries and Wages | C18: 1834247.65 | D18: 5663783 | E18: 5663783 | F18: 176181.1 | G18: 176181.1 | H18: 471985 | I18: =G18-H18 -> -295803.9 | J18: =IF(I18=0,"",I18/H18) -> -0.626723095 | K18: 5663783
A19: Pension and UIF Contributions | C19: 302491.97 | D19: 1483565 | E19: 1483565 | F19: 37551.92 | G19: 37551.92 | H19: 123638 | I19: -86086.08 | J19: -0.6962752552 | K19: 1483565
A20: Medical Aid Contributions | C20: 0 | D20: 0 | E20: 0 | F20: 0 | G20: 0 | H20: 0 | I20: 0 | K20: 0
A21: Overtime | C21: 0 | D21: 0 | E21: 0 | F21: 0 | G21: 0 | H21: 0 | I21: 0 | K21: 0
A22: Performance Bonus | C22: 115382.04 | D22: 336982 | E22: 336982 | F22: 0 | G22: 0 | H22: 28083 | I22: -28083 | J22: -1 | K22: 336982
A23: Motor Vehicle Allowance | C23: 523133.01 | D23: 1704497 | E23: 1704497 | F23: 66075.43 | G23: 66075.43 | H23: 142045 | I23: -75969.57 | J23: -0.5348274842 | K23: 1704497
A24: Cellphone Allowance | C24: 100150.28 | D24: 220368 | E24: 220368 | F24: 12032.42 | G24: 12032.42 | H24: 18367 | I24: -6334.58 | J24: -0.3448892035 | K24: 220368
A25: Housing Allowances | C25: 0 | D25: 0 | E25: 0 | F25: 0 | G25: 0 | H25: 0 | I25: 0 | K25: 0
A26: Other benefits and allowances | C26: 168664.67 | D26: 879 | E26: 879 | F26: 16555.6 | G26: 16555.6 | H26: 77 | I26: 16478.6 | J26: 214.0077922 | K26: 879
A27: Payments in lieu of leave | C27: 0 | D27: 0 | E27: 0 | F27: 0 | G27: 0 | H27: 0 | I27: 0 | K27: 0
A28: Long service awards | C28: 0 | D28: 0 | E28: 0 | F28: 0 | G28: 0 | H28: 0 | I28: 0 | K28: 0
A29: Post-retirement benefit obligations | B29: 2 | C29: 0 | D29: 0 | E29: 0 | F29: 0 | G29: 0 | H29: 0 | I29: 0 | K29: 0
A30: Entertainment | C30: 0 | D30: 0 | E30: 0 | F30: 0 | G30: 0 | H30: 0 | I30: =G30-H30 -> 0 | J30: =IF(I30=0,"",I30/H30) ->  | K30: 0
A31: Scarcity | I31: 0
A32: Acting and post related allowance | C32: 0 | D32: 0 | E32: 0 | F32: 0 | G32: 0 | H32: 0 | I32: 0 | K32: 0
A33: In kind benefits | I33: 0
A34: Sub Total - Senior Managers of Municipality | C34: =SUM(C18:C33) -> 3044069.62 | D34: 9410074 | E34: 9410074 | F34: 308396.47 | G34: 308396.47 | H34: 784195 | I34: =G34-H34 -> -475798.53 | J34: =IF(I34=0,"",I34/H34) -> -0.6067349703 | K34: =SUM(K18:K33) -> 9410074
A35: % increase | B35: 4 | D35: =IF(D34=0,"",(D34/C34)-1) -> 2.09128081 | E35: =IF(E34=0,"",(E34/C34)-1) -> 2.09128081 | K35: =IF(K34=0,"",(K34/C34)-1) -> 2.09128081
A37: Other Municipal Staff
A38: Basic Salaries and Wages | C38: 71376380.11 | D38: 69838622 | E38: 69838622 | F38: 6109644.23 | G38: 6109644.23 | H38: 5819890 | I38: =G38-H38 -> 289754.23 | J38: =IF(I38=0,"",I38/H38) -> 0.04978689116 | K38: 69838622
A39: Pension and UIF Contributions | C39: 16838948.6 | D39: 18593509 | E39: 18593509 | F39: 1412857.57 | G39: 1412857.57 | H39: 1549468 | I39: -136610.43 | J39: -0.08816602214 | K39: 18593509
A40: Medical Aid Contributions | C40: 5402193.84 | D40: 4936837 | E40: 4936837 | F40: 471495.62 | G40: 471495.62 | H40: 411407 | I40: 60088.62 | J40: 0.146056387 | K40: 4936837
A41: Overtime | C41: 5187614.27 | D41: 1670100 | E41: 1670100 | F41: 330208.59 | G41: 330208.59 | H41: 139178 | I41: 191030.59 | J41: 1.372563121 | K41: 1670100
A42: Performance Bonus | C42: 6311125.81 | D42: 8192951 | E42: 8192951 | F42: 560258.74 | G42: 560258.74 | H42: 682750 | I42: -122491.26 | J42: -0.1794086562 | K42: 8192951
A43: Motor Vehicle Allowance | C43: 17209325.5 | D43: 21275267 | E43: 21275267 | F43: 1468856.88 | G43: 1468856.88 | H43: 1772944 | I43: -304087.12 | J43: -0.1715153553 | K43: 21275267
A44: Cellphone Allowance | C44: 3145947.98 | D44: 2767358 | E44: 2767358 | F44: 264929.18 | G44: 264929.18 | H44: 230617 | I44: 34312.18 | J44: 0.1487842614 | K44: 2767358
A45: Housing Allowances | C45: 281532.24 | D45: 419937 | E45: 419937 | F45: 24527.43 | G45: 24527.43 | H45: 34997 | I45: -10469.57 | J45: -0.2991562134 | K45: 419937
A46: Other benefits and allowances | C46: 720634.56 | D46: 619315 | E46: 619315 | F46: 28013.32 | G46: 28013.32 | H46: 51615 | I46: -23601.68 | J46: -0.4572639737 | K46: 619315
A47: Payments in lieu of leave | C47: 825921.55 | D47: 2468012 | E47: 2468012 | F47: 0 | G47: 0 | H47: 205671 | I47: -205671 | J47: -1 | K47: 2468012
A48: Long service awards | C48: 0 | D48: 108358 | E48: 108358 | F48: 62759.9 | G48: 62759.9 | H48: 9030 | I48: 53729.9 | J48: 5.950155039 | K48: 108358
A49: Post-retirement benefit obligations | B49: 2 | C49: 1392871 | D49: 0 | E49: 0 | F49: 0 | G49: 0 | H49: 0 | I49: 0 | K49: 0
A50: Entertainment | I50: 0
A51: Scarcity | I51: 0
A52: Acting and post related allowance | C52: 528162.41 | D52: 454741 | E52: 454741 | F52: 19377.74 | G52: 19377.74 | H52: 37898 | I52: -18520.26 | J52: -0.488687002 | K52: 454741
A53: In kind benefits | I53: 0
A54: Sub Total - Other Municipal Staff | C54: =SUM(C38:C53) -> 129220657.9 | D54: 131345007 | E54: 131345007 | F54: 10752929.2 | G54: 10752929.2 | H54: 10945465 | I54: -192535.8 | J54: -0.01759046326 | K54: =SUM(K38:K53) -> 131345007
A55: % increase | B55: 4 | D55: =IF(D54=0,"",(D54/C54)-1) -> 0.01643970217 | E55: =IF(E54=0,"",(E54/C54)-1) -> 0.01643970217 | K55: =IF(K54=0,"",(K54/C54)-1) -> 0.01643970217
A56: Total Parent Municipality | C56: =C14+C34+C54 -> 151477444.5 | D56: 162752746 | E56: 162752746 | F56: 12569957.17 | G56: 12569957.17 | H56: 13562812 | I56: =G56-H56 -> -992854.83 | J56: =IF(I56=0,"",I56/H56) -> -0.07320420205 | K56: =K14+K34+K54 -> 162752746
D57: =IF(D56=0,"",(D56/C56)-1) -> 0.07443551425 | E57: =IF(E56=0,"",(E56/C56)-1) -> 0.07443551425 | K57: =IF(K56=0,"",(K56/C56)-1) -> 0.07443551425
A58: Unpaid salary, allowances & benefits in arrears:
A60: Board Members of Entities
A61: Basic Salaries and Wages | I61: =G61-H61 -> 0 | J61: =IF(I61=0,"",I61/H61) -> 
A62: Pension and UIF Contributions | I62: 0
A63: Medical Aid Contributions | I63: 0
A64: Overtime | I64: 0
A65: Performance Bonus | I65: 0
A66: Motor Vehicle Allowance | I66: 0
A67: Cellphone Allowance | I67: 0
A68: Housing Allowances | I68: 0
A69: Other benefits and allowances | I69: 0
A70: Board Fees | B70: 5 | I70: 0
A71: Payments in lieu of leave | I71: 0
A72: Long service awards | I72: 0
A73: Post-retirement benefit obligations | I73: 0
A74: Entertainment | I74: =G74-H74 -> 0 | J74: =IF(I74=0,"",I74/H74) -> 
A75: Scarcity | I75: 0
A76: Acting and post related allowance | I76: 0
A77: In kind benefits | I77: 0
A78: Sub Total - Executive members Board | B78: 2 | C78: =SUM(C61:C77) -> 0 | D78: 0 | E78: 0 | F78: 0 | G78: 0 | H78: 0 | I78: =G78-H78 -> 0 | J78: =IF(I78=0,"",I78/H78) ->  | K78: =SUM(K61:K77) -> 0
A79: % increase | B79: 4 | D79: =IF(D78=0,"",(D78/C78)-1) ->  | E79: =IF(E78=0,"",(E78/C78)-1) ->  | K79: =IF(K78=0,"",(K78/C78)-1) -> 
A81: Senior Managers of Entities
A82: Basic Salaries and Wages | I82: =G82-H82 -> 0 | J82: =IF(I82=0,"",I82/H82) -> 
A83: Pension and UIF Contributions | I83: 0
A84: Medical Aid Contributions | I84: 0
A85: Overtime | I85: 0
A86: Performance Bonus | I86: 0
A87: Motor Vehicle Allowance | I87: 0
A88: Cellphone Allowance | I88: 0
A89: Housing Allowances | I89: 0
A90: Other benefits and allowances | I90: 0
A91: Payments in lieu of leave | I91: 0
A92: Long service awards | I92: 0
A93: Post-retirement benefit obligations | B93: 2 | I93: 0
A94: Entertainment | I94: =G94-H94 -> 0 | J94: =IF(I94=0,"",I94/H94) -> 
A95: Scarcity | I95: 0
A96: Acting and post related allowance | I96: 0
A97: In kind benefits | I97: 0
A98: Sub Total - Senior Managers of Entities | C98: =SUM(C82:C97) -> 0 | D98: 0 | E98: 0 | F98: 0 | G98: 0 | H98: 0 | I98: =G98-H98 -> 0 | J98: =IF(I98=0,"",I98/H98) ->  | K98: =SUM(K82:K97) -> 0
A99: % increase | B99: 4 | D99: =IF(D98=0,"",(D98/C98)-1) ->  | E99: =IF(E98=0,"",(E98/C98)-1) ->  | K99: =IF(K98=0,"",(K98/C98)-1) -> 
A101: Other Staff of Entities
A102: Basic Salaries and Wages | I102: =G102-H102 -> 0 | J102: =IF(I102=0,"",I102/H102) -> 
A103: Pension and UIF Contributions | I103: 0
A104: Medical Aid Contributions | I104: 0
A105: Overtime | I105: 0
A106: Performance Bonus | I106: 0
A107: Motor Vehicle Allowance | I107: 0
A108: Cellphone Allowance | I108: 0
A109: Housing Allowances | I109: 0
A110: Other benefits and allowances | I110: 0
A111: Payments in lieu of leave | I111: 0
A112: Long service awards | I112: 0
A113: Post-retirement benefit obligations | I113: 0
A114: Entertainment | I114: 0
A115: Scarcity | I115: 0
A116: Acting and post related allowance | I116: 0
A117: In kind benefits | I117: 0
A118: Sub Total - Other Staff of Entities | C118: =SUM(C102:C117) -> 0 | D118: 0 | E118: 0 | F118: 0 | G118: 0 | H118: 0 | I118: =G118-H118 -> 0 | J118: =IF(I118=0,"",I118/H118) ->  | K118: =SUM(K102:K117) -> 0
A119: % increase | B119: 4 | D119: =IF(D118=0,"",(D118/C118)-1) ->  | E119: =IF(E118=0,"",(E118/C118)-1) ->  | K119: =IF(K118=0,"",(K118/C118)-1) -> 
A120: Total Municipal Entities | C120: =C78+C98+C118 -> 0 | D120: 0 | E120: 0 | F120: 0 | G120: 0 | H120: 0 | I120: =G120-H120 -> 0 | J120: =IF(I120=0,"",I120/H120) ->  | K120: =K78+K98+K118 -> 0
A121: TOTAL SALARY, ALLOWANCES & BENEFITS | C121: =C56+C120 -> 151477444.5 | D121: 162752746 | E121: 162752746 | F121: 12569957.17 | G121: 12569957.17 | H121: 13562812 | I121: =G121-H121 -> -992854.83 | J121: =IF(I121=0,"",I121/H121) -> -0.07320420205 | K121: =K56+K120 -> 162752746
A122: % increase | B122: 4 | D122: =IF(D121=0,"",(D121/C121)-1) -> 0.07443551425 | E122: =IF(E121=0,"",(E121/C121)-1) -> 0.07443551425 | K122: =IF(K121=0,"",(K121/C121)-1) -> 0.07443551425
A123: TOTAL MANAGERS AND STAFF | C123: =C34+C54+C98+C118 -> 132264727.5 | D123: 140755081 | E123: 140755081 | F123: 11061325.67 | G123: 11061325.67 | H123: 11729660 | I123: -668334.33 | J123: =IF(I123=0,"",I123/H123) -> -0.05697815026 | K123: =K34+K54+K98+K118 -> 140755081
A124: =head27a -> References
A125: 1. Include 'Loans and advances' where applicable if any reportable amounts until phased compliance with s164 of MFMA achieved
A126: 2. If benefits in kind are provided (e.g. provision of living quarters) the full market value must be shown as the cost to the municipality
A127: 3. s57 of the Systems Act
A128: 4. B/A, C/A, D/A
A129: 5. Included in Contracted services
A130: Column Definitions:
A131: A. Audited actual 2022/23 (audited financial statements). If audited amounts unavailable, unaudited amounts must be provided with a note stating these are unaudited
A132: B. The original budget approved by council for the 2023/24 budget year.
A133: C. The budget for 2023/24 budget year as adjusted by council resolution in terms of section 28 of the MFMA.
A134: D. An estimate of final actual amounts (pre audit - 2006/07 budget year) at the time of preparing the budget for the 2007/08 budget year. This may differ from C.

Sheet SC7
A1: =muni& " - "&S71M& " - "&Head57 -> LIM351 Blouberg - Supporting Table SC7(1) Monthly Budget Statement - transfers and grant expenditure - M01 July
A2: =desc -> Description | B2: =head27 -> Ref | C2: =Head1 -> 2023/24 | D2: =Head2 -> Budget Year 2024/25
C3: =Head5 -> Audited Outcome | D3: =Head6 -> Original Budget | E3: =Head7 -> Adjusted Budget | F3: =Head38 -> Monthly actual | G3: =Head39 -> YearTD actual | H3: =Head40 -> YearTD budget | I3: =Head41 -> YTD variance | J3: =Head41 -> YTD variance | K3: =Head8 -> Full Year Forecast
A4: R thousands | J4: %
A5: EXPENDITURE
A7: Operating expenditure of Transfers and Grants
A8: ='SC6'!A8 -> National Government: | C8: =SUM(C9:C15) -> 216324524.9 | D8: 248940196 | E8: 248940196 | F8: 20318664.13 | G8: 20318664.13 | H8: 20745159 | I8: -426494.87 | J8: =IF(I8=0,"",I8/H8) -> -0.02055876602 | K8: =SUM(K9:K15) -> 248940196
I9: =G9-H9 -> 0
A10: Equitable Share | C10: 209212517.9 | D10: 242535196 | E10: 242535196 | F10: 19707906.59 | G10: 19707906.59 | H10: 20211406 | I10: =G10-H10 -> -503499.41 | J10: =IF(H10=0,"",I10/H10) -> -0.02491164692 | K10: 242535196
A11: Expanded Public Works Programme Integrated Grant | C11: 1185000 | D11: 2005000 | E11: 2005000 | F11: 561931.98 | G11: 561931.98 | H11: 167084 | I11: 394847.98 | J11: 2.363170501 | K11: 2005000
A12: Local Government Financial Management Grant | C12: 2395838.7 | D12: 2400000 | E12: 2400000 | F12: 2599.56 | G12: 2599.56 | H12: 200001 | I12: -197401.44 | J12: -0.987002265 | K12: 2400000
A13: Municipal Demarcation Transition Grant | C13: 0 | D13: 0 | E13: 0 | F13: 0 | G13: 0 | H13: 0 | I13: 0 | K13: 0
A14: Municipal Disaster Relief Grant | C14: 3477657.36 | D14: 0 | E14: 0 | F14: 0 | G14: 0 | H14: 0 | I14: 0 | K14: 0
A15: Municipal Infrastructure Grant | C15: 53511.01 | D15: 2000000 | E15: 2000000 | F15: 46226 | G15: 46226 | H15: 166668 | I15: -120442 | J15: -0.7226462188 | K15: 2000000
A16: ='SC6'!A16 -> Provincial Government: | C16: =SUM(C17:C17) -> 0 | D16: 0 | E16: 0 | F16: 0 | G16: 0 | H16: 0 | I16: 0 | K16: =SUM(K17:K17) -> 0
I17: =G17-H17 -> 0
A18: ='SC6'!A19 -> District Municipality: | C18: =SUM(C19:C19) -> 0 | D18: 0 | E18: 0 | F18: 0 | G18: 0 | H18: 0 | I18: 0 | K18: =SUM(K19:K19) -> 0
A19: Specify (Add grant description) | C19: 0 | D19: 0 | E19: 0 | F19: 0 | G19: 0 | H19: 0 | I19: =G19-H19 -> 0 | J19: =IF(H19=0,"",I19/H19) ->  | K19: 0
A20: ='SC6'!A21 -> Other grant providers: | C20: =SUM(C21:C22) -> 199283 | D20: 200000 | E20: 200000 | F20: 0 | G20: 0 | H20: 16667 | I20: -16667 | J20: -1 | K20: =SUM(K21:K22) -> 200000
A21: National Skills Fund | C21: 0 | D21: 0 | E21: 0 | F21: 0 | G21: 0 | H21: 0 | I21: =G21-H21 -> 0 | J21: =IF(H21=0,"",I21/H21) ->  | K21: 0
A22: Skill Development and Training | C22: 199283 | D22: 200000 | E22: 200000 | F22: 0 | G22: 0 | H22: 16667 | I22: =G22-H22 -> -16667 | J22: =IF(H22=0,"",I22/H22) -> -1 | K22: 200000
A23: Total operating expenditure of Transfers and Grants: | C23: =C8+C16+C18+C20 -> 216523807.9 | D23: 249140196 | E23: 249140196 | F23: 20318664.13 | G23: 20318664.13 | H23: 20761826 | I23: -443161.87 | J23: -0.02134503343 | K23: =K8+K16+K18+K20 -> 249140196
A25: Capital expenditure of Transfers and Grants
A26: ='SC6'!A27 -> National Government: | C26: =SUM(C27:C31) -> 83484427.59 | D26: 65785000 | E26: 65785000 | F26: 6394127.53 | G26: 6394127.53 | H26: 5482086 | I26: 912041.53 | J26: =IF(I26=0,"",I26/H26) -> 0.1663676071 | K26: =SUM(K27:K31) -> 65785000
A27: Energy Efficiency and Demand Side Management Grant | C27: 0 | D27: 300000 | E27: 300000 | F27: 0 | G27: 0 | H27: 25000 | I27: =G27-H27 -> -25000 | J27: =IF(H27=0,"",I27/H27) -> -1 | K27: 300000
A28: Integrated National Electrification Programme Grant | C28: 20272793.44 | D28: 0 | E28: 0 | F28: 0 | G28: 0 | H28: 0 | I28: =G28-H28 -> 0 | J28: =IF(H28=0,"",I28/H28) ->  | K28: 0
A29: Local Government Financial Management Grant | C29: 0 | D29: 0 | E29: 0 | F29: 0 | G29: 0 | H29: 0 | I29: =G29-H29 -> 0 | J29: =IF(H29=0,"",I29/H29) ->  | K29: 0
A30: Municipal Disaster Relief Grant | C30: 3821759.83 | D30: 15716000 | E30: 15716000 | F30: 0 | G30: 0 | H30: 1309667 | I30: =G30-H30 -> -1309667 | J30: =IF(H30=0,"",I30/H30) -> -1 | K30: 15716000
A31: Municipal Infrastructure Grant | C31: 59389874.32 | D31: 49769000 | E31: 49769000 | F31: 6394127.53 | G31: 6394127.53 | H31: 4147419 | I31: =G31-H31 -> 2246708.53 | J31: =IF(H31=0,"",I31/H31) -> 0.5417124554 | K31: 49769000
A32: ='SC6'!A32 -> Provincial Government: | C32: =SUM(C33:C33) -> 0 | D32: 0 | E32: 0 | F32: 0 | G32: 0 | H32: 0 | I32: =G32-H32 -> 0 | K32: =SUM(K33:K33) -> 0
I33: 0
A34: ='SC6'!A34 -> District Municipality: | C34: =SUM(C35:C35) -> 0 | D34: 0 | E34: 0 | F34: 0 | G34: 0 | H34: 0 | I34: 0 | K34: =SUM(K35:K35) -> 0
I35: 0
A36: ='SC6'!A36 -> Other grant providers: | C36: =SUM(C37:C37) -> 0 | D36: 0 | E36: 0 | F36: 0 | G36: 0 | H36: 0 | I36: 0 | K36: =SUM(K37:K37) -> 0
A37: Discount Benefit Scheme (Housing | C37: 0 | D37: 0 | E37: 0 | F37: 0 | G37: 0 | H37: 0 | I37: =G37-H37 -> 0 | J37: =IF(H37=0,"",I37/H37) ->  | K37: 0
A38: Total capital expenditure of Transfers and Grants | C38: =C26+C32+C34+C36 -> 83484427.59 | D38: 65785000 | E38: 65785000 | F38: 6394127.53 | G38: 6394127.53 | H38: 5482086 | I38: 912041.53 | J38: =IF(I38=0,"",I38/H38) -> 0.1663676071 | K38: =K26+K32+K34+K36 -> 65785000
A40: TOTAL EXPENDITURE OF TRANSFERS AND GRANTS | C40: =C23+C38 -> 300008235.5 | D40: 314925196 | E40: 314925196 | F40: 26712791.66 | G40: 26712791.66 | H40: 26243912 | I40: 468879.66 | J40: =IF(I40=0,"",I40/H40) -> 0.01786622589 | K40: =K23+K38 -> 314925196
A41: =head27a -> References

Sheet SC9
A1: =muni& " - "&S71O& " - "&Head57 -> LIM351 Blouberg - Supporting Table SC9 Monthly Budget Statement - actuals and revised targets for cash receipts - M01 July
A2: =desc -> Description | B2: =head27 -> Ref | C2: =Head2 -> Budget Year 2024/25 | O2: ='Template names'!B5 -> 2024/25 Medium Term Revenue & Expenditure Framework
C3: July | D3: August | E3: Sept | F3: October | G3: Nov | H3: Dec | I3: January | J3: Feb | K3: March | L3: April | M3: May | N3: June | O3: =Head9 -> Budget Year 2024/25 | P3: =Head10 -> Budget Year +1 2025/26 | Q3: =Head11 -> Budget Year +2 2026/27
A4: R thousands | B4: 1 | C4: Outcome | D4: Budget | E4: Budget | F4: Budget | G4: Budget | H4: Budget | I4: Budget | J4: Budget | K4: Budget | L4: Budget | M4: Budget | N4: Budget
A5: Cash Receipts By Source
A6: Property rates | C6: 1880.47 | D6: 2738090.67 | E6: 2738090.67 | F6: 2738090.67 | G6: 2738090.67 | H6: 2738090.67 | I6: 2738090.67 | J6: 2738090.67 | K6: 2738090.67 | L6: 2738090.67 | M6: 2738090.67 | N6: =O6-SUM(C6:M6) -> 5474300.83 | O6: 32857088 | P6: 34368515 | Q6: 35915097
A7: Service charges - Electricity revenue | C7: 2104230.26 | D7: 4643845.83 | E7: 4643845.83 | F7: 4643845.83 | G7: 4643845.83 | H7: 4643845.83 | I7: 4643845.83 | J7: 4643845.83 | K7: 4643845.83 | L7: 4643845.83 | M7: 4643845.83 | N7: 7183461.44 | O7: 55726150 | P7: 58289553 | Q7: 60963638
A8: Service charges - Water revenue | C8: 2753.57 | D8: 0 | E8: 0 | F8: 0 | G8: 0 | H8: 0 | I8: 0 | J8: 0 | K8: 0 | L8: 0 | M8: 0 | N8: -2753.57 | O8: 0 | P8: 0 | Q8: 0
A9: Service charges - Waste Water Management | C9: 370.58 | D9: 0 | E9: 0 | F9: 0 | G9: 0 | H9: 0 | I9: 0 | J9: 0 | K9: 0 | L9: 0 | M9: 0 | N9: -370.58 | O9: 0 | P9: 0 | Q9: 0
A10: Service charges - Waste Mangement | C10: 438.86 | D10: 174833.33 | E10: 174833.33 | F10: 174833.33 | G10: 174833.33 | H10: 174833.33 | I10: 174833.33 | J10: 174833.33 | K10: 174833.33 | L10: 174833.33 | M10: 174833.33 | N10: 349227.84 | O10: 2098000 | P10: 2194508 | Q10: 2293261
N11: 0
A12: Rental of facilities and equipment | N12: 0
A13: Interest earned - external investments | C13: 0 | D13: 671966.33 | E13: 671966.33 | F13: 671966.33 | G13: 671966.33 | H13: 671966.33 | I13: 671966.33 | J13: 671966.33 | K13: 671966.33 | L13: 671966.33 | M13: 671966.33 | N13: 1343932.7 | O13: 8063596 | P13: 8434521 | Q13: 8814075
A14: Interest earned - outstanding debtors | N14: 0
A15: Dividends received | N15: 0
A16: Fines, penalties and forfeits | C16: 0 | D16: 20900.08 | E16: 20900.08 | F16: 20900.08 | G16: 20900.08 | H16: 20900.08 | I16: 20900.08 | J16: 20900.08 | K16: 20900.08 | L16: 20900.08 | M16: 20900.08 | N16: 41800.2 | O16: 250801 | P16: 262337 | Q16: 275428
A17: Licences and permits | C17: 111265.24 | D17: 437083.33 | E17: 437083.33 | F17: 437083.33 | G17: 437083.33 | H17: 437083.33 | I17: 437083.33 | J17: 437083.33 | K17: 437083.33 | L17: 437083.33 | M17: 437083.33 | N17: 762901.46 | O17: 5245000 | P17: 5486270 | Q17: 5738638
A18: Agency services | C18: 0 | D18: 26225 | E18: 26225 | F18: 26225 | G18: 26225 | H18: 26225 | I18: 26225 | J18: 26225 | K18: 26225 | L18: 26225 | M18: 26225 | N18: 52450 | O18: 314700 | P18: 329176 | Q18: 344318
A19: Transfers and Subsidies - Operational | C19: 0 | D19: 20889250 | E19: 20889250 | F19: 20889250 | G19: 20889250 | H19: 20889250 | I19: 20889250 | J19: 20889250 | K19: 20889250 | L19: 20889250 | M19: 20889250 | N19: 41778500 | O19: 250671000 | P19: 246554000 | Q19: 237981000
A20: Other revenue | C20: 1516436.24 | D20: 597105.09 | E20: 597105.09 | F20: 597105.09 | G20: 597105.09 | H20: 597105.09 | I20: 597105.09 | J20: 597105.09 | K20: 597105.09 | L20: 597105.09 | M20: 597105.09 | N20: -322226.14 | O20: 7165261 | P20: 10920735 | Q20: 12190088
A21: Cash Receipts by Source | C21: =SUM(C6:C20) -> 3737375.22 | D21: =SUM(D6:D20) -> 30199299.66 | E21: 30199299.66 | F21: 30199299.66 | G21: 30199299.66 | H21: 30199299.66 | I21: 30199299.66 | J21: 30199299.66 | K21: 30199299.66 | L21: 30199299.66 | M21: 30199299.66 | N21: 56661224.18 | O21: 362391596 | P21: 366839615 | Q21: 364515543
A22: Other Cash Flows by Source | N22: =O22-SUM(C22:M22) -> 0
A23: Transfers and subsidies - capital (monetary allocations) (National / Provincial and District) | C23: 0 | D23: 5623750 | E23: 5623750 | F23: 5623750 | G23: 5623750 | H23: 5623750 | I23: 5623750 | J23: 5623750 | K23: 5623750 | L23: 5623750 | M23: 5623750 | N23: 11247500 | O23: 67485000 | P23: 84932000 | Q23: 74767000
A24: Transfers and subsidies - capital (monetary allocations) (Nat / Prov Departm Agencies, Households, Non-profit Institutions, Private Enterprises, Public Corporatons, Higher Educ Institutions) | C24: 0 | D24: 0 | E24: 0 | F24: 0 | G24: 0 | H24: 0 | I24: 0 | J24: 0 | K24: 0 | L24: 0 | M24: 0 | N24: 0 | O24: 0 | P24: 0 | Q24: 0
A25: Proceeds on Disposal of Fixed and Intangible Assets | C25: 0 | D25: 0 | E25: 0 | F25: 0 | G25: 0 | H25: 0 | I25: 0 | J25: 0 | K25: 0 | L25: 0 | M25: 0 | N25: 0 | O25: 0 | P25: 0 | Q25: 0
A26: Short term loans | C26: 0 | D26: 0 | E26: 0 | F26: 0 | G26: 0 | H26: 0 | I26: 0 | J26: 0 | K26: 0 | L26: 0 | M26: 0 | N26: 0 | O26: 0 | P26: 0 | Q26: 0
A27: Borrowing long term/refinancing | N27: 0
A28: Increase (decrease) in consumer deposits | N28: 0
A29: VAT Control (receipts) | N29: 0
A30: Decrease (increase) in non-current receivables | N30: 0
A31: Decrease (increase) in non-current investments | C31: 0 | D31: -892385 | E31: -892385 | F31: -892385 | G31: -892385 | H31: -892385 | I31: -892385 | J31: -892385 | K31: -892385 | L31: -892385 | M31: -892385 | N31: -1784753 | O31: -10708603 | P31: -11201198 | Q31: -11705253
A32: Total Cash Receipts by Source | C32: =SUM(C21:C31) -> 3737375.22 | D32: =SUM(D21:D31) -> 34930664.66 | E32: 34930664.66 | F32: 34930664.66 | G32: 34930664.66 | H32: 34930664.66 | I32: 34930664.66 | J32: 34930664.66 | K32: 34930664.66 | L32: 34930664.66 | M32: 34930664.66 | N32: 66123971.18 | O32: 419167993 | P32: 440570417 | Q32: 427577290
A33: Cash Payments by Type | N33: =O33-SUM(C33:M33) -> 0
A34: Employee related costs | C34: 11498544.92 | D34: 11720560.26 | E34: 11720560.26 | F34: 11720560.26 | G34: 11720560.26 | H34: 11720560.26 | I34: 11720560.26 | J34: 11720560.26 | K34: 11720560.26 | L34: 11720560.26 | M34: 11720560.26 | N34: 11942575.48 | O34: 140646723 | P34: 147093469 | Q34: 153836771
A35: Remuneration of councillors | C35: 0 | D35: 1833138.75 | E35: 1833138.75 | F35: 1833138.75 | G35: 1833138.75 | H35: 1833138.75 | I35: 1833138.75 | J35: 1833138.75 | K35: 1833138.75 | L35: 1833138.75 | M35: 1833138.75 | N35: 3666277.5 | O35: 21997665 | P35: 23009558 | Q35: 24067998
A36: Interest | N36: 0
A37: Bulk purchases - Electricity | C37: 10912718.83 | D37: 5120000 | E37: 5120000 | F37: 5120000 | G37: 5120000 | H37: 5120000 | I37: 5120000 | J37: 5120000 | K37: 5120000 | L37: 5120000 | M37: 5120000 | N37: -672718.83 | O37: 61440000 | P37: 64266240 | Q37: 67158221
A38: Acquisitions - water & other inventory | C38: 0 | D38: 222238.08 | E38: 222238.08 | F38: 222238.08 | G38: 222238.08 | H38: 222238.08 | I38: 222238.08 | J38: 222238.08 | K38: 222238.08 | L38: 222238.08 | M38: 222238.08 | N38: 444476.2 | O38: 2666857 | P38: 2789532 | Q38: 2915061
A40: Contracted services | C40: 0 | D40: 4523943 | E40: 4523943 | F40: 4523943 | G40: 4523943 | H40: 4523943 | I40: 4523943 | J40: 4523943 | K40: 4523943 | L40: 4523943 | M40: 4523943 | N40: 9047886 | O40: 54287316 | P40: 54606802 | Q40: 35249001
A41: Transfers and subsidies - other municipalities | N41: 0
A42: Transfers and subsidies - other | N42: 0
A43: Other expenditure | C43: 30242224.57 | D43: 5764929.75 | E43: 5764929.75 | F43: 5764929.75 | G43: 5764929.75 | H43: 5764929.75 | I43: 5764929.75 | J43: 5764929.75 | K43: 5764929.75 | L43: 5764929.75 | M43: 5764929.75 | N43: -18712365.07 | O43: 69179157 | P43: 72385022 | Q43: 75745439
A44: Cash Payments by Type | B44: =SUM(B34:B43) -> 0 | C44: =SUM(C34:C43) -> 52653488.32 | D44: =SUM(D34:D43) -> 29184809.84 | E44: 29184809.84 | F44: 29184809.84 | G44: 29184809.84 | H44: 29184809.84 | I44: 29184809.84 | J44: 29184809.84 | K44: 29184809.84 | L44: 29184809.84 | M44: 29184809.84 | N44: 5716131.28 | O44: 350217718 | P44: 364150623 | Q44: 358972491
A45: Other Cash Flows/Payments by Type
A46: Capital assets | C46: 2910160.31 | D46: 6242377.58 | E46: 6242377.58 | F46: 6242377.58 | G46: 6242377.58 | H46: 6242377.58 | I46: 6242377.58 | J46: 6242377.58 | K46: 6242377.58 | L46: 6242377.58 | M46: 6242377.58 | N46: =O46-SUM(C46:M46) -> 9574594.89 | O46: 74908531 | P46: 85153800 | Q46: 75067002
A47: Repayment of borrowing | N47: =O47-SUM(C47:M47) -> 0
A48: Other Cash Flows/Payments | C48: 0 | D48: 0 | E48: 0 | F48: 0 | G48: 0 | H48: 0 | I48: 0 | J48: 0 | K48: 0 | L48: 0 | M48: 0 | N48: =O48-SUM(C48:M48) -> 0 | O48: 0 | P48: 0 | Q48: 0
A49: Total Cash Payments by Type | B49: =SUM(B44:B48) -> 0 | C49: 55563648.63 | D49: 35427187.42 | E49: 35427187.42 | F49: 35427187.42 | G49: 35427187.42 | H49: 35427187.42 | I49: 35427187.42 | J49: 35427187.42 | K49: 35427187.42 | L49: 35427187.42 | M49: 35427187.42 | N49: 15290726.17 | O49: 425126249 | P49: 449304423 | Q49: 434039493
A50: NET INCREASE/(DECREASE) IN CASH HELD | B50: =B32-B49 -> 0 | C50: -51826273.41 | D50: -496522.76 | E50: -496522.76 | F50: -496522.76 | G50: -496522.76 | H50: -496522.76 | I50: -496522.76 | J50: -496522.76 | K50: -496522.76 | L50: -496522.76 | M50: -496522.76 | N50: 50833245.01 | O50: -5958256 | P50: -8734006 | Q50: -6462203
A51: Cash/cash equivalents at the month/year beginning: | C51: 186024594.6 | D51: =C52 -> 134198321.2 | E51: =D52 -> 133701798.4 | F51: 133205275.7 | G51: 132708752.9 | H51: 132212230.1 | I51: 131715707.4 | J51: 131219184.6 | K51: 130722661.9 | L51: 130226139.1 | M51: 129729616.3 | N51: 129233093.6 | O51: =C51 -> 186024594.6 | P51: =O52 -> 180066338.6 | Q51: =P52 -> 171332332.6
A52: Cash/cash equivalents at the month/year end: | C52: =C50+C51 -> 134198321.2 | D52: =D50+D51 -> 133701798.4 | E52: =E50+E51 -> 133205275.7 | F52: 132708752.9 | G52: 132212230.1 | H52: 131715707.4 | I52: 131219184.6 | J52: 130722661.9 | K52: 130226139.1 | L52: 129729616.3 | M52: 129233093.6 | N52: 180066338.6 | O52: =O50+O51 -> 180066338.6 | P52: =P50+P51 -> 171332332.6 | Q52: =Q50+Q51 -> 164870129.6
A53: =head27a -> References
A54: 1. Replace 'budget' heading with adjusted budget, or 'outcome' only for month/s complete
A55: 2. Total of monthly amounts must always agree to the approved or adjusted budget
A56: 3. Amend 'cash-at-beginning' when prior year actual known (as part of the adjustments budget)
E61: =E44+E60 -> 29184809.84 | F61: 29184809.84 | G61: 29184809.84 | H61: 29184809.84 | I61: 29184809.84 | J61: 29184809.84 | K61: 29184809.84 | L61: 29184809.84 | N61: =N44+N60 -> 5716131.28 | O61: =O44+O60 -> 350217718 | P61: =P44+P60 -> 364150623
E62: =E50-E60 -> -496522.76 | F62: -496522.76 | G62: -496522.76 | H62: -496522.76 | I62: -496522.76 | J62: -496522.76 | K62: -496522.76 | L62: -496522.76 | M62: =M50-M60 -> -496522.76 | N62: =N50-N60 -> 50833245.01 | O62: -5958256 | P62: -8734006

Sheet SC10
A1: =muni& " - "&S71P& " - "&Head57 -> LIM351 Blouberg - NOT REQUIRED - municipality does not have entities or this is the parent municipality's budget - M01 July
A2: =desc -> Description | B2: =head27 -> Ref | C2: =Head1 -> 2023/24 | D2: =Head2 -> Budget Year 2024/25
C3: =Head5 -> Audited Outcome | D3: =Head6 -> Original Budget | E3: =Head7 -> Adjusted Budget | F3: =Head38 -> Monthly actual | G3: =Head39 -> YearTD actual | H3: =Head40 -> YearTD budget | I3: =Head41 -> YTD variance | J3: =Head41 -> YTD variance | K3: =Head8 -> Full Year Forecast
A4: R thousands | B4: 1 | J4: %
A5: Revenue
A6: Exchange Revenue
A7: Service charges - Electricity | I7: =G7-H7 -> 0 | J7: =IF(I7=0,"",I7/H7) -> 
A8: Service charges - Water | I8: 0
A9: Service charges - Waste Water Management | I9: 0
A10: Service charges - Waste management | I10: 0
A11: Sale of Goods and Rendering of Services | I11: =G11-H11 -> 0 | J11: =IF(I11=0,"",I11/H11) -> 
A12: Agency services | I12: 0
A13: Interest | I13: 0
A14: Interest earned from Receivables | I14: 0
A15: Interest earned from Current and Non Current Assets
A16: Dividends | I16: 0
A17: Rent on Land | I17: 0
A18: Rental from Fixed Assets | I18: 0
A19: Licence and permits | I19: 0
A20: Operational Revenue | I20: 0
A21: Non-Exchange Revenue | I21: 0
A22: Property rates
A23: Surcharges and Taxes
A24: Fines, penalties and forfeits | I24: 0
A25: Licences or permits
A26: Transfer and subsidies - Operational
A27: Interest
A28: Fuel Levy
A29: Operational Revenue
A30: Gains on disposal of Assets
A31: Other Gains
A32: Discontinued Operations
A33: Total Revenue (excluding capital transfers and contributions) | C33: =SUM(C7:C20)+SUM(C22:C32) -> 0 | D33: =SUM(D7:D20)+SUM(D22:D32) -> 0 | E33: 0 | F33: =SUM(F7:F20)+SUM(F22:F32) -> 0 | G33: =SUM(G7:G20)+SUM(G22:G32) -> 0 | H33: =SUM(H7:H20)+SUM(H22:H32) -> 0 | I33: =G33-H33 -> 0 | K33: =SUM(K7:K20)+SUM(K22:K32) -> 0
A34: Expenditure By Type
A35: Employee related costs | I35: =G35-H35 -> 0 | J35: =IF(I35=0,"",I35/H35) -> 
A36: Remuneration of councillors | I36: 0
A37: Bulk purchases - electricity | I37: 0
A38: Inventory consumed | I38: 0
A39: Debt impairment | I39: 0
A40: Depreciation and amortisation | I40: 0
A41: Interest | I41: 0
A42: Contracted services | I42: 0
A43: Transfers and subsidies | I43: 0
A44: Irrecoverable debts written off | I44: 0
A45: Operational costs | I45: 0
A46: Losses on disposal of Assets
A47: Other Losses
A48: Total Expenditure | C48: =SUM(C35:C47) -> 0 | D48: =SUM(D35:D47) -> 0 | E48: 0 | F48: 0 | G48: 0 | H48: 0 | I48: 0 | K48: =SUM(K35:K47) -> 0
A49: Surplus/(Deficit) | C49: =C33-C48 -> 0 | D49: 0 | E49: 0 | F49: 0 | G49: 0 | H49: 0 | I49: 0 | K49: =K33-K48 -> 0
A50: Transfers and subsidies - capital (monetary allocations) | I50: 0
A51: Transfers and subsidies - capital (in-kind) | I51: 0
A52: Surplus/(Deficit) after capital transfers & contributions | C52: =C49+SUM(C50:C51) -> 0 | D52: 0 | E52: 0 | F52: 0 | G52: 0 | H52: 0 | I52: 0 | K52: =K49+SUM(K50:K51) -> 0
A53: Income Tax | I53: 0
A54: Surplus/(Deficit) after income tax | C54: =C52-C53 -> 0 | D54: 0 | E54: 0 | F54: 0 | G54: 0 | H54: 0 | I54: 0 | K54: =K52-K53 -> 0
A55: =head27a -> References
A56: 1. Votes (consolidated) are revenue sources and expenditure type

Sheet SC11
A1: =muni& " - "&S71Q& " - "&Head57 -> LIM351 Blouberg - NOT REQUIRED - municipality does not have entities or this is the parent municipality's budget - M01 July
A2: =desc -> Description | B2: =head27 -> Ref | C2: =Head1 -> 2023/24 | D2: =Head2 -> Budget Year 2024/25
C3: =Head5 -> Audited Outcome | D3: =Head6 -> Original Budget | E3: =Head7 -> Adjusted Budget | F3: =Head38 -> Monthly actual | G3: =Head39 -> YearTD actual | H3: =Head40 -> YearTD budget | I3: =Head41 -> YTD variance | J3: =Head41 -> YTD variance | K3: =Head8 -> Full Year Forecast
A4: R thousands | J4: %
A5: Revenue By Municipal Entity
A6: Insert name of municipal entity | I6: =G6-H6 -> 0 | J6: =IF(I6=0,"",I6/H6) -> 
I7: 0 | J7: =IF(I7=0,"",I7/H7) -> 
I8: 0
I9: 0
I10: 0
I11: 0
I12: 0
I13: 0
I14: 0
I15: 0
A16: Total Operating Revenue | B16: 1 | C16: =SUM(C6:C15) -> 0 | D16: 0 | E16: 0 | F16: 0 | G16: 0 | H16: 0 | I16: 0 | K16: =SUM(K6:K15) -> 0
A18: Expenditure By Municipal Entity
A19: =A6 -> Insert name of municipal entity | I19: 0 | J19: =IF(I19=0,"",I19/H19) -> 
A20: =IF(A7="","",A7) ->  | I20: 0
A21: =IF(A8="","",A8) ->  | I21: 0
I22: 0
I23: 0
I24: 0
I25: 0
I26: 0
I27: 0
I28: 0
A29: Total Operating Expenditure | B29: 2 | C29: =SUM(C19:C28) -> 0 | D29: 0 | E29: 0 | F29: 0 | G29: 0 | H29: 0 | I29: 0 | K29: =SUM(K19:K28) -> 0
A31: =Head42 -> Surplus/ (Deficit) for the yr/period | C31: =C16-C29 -> 0 | D31: =D16-D29 -> 0 | E31: 0 | F31: 0 | G31: 0 | H31: 0 | I31: =I16+I29 -> 0 | K31: 0
A32: Capital Expenditure By Municipal Entity
A33: =$A$6 -> Insert name of municipal entity | I33: 0
A34: =IF(A7="","",A7) ->  | I34: 0
A35: =IF(A8="","",A8) ->  | I35: 0
I36: 0
I37: 0
I38: 0
I39: 0
I40: 0
I41: 0
A43: Total Capital Expenditure | B43: 3 | C43: =SUM(C32:C42) -> 0 | D43: =SUM(D32:D42) -> 0 | E43: 0 | F43: 0 | G43: 0 | H43: =SUM(H32:H42) -> 0 | I43: =G43-H43 -> 0 | K43: 0
A44: =head27a -> References
A45: 1. Must reconcile to the sum of all municipal entity monthly revenue reports
A46: 2. Must reconcile to the sum of all municipal entity monthly expenditure reports
A47: 3. YTD = Year to date; FAV - favourable variance or unfavourable variance
A48: 4. Material variances to be explained
A49: 5. Insert additional 'Adjustment' Budget column for each Adjustment made by an entity

Sheet SC12
A1: =muni& " - "&S71R& " - "&Head57 -> LIM351 Blouberg - Supporting Table SC12 Monthly Budget Statement - capital expenditure trend - M01 July
A2: Month | B2: =Head1 -> 2023/24 | C2: =Head2 -> Budget Year 2024/25
B3: =Head5 -> Audited Outcome | C3: =Head6 -> Original Budget | D3: =Head7 -> Adjusted Budget | E3: =Head38 -> Monthly actual | F3: =Head39 -> YearTD actual | G3: =Head40 -> YearTD budget | H3: =Head41 -> YTD variance | I3: =Head41 -> YTD variance | J3: % spend of Original Budget
A4: R thousands | I4: %
A5: Monthly expenditure performance trend
A6: July | B6: 0 | C6: 6242385 | D6: 6242385 | E6: 6394127.53 | F6: =IF(E6>0,E6,0) -> 6394127.53 | G6: =IF(D6>0,D6,C6) -> 6242385 | H6: =IF(F6="",0,G6-F6) -> -151742.53 | I6: =IF(F6="","",IF(H6=0,"",H6/G6)) -> -0.02430842218 | J6: =IF(F6="","",F6/$C$18) -> 0.0853591366
A7: August | B7: 3178394.27 | C7: 6242385 | D7: 6242385 | E7: 0 | F7: 0 | G7: =IF(D7>0,D7+D6,C7+C6) -> 12484770 | H7: 12484770 | I7: 1 | J7: 0
A8: September | B8: 4634613.29 | C8: 6242385 | D8: 6242385 | E8: 0 | F8: 0 | G8: =IF(D8>0,D8+G7,C8+G7) -> 18727155 | H8: 18727155 | I8: 1 | J8: 0
A9: October | B9: 8736457.68 | C9: 6242385 | D9: 6242385 | E9: 0 | F9: 0 | G9: =IF(D9>0,D9+G8,C9+G8) -> 24969540 | H9: 24969540 | I9: 1 | J9: 0
A10: November | B10: 11401864.09 | C10: 6242385 | D10: 6242385 | E10: 0 | F10: 0 | G10: 31211925 | H10: 31211925 | I10: 1 | J10: 0
A11: December | B11: 9968726.98 | C11: 6242385 | D11: 6242385 | E11: 0 | F11: 0 | G11: 37454310 | H11: 37454310 | I11: 1 | J11: 0
A12: January | B12: 1462416.34 | C12: 6242385 | D12: 6242385 | E12: 0 | F12: 0 | G12: 43696695 | H12: 43696695 | I12: 1 | J12: 0
A13: February | B13: 2458428.77 | C13: 6242385 | D13: 6242385 | E13: 0 | F13: 0 | G13: 49939080 | H13: 49939080 | I13: 1 | J13: 0
A14: March | B14: 6095244.7 | C14: 6242385 | D14: 6242385 | E14: 0 | F14: 0 | G14: 56181465 | H14: 56181465 | I14: 1 | J14: 0
A15: April | B15: 7515982.65 | C15: 6242385 | D15: 6242385 | E15: 0 | F15: 0 | G15: 62423850 | H15: 62423850 | I15: 1 | J15: 0
A16: May | B16: 9889736.84 | C16: 6242385 | D16: 6242385 | E16: 0 | F16: =IF(E15>0,E15,0) -> 0 | G16: 68666235 | H16: 68666235 | I16: 1 | J16: 0
A17: June | B17: 6373952.14 | C17: 6242296 | D17: 6242296 | E17: 0 | F17: =IF(E17>0,E17,0) -> 0 | G17: 74908531 | H17: =IF(F17="",0,G17-F17) -> 74908531 | I17: =IF(F17="","",IF(H17=0,"",H17/G17)) -> 1 | J17: =IF(F17="","",F17/$C$18) -> 0
A18: Total Capital expenditure | B18: =SUM(B6:B17) -> 71715817.75 | C18: =SUM(C6:C17) -> 74908531 | D18: =SUM(D6:D17) -> 74908531 | E18: =SUM(E6:E17) -> 6394127.53

Sheet SC13a
A1: =muni& " - "&S71Sa& " - "&Head57 -> LIM351 Blouberg - Supporting Table SC13a Monthly Budget Statement - capital expenditure on new assets by asset class - M01 July
A2: =desc -> Description | B2: =head27 -> Ref | C2: =Head1 -> 2023/24 | D2: =Head2 -> Budget Year 2024/25
C3: =Head5 -> Audited Outcome | D3: =Head6 -> Original Budget | E3: =Head7 -> Adjusted Budget | F3: =Head38 -> Monthly actual | G3: =Head39 -> YearTD actual | H3: =Head40 -> YearTD budget | I3: =Head41 -> YTD variance | J3: =Head41 -> YTD variance | K3: =Head8 -> Full Year Forecast
A4: R thousands | B4: 1 | J4: %
A5: Capital expenditure on new assets by Asset Class/Sub-class
A7: Infrastructure | C7: =C8+C13+C17+C27+C38+C45+C53+C63+C69 -> 81321474.52 | D7: 41849675 | E7: 41849675 | F7: 6394127.53 | G7: 6394127.53 | H7: 3487475 | I7: =H7-G7 -> -2906652.53 | J7: =IF(I7=0,"",I7/H7) -> -0.8334547287 | K7: =K8+K13+K17+K27+K38+K45+K53+K63+K69 -> 41849675
A8: Roads Infrastructure | C8: =SUM(C9:C12) -> 61048681.08 | D8: 39776144 | E8: 39776144 | F8: 6394127.53 | G8: 6394127.53 | H8: 3314680 | I8: -3079447.53 | J8: -0.9290331284 | K8: =SUM(K9:K12) -> 39776144
A9: Roads | C9: 61048681.08 | D9: 39776144 | E9: 39776144 | F9: 6394127.53 | G9: 6394127.53 | H9: 3314680 | I9: -3079447.53 | J9: -0.9290331284 | K9: 39776144
A10: Road Structures | C10: 0 | D10: 0 | E10: 0 | F10: 0 | G10: 0 | H10: 0 | I10: 0 | K10: 0
A11: Road Furniture | I11: 0
A12: Capital Spares | C12: 0 | D12: 0 | E12: 0 | F12: 0 | G12: 0 | H12: 0 | I12: 0 | K12: 0
A13: Storm water Infrastructure | C13: =SUM(C14:C16) -> 0 | D13: 0 | E13: 0 | F13: 0 | G13: 0 | H13: 0 | I13: 0 | K13: =SUM(K14:K16) -> 0
A14: Drainage Collection | I14: 0
A15: Storm water Conveyance | C15: 0 | D15: 0 | E15: 0 | F15: 0 | G15: 0 | H15: 0 | I15: 0 | K15: 0
A16: Attenuation | I16: 0
A17: Electrical Infrastructure | C17: =SUM(C18:C26) -> 20272793.44 | D17: 2073531 | E17: 2073531 | F17: 0 | G17: 0 | H17: 172795 | I17: 172795 | J17: 1 | K17: =SUM(K18:K26) -> 2073531
A18: Power Plants | I18: 0
A19: HV Substations | C19: 15274796.1 | D19: 0 | E19: 0 | F19: 0 | G19: 0 | H19: 0 | I19: 0 | K19: 0
A20: HV Switching Station | I20: 0
A21: HV Transmission Conductors | I21: 0
A22: MV Substations | C22: 0 | D22: 0 | E22: 0 | F22: 0 | G22: 0 | H22: 0 | I22: 0 | K22: 0
A23: MV Switching Stations | I23: 0
A24: MV Networks | C24: 4997997.34 | D24: 0 | E24: 0 | F24: 0 | G24: 0 | H24: 0 | I24: 0 | K24: 0
A25: LV Networks | C25: 0 | D25: 2073531 | E25: 2073531 | F25: 0 | G25: 0 | H25: 172795 | I25: 172795 | J25: 1 | K25: 2073531
A26: Capital Spares | C26: 0 | D26: 0 | E26: 0 | F26: 0 | G26: 0 | H26: 0 | I26: 0 | K26: 0
A27: Water Supply Infrastructure | C27: =SUM(C28:C37) -> 0 | D27: 0 | E27: 0 | F27: 0 | G27: 0 | H27: 0 | I27: 0 | K27: =SUM(K28:K37) -> 0
A28: Dams and Weirs | I28: 0
A29: Boreholes | I29: 0
A30: Reservoirs | I30: 0
A31: Pump Stations | I31: 0
A32: Water Treatment Works | I32: 0
A33: Bulk Mains | I33: 0
A34: Distribution | I34: 0
A35: Distribution Points | I35: 0
A36: PRV Stations | I36: 0
A37: Capital Spares | I37: 0
A38: Sanitation Infrastructure | C38: =SUM(C39:C44) -> 0 | D38: 0 | E38: 0 | F38: 0 | G38: 0 | H38: 0 | I38: 0 | K38: =SUM(K39:K44) -> 0
A39: Pump Station | I39: 0
A40: Reticulation | I40: =H40-G40 -> 0 | J40: =IF(I40=0,"",I40/H40) -> 
A41: Waste Water Treatment Works | I41: =H41-G41 -> 0 | J41: =IF(I41=0,"",I41/H41) -> 
A42: Outfall Sewers | I42: =H42-G42 -> 0 | J42: =IF(I42=0,"",I42/H42) -> 
A43: Toilet Facilities | I43: 0
A44: Capital Spares | I44: 0
A45: Solid Waste Infrastructure | C45: =SUM(C46:C52) -> 0 | D45: 0 | E45: 0 | F45: 0 | G45: 0 | H45: 0 | I45: 0 | K45: =SUM(K46:K52) -> 0
A46: Landfill Sites | I46: 0
A47: Waste Transfer Stations | I47: 0
A48: Waste Processing Facilities | I48: =H48-G48 -> 0 | J48: =IF(I48=0,"",I48/H48) -> 
A49: Waste Drop-off Points | I49: 0
A50: Waste Separation Facilities | I50: 0
A51: Electricity Generation Facilities | I51: 0
A52: Capital Spares | I52: 0
A53: Rail Infrastructure | C53: =SUM(C54:C62) -> 0 | D53: 0 | E53: 0 | F53: 0 | G53: 0 | H53: 0 | I53: 0 | K53: =SUM(K54:K62) -> 0
A54: Rail Lines | I54: 0
A55: Rail Structures | I55: 0
A56: Rail Furniture | I56: 0
A57: Drainage Collection | I57: 0
A58: Storm water Conveyance | I58: 0
A59: Attenuation | I59: 0
A60: MV Substations | I60: 0
A61: LV Networks | I61: 0
A62: Capital Spares | I62: 0
A63: Coastal Infrastructure | C63: =SUM(C64:C68) -> 0 | D63: 0 | E63: 0 | F63: 0 | G63: 0 | H63: 0 | I63: 0 | K63: =SUM(K64:K68) -> 0
A64: Sand Pumps | I64: 0
A65: Piers | I65: 0
A66: Revetments | I66: 0
A67: Promenades | I67: 0
A68: Capital Spares | I68: 0
A69: Information and Communication Infrastructure | C69: =SUM(C70:C73) -> 0 | D69: 0 | E69: 0 | F69: 0 | G69: 0 | H69: 0 | I69: =H69-G69 -> 0 | K69: =SUM(K70:K73) -> 0
A70: Data Centres | I70: =H70-G70 -> 0
A71: Core Layers | I71: =H71-G71 -> 0 | J71: =IF(I71=0,"",I71/H71) -> 
A72: Distribution Layers | I72: =H72-G72 -> 0
A73: Capital Spares | I73: =H73-G73 -> 0
A75: Community Assets | C75: =+C76+C99 -> 2162953.07 | D75: 0 | E75: 0 | F75: 0 | G75: 0 | H75: 0 | I75: =H75-G75 -> 0 | K75: =+K76+K99 -> 0
A76: Community Facilities | C76: =SUM(C77:C98) -> 2162953.07 | D76: 0 | E76: 0 | F76: 0 | G76: 0 | H76: 0 | I76: =H76-G76 -> 0 | K76: =SUM(K77:K98) -> 0
A77: Halls | C77: 2162953.07 | D77: 0 | E77: 0 | F77: 0 | G77: 0 | H77: 0 | I77: 0 | K77: 0
A78: Centres | C78: 0 | D78: 0 | E78: 0 | F78: 0 | G78: 0 | H78: 0 | I78: 0 | K78: 0
A79: Crèches | C79: 0 | D79: 0 | E79: 0 | F79: 0 | G79: 0 | H79: 0 | I79: 0 | K79: 0
A80: Clinics/Care Centres | I80: 0
A81: Fire/Ambulance Stations | I81: 0
A82: Testing Stations | I82: 0
A83: Museums | I83: 0
A84: Galleries | I84: 0
A85: Theatres | I85: 0
A86: Libraries | I86: 0
A87: Cemeteries/Crematoria | C87: 0 | D87: 0 | E87: 0 | F87: 0 | G87: 0 | H87: 0 | I87: 0 | K87: 0
A88: Police | I88: 0
A89: Purls | C89: 0 | D89: 0 | E89: 0 | F89: 0 | G89: 0 | H89: 0 | I89: 0 | K89: 0
A90: Public Open Space | I90: 0
A91: Nature Reserves | I91: 0
A92: Public Ablution Facilities | I92: 0
A93: Markets | I93: 0
A94: Stalls | I94: 0
A95: Abattoirs | I95: 0
A96: Airports | I96: 0
A97: Taxi Ranks/Bus Terminals | I97: 0
A98: Capital Spares | C98: 0 | D98: 0 | E98: 0 | F98: 0 | G98: 0 | H98: 0 | I98: 0 | K98: 0
A99: Sport and Recreation Facilities | C99: =SUM(C100:C102) -> 0 | D99: 0 | E99: 0 | F99: 0 | G99: 0 | H99: 0 | I99: 0 | K99: =SUM(K100:K102) -> 0
A100: Indoor Facilities | I100: 0
A101: Outdoor Facilities | C101: 0 | D101: 0 | E101: 0 | F101: 0 | G101: 0 | H101: 0 | I101: 0 | K101: 0
A102: Capital Spares | I102: 0
A103: Heritage assets | C103: =SUM(C104:C108) -> 0 | D103: 0 | E103: 0 | F103: 0 | G103: 0 | H103: 0 | I103: 0 | K103: =SUM(K104:K108) -> 0
A104: Monuments | I104: 0
A105: Historic Buildings | I105: 0
A106: Works of Art | I106: 0
A107: Conservation Areas | C107: 0 | D107: 0 | E107: 0 | F107: 0 | G107: 0 | H107: 0 | I107: 0 | K107: 0
A108: Other Heritage | I108: 0
I109: 0
A110: Investment properties | C110: =+C111+C114 -> 0 | D110: 0 | E110: 0 | F110: 0 | G110: 0 | H110: 0 | I110: 0 | K110: =+K111+K114 -> 0
A111: Revenue Generating | C111: =SUM(C112:C113) -> 0 | D111: 0 | E111: 0 | F111: 0 | G111: 0 | H111: 0 | I111: 0 | K111: =SUM(K112:K113) -> 0
A112: Improved Property | I112: 0
A113: Unimproved Property | I113: 0
A114: Non-revenue Generating | C114: =SUM(C115:C116) -> 0 | D114: 0 | E114: 0 | F114: 0 | G114: 0 | H114: 0 | I114: 0 | K114: =SUM(K115:K116) -> 0
A115: Improved Property | I115: 0
A116: Unimproved Property | I116: 0
A117: Other assets | C117: =+C118+C130 -> 0 | D117: 0 | E117: 0 | F117: 0 | G117: 0 | H117: 0 | I117: 0 | K117: =+K118+K130 -> 0
A118: Operational Buildings | C118: =SUM(C119:C129) -> 0 | D118: 0 | E118: 0 | F118: 0 | G118: 0 | H118: 0 | I118: 0 | K118: =SUM(K119:K129) -> 0
A119: Municipal Offices | C119: 0 | D119: 0 | E119: 0 | F119: 0 | G119: 0 | H119: 0 | I119: 0 | K119: 0
A120: Pay/Enquiry Points | I120: 0
A121: Building Plan Offices | I121: 0
A122: Workshops | I122: 0
A123: Yards | C123: 0 | D123: 0 | E123: 0 | F123: 0 | G123: 0 | H123: 0 | I123: 0 | K123: 0
A124: Stores | I124: 0
A125: Laboratories | I125: 0
A126: Training Centres | I126: 0
A127: Manufacturing Plant | I127: 0
A128: Depots | I128: 0
A129: Capital Spares | I129: 0
A130: Housing | C130: =SUM(C131:C133) -> 0 | D130: 0 | E130: 0 | F130: 0 | G130: 0 | H130: 0 | I130: 0 | K130: =SUM(K131:K133) -> 0
A131: Staff Housing | I131: 0
A132: Social Housing | I132: 0
A133: Capital Spares | I133: 0
A135: Biological or Cultivated Assets | C135: =SUM(C136:C136) -> 0 | D135: 0 | E135: 0 | F135: 0 | G135: 0 | H135: 0 | I135: =H135-G135 -> 0 | J135: =IF(I135=0,"",I135/H135) ->  | K135: =SUM(K136) -> 0
A136: Biological or Cultivated Assets | I136: =H136-G136 -> 0
A138: Intangible Assets | C138: =SUM(C139:C140) -> 0 | D138: 600000 | E138: 600000 | F138: 0 | G138: 0 | H138: 50000 | I138: =H138-G138 -> 50000 | J138: 1 | K138: =SUM(K139:K140) -> 600000
A139: Servitudes | I139: 0
A140: Licences and Rights | C140: =SUM(C141:C146) -> 0 | D140: 600000 | E140: 600000 | F140: 0 | G140: 0 | H140: 50000 | I140: 50000 | J140: 1 | K140: =SUM(K141:K146) -> 600000
A141: Water Rights | I141: 0
A142: Effluent Licenses | I142: 0
A143: Solid Waste Licenses | I143: 0
A144: Computer Software and Applications | C144: 0 | D144: 600000 | E144: 600000 | F144: 0 | G144: 0 | H144: 50000 | I144: 50000 | J144: 1 | K144: 600000
A145: Load Settlement Software Applications | I145: 0
A146: Unspecified | I146: 0
A148: Computer Equipment | C148: =SUM(C149:C149) -> 209230.94 | D148: 700000 | E148: 700000 | F148: 0 | G148: 0 | H148: 58334 | I148: =H148-G148 -> 58334 | J148: =IF(I148=0,"",I148/H148) -> 1 | K148: =SUM(K149) -> 700000
A149: Computer Equipment | C149: 209230.94 | D149: 700000 | E149: 700000 | F149: 0 | G149: 0 | H149: 58334 | I149: =H149-G149 -> 58334 | J149: =IF(I149=0,"",I149/H149) -> 1 | K149: 700000
A151: Furniture and Office Equipment | C151: =SUM(C152:C152) -> 0 | D151: 1088451 | E151: 1088451 | F151: 0 | G151: 0 | H151: 90705 | I151: =H151-G151 -> 90705 | J151: =IF(I151=0,"",I151/H151) -> 1 | K151: =SUM(K152) -> 1088451
A152: Furniture and Office Equipment | C152: 0 | D152: 1088451 | E152: 1088451 | F152: 0 | G152: 0 | H152: 90705 | I152: =H152-G152 -> 90705 | J152: =IF(I152=0,"",I152/H152) -> 1 | K152: 1088451
J153: =IF(I153=0,"",I153/H153) -> 
A154: Machinery and Equipment | C154: =SUM(C155:C155) -> 47098.11 | D154: 150000 | E154: 150000 | F154: 0 | G154: 0 | H154: 12500 | I154: =H154-G154 -> 12500 | J154: =IF(I154=0,"",I154/H154) -> 1 | K154: =SUM(K155) -> 150000
A155: Machinery and Equipment | C155: 47098.11 | D155: 150000 | E155: 150000 | F155: 0 | G155: 0 | H155: 12500 | I155: =H155-G155 -> 12500 | J155: =IF(I155=0,"",I155/H155) -> 1 | K155: 150000
A157: Transport Assets | C157: =SUM(C158:C158) -> 0 | D157: 13704405 | E157: 13704405 | F157: 0 | G157: 0 | H157: 1142035 | I157: =H157-G157 -> 1142035 | J157: =IF(I157=0,"",I157/H157) -> 1 | K157: =SUM(K158) -> 13704405
A158: Transport Assets | C158: 0 | D158: 13704405 | E158: 13704405 | F158: 0 | G158: 0 | H158: 1142035 | I158: =H158-G158 -> 1142035 | J158: =IF(I158=0,"",I158/H158) -> 1 | K158: 13704405
A160: Land | C160: =SUM(C161:C161) -> 0 | D160: 0 | E160: 0 | F160: 0 | G160: 0 | H160: 0 | I160: =H160-G160 -> 0 | J160: =IF(I160=0,"",I160/H160) ->  | K160: =SUM(K161) -> 0
A161: Land | C161: 0 | D161: 0 | E161: 0 | F161: 0 | G161: 0 | H161: 0 | I161: =H161-G161 -> 0 | J161: =IF(I161=0,"",I161/H161) ->  | K161: 0
A163: Zoo's, Marine and Non-biological Animals | C163: =SUM(C164:C164) -> 0 | D163: 0 | E163: 0 | F163: 0 | G163: 0 | H163: 0 | I163: =H163-G163 -> 0 | J163: =IF(I163=0,"",I163/H163) ->  | K163: =SUM(K164) -> 0
A164: Zoo's, Marine and Non-biological Animals | I164: =H164-G164 -> 0 | J164: =IF(I164=0,"",I164/H164) -> 
A166: Living resources | C166: =+C167+C170 -> 0 | D166: 0 | E166: 0 | F166: 0 | G166: 0 | H166: 0 | I166: =H166-G166 -> 0 | J166: =IF(I166=0,"",I166/H166) ->  | K166: 0
A167: Mature | C167: =+C168+C169 -> 0 | D167: 0 | E167: 0 | F167: 0 | G167: 0 | H167: 0 | I167: 0 | K167: 0
A168: Policing and Protection | I168: 0
A169: Zoological plants and animals | I169: 0
A170: Immature | C170: =+C171+C172 -> 0 | D170: =+D171+D172 -> 0 | E170: 0 | F170: 0 | G170: 0 | H170: 0 | I170: 0 | K170: =+K171+K172 -> 0
A171: Policing and Protection | I171: 0
A172: Zoological plants and animals | I172: 0
A173: Total Capital Expenditure on new assets | B173: 1 | C173: =C7+C75+C103+C110+C117+C135+C138+C148+C151+C154+C157+C160+C163+C166 -> 83740756.64 | D173: 58092531 | E173: 58092531 | F173: 6394127.53 | G173: 6394127.53 | H173: 4841049 | I173: =H173-G173 -> -1553078.53 | J173: =IF(I173=0,"",I173/H173) -> -0.3208144619 | K173: =K7+K75+K103+K110+K117+K135+K138+K148+K151+K154+K157+K160+K163+K166 -> 58092531
A175: =head27a -> References
A176: 1. Total Capital Expenditure on new assets (SC13a) plus Total Capital Expenditure on renewal of existing assets (SC13b) plus Total Capital Expenditure on upgrading of existing assets (SC13e) must reconcile to total capital expenditure in Table C5
A178: check balance | C178: =C173+SC13b!C173+SC13e!C173-'C5-Capex'!C40 -> 0 | D178: =D173+SC13b!D173+SC13e!D173-'C5-Capex'!D40 -> 0 | E178: =E173+SC13b!E173+SC13e!E173-'C5-Capex'!E40 -> 0 | F178: =F173+SC13b!F173+SC13e!F173-'C5-Capex'!F40 -> 0 | G178: =G173+SC13b!G173+SC13e!G173-'C5-Capex'!G40 -> 0 | H178: =H173+SC13b!H173+SC13e!H173-'C5-Capex'!H40 -> 0 | K178: =K173+SC13b!K173+SC13e!K173-'C5-Capex'!K40 -> 0

Sheet SC13b
A1: =muni& " - "&S71Sb& " - "&Head57 -> LIM351 Blouberg - Supporting Table SC13b Monthly Budget Statement - capital expenditure on renewal of existing assets by asset class - M01 July
A2: =desc -> Description | B2: =head27 -> Ref | C2: =Head1 -> 2023/24 | D2: =Head2 -> Budget Year 2024/25
C3: =Head5 -> Audited Outcome | D3: =Head6 -> Original Budget | E3: =Head7 -> Adjusted Budget | F3: =Head38 -> Monthly actual | G3: =Head39 -> YearTD actual | H3: =Head40 -> YearTD budget | I3: =Head41 -> YTD variance | J3: =Head41 -> YTD variance | K3: =Head8 -> Full Year Forecast
A4: R thousands | B4: 1 | J4: %
A5: Capital expenditure on renewal of existing assets by Asset Class/Sub-class
A7: Infrastructure | C7: =C8+C13+C17+C27+C38+C45+C53+C63+C69 -> 837890.78 | D7: 16616000 | E7: 16616000 | F7: 0 | G7: 0 | H7: 1384668 | I7: =H7-G7 -> 1384668 | J7: =IF(I7=0,"",I7/H7) -> 1 | K7: =K8+K13+K17+K27+K38+K45+K53+K63+K69 -> 16616000
A8: Roads Infrastructure | C8: =SUM(C9:C12) -> 0 | D8: 15716000 | E8: 15716000 | F8: 0 | G8: 0 | H8: 1309667 | I8: 1309667 | J8: 1 | K8: =SUM(K9:K12) -> 15716000
A9: Roads | C9: 0 | D9: 15716000 | E9: 15716000 | F9: 0 | G9: 0 | H9: 1309667 | I9: 1309667 | J9: 1 | K9: 15716000
A10: Road Structures | I10: 0
A11: Road Furniture | I11: 0
A12: Capital Spares | I12: 0
A13: Storm water Infrastructure | C13: =SUM(C14:C16) -> 0 | D13: 0 | E13: 0 | F13: 0 | G13: 0 | H13: 0 | I13: 0 | K13: =SUM(K14:K16) -> 0
A14: Drainage Collection | I14: 0
A15: Storm water Conveyance | I15: 0
A16: Attenuation | I16: 0
A17: Electrical Infrastructure | C17: =SUM(C18:C26) -> 837890.78 | D17: 900000 | E17: 900000 | F17: 0 | G17: 0 | H17: 75001 | I17: 75001 | J17: 1 | K17: =SUM(K18:K26) -> 900000
A18: Power Plants | I18: 0
A19: HV Substations | I19: 0
A20: HV Switching Station | I20: 0
A21: HV Transmission Conductors | C21: 0 | D21: 300000 | E21: 300000 | F21: 0 | G21: 0 | H21: 25000 | I21: 25000 | J21: 1 | K21: 300000
A22: MV Substations | I22: 0
A23: MV Switching Stations | I23: 0
A24: MV Networks | I24: 0
A25: LV Networks | C25: 0 | D25: 0 | E25: 0 | F25: 0 | G25: 0 | H25: 0 | I25: 0 | K25: 0
A26: Capital Spares | C26: 837890.78 | D26: 600000 | E26: 600000 | F26: 0 | G26: 0 | H26: 50001 | I26: 50001 | J26: 1 | K26: 600000
A27: Water Supply Infrastructure | C27: =SUM(C28:C37) -> 0 | D27: 0 | E27: 0 | F27: 0 | G27: 0 | H27: 0 | I27: 0 | K27: =SUM(K28:K37) -> 0
A28: Dams and Weirs | I28: 0
A29: Boreholes | C29: 0 | D29: 0 | E29: 0 | F29: 0 | G29: 0 | H29: 0 | I29: 0 | K29: 0
A30: Reservoirs | I30: 0
A31: Pump Stations | I31: 0
A32: Water Treatment Works | I32: 0
A33: Bulk Mains | I33: 0
A34: Distribution | I34: 0
A35: Distribution Points | I35: 0
A36: PRV Stations | I36: 0
A37: Capital Spares | I37: 0
A38: Sanitation Infrastructure | C38: =SUM(C39:C44) -> 0 | D38: 0 | E38: 0 | F38: 0 | G38: 0 | H38: 0 | I38: 0 | K38: =SUM(K39:K44) -> 0
A39: Pump Station | I39: 0
A40: Reticulation | I40: 0
A41: Waste Water Treatment Works | I41: 0
A42: Outfall Sewers | I42: 0
A43: Toilet Facilities | I43: 0
A44: Capital Spares | I44: 0
A45: Solid Waste Infrastructure | C45: =SUM(C46:C52) -> 0 | D45: 0 | E45: 0 | F45: 0 | G45: 0 | H45: 0 | I45: 0 | K45: =SUM(K46:K52) -> 0
A46: Landfill Sites | C46: 0 | D46: 0 | E46: 0 | F46: 0 | G46: 0 | H46: 0 | I46: 0 | K46: 0
A47: Waste Transfer Stations | I47: 0
A48: Waste Processing Facilities | I48: 0
A49: Waste Drop-off Points | I49: 0
A50: Waste Separation Facilities | I50: 0
A51: Electricity Generation Facilities | I51: 0
A52: Capital Spares | I52: 0
A53: Rail Infrastructure | C53: =SUM(C54:C62) -> 0 | D53: 0 | E53: 0 | F53: 0 | G53: 0 | H53: 0 | I53: 0 | K53: =SUM(K54:K62) -> 0
A54: Rail Lines | I54: 0
A55: Rail Structures | I55: 0
A56: Rail Furniture | I56: 0
A57: Drainage Collection | I57: 0
A58: Storm water Conveyance | I58: 0
A59: Attenuation | I59: 0
A60: MV Substations | I60: 0
A61: LV Networks | I61: 0
A62: Capital Spares | I62: 0
A63: Coastal Infrastructure | C63: =SUM(C64:C68) -> 0 | D63: 0 | E63: 0 | F63: 0 | G63: 0 | H63: 0 | I63: 0 | K63: =SUM(K64:K68) -> 0
A64: Sand Pumps | I64: 0
A65: Piers | I65: 0
A66: Revetments | I66: 0
A67: Promenades | I67: 0
A68: Capital Spares | I68: 0
A69: Information and Communication Infrastructure | C69: =SUM(C70:C73) -> 0 | D69: 0 | E69: 0 | F69: 0 | G69: 0 | H69: 0 | I69: 0 | K69: =SUM(K70:K73) -> 0
A70: Data Centres | I70: 0
A71: Core Layers | I71: 0
A72: Distribution Layers | I72: 0
A73: Capital Spares | I73: 0
A75: Community Assets | C75: =+C76+C99 -> 0 | D75: 0 | E75: 0 | F75: 0 | G75: 0 | H75: 0 | I75: 0 | K75: =+K76+K99 -> 0
A76: Community Facilities | C76: =SUM(C77:C98) -> 0 | D76: 0 | E76: 0 | F76: 0 | G76: 0 | H76: 0 | I76: 0 | K76: =SUM(K77:K98) -> 0
A77: Halls | I77: 0
A78: Centres | I78: 0
A79: Crèches | I79: 0
A80: Clinics/Care Centres | I80: 0
A81: Fire/Ambulance Stations | I81: 0
A82: Testing Stations | I82: 0
A83: Museums | I83: 0
A84: Galleries | I84: 0
A85: Theatres | I85: 0
A86: Libraries | I86: 0
A87: Cemeteries/Crematoria | C87: 0 | D87: 0 | E87: 0 | F87: 0 | G87: 0 | H87: 0 | I87: 0 | K87: 0
A88: Police | I88: 0
A89: Purls | I89: 0
A90: Public Open Space | I90: 0
A91: Nature Reserves | I91: 0
A92: Public Ablution Facilities | I92: 0
A93: Markets | I93: 0
A94: Stalls | I94: 0
A95: Abattoirs | I95: 0
A96: Airports | I96: 0
A97: Taxi Ranks/Bus Terminals | I97: 0
A98: Capital Spares | I98: 0
A99: Sport and Recreation Facilities | C99: =SUM(C100:C102) -> 0 | D99: 0 | E99: 0 | F99: 0 | G99: 0 | H99: 0 | I99: 0 | K99: =SUM(K100:K102) -> 0
A100: Indoor Facilities | I100: 0
A101: Outdoor Facilities | C101: 0 | D101: 0 | E101: 0 | F101: 0 | G101: 0 | H101: 0 | I101: =H101-G101 -> 0 | J101: =IF(I101=0,"",I101/H101) ->  | K101: 0
A102: Capital Spares | I102: 0
A103: Heritage assets | C103: =SUM(C104:C108) -> 0 | D103: 0 | E103: 0 | F103: 0 | G103: 0 | H103: 0 | I103: 0 | K103: =SUM(K104:K108) -> 0
A104: Monuments | I104: 0
A105: Historic Buildings | I105: 0
A106: Works of Art | I106: 0
A107: Conservation Areas | I107: 0
A108: Other Heritage | I108: 0
I109: 0
A110: Investment properties | C110: =+C111+C114 -> 0 | D110: 0 | E110: 0 | F110: 0 | G110: 0 | H110: 0 | I110: 0 | K110: =+K111+K114 -> 0
A111: Revenue Generating | C111: =SUM(C112:C113) -> 0 | D111: 0 | E111: 0 | F111: 0 | G111: 0 | H111: 0 | I111: 0 | K111: =SUM(K112:K113) -> 0
A112: Improved Property | I112: 0
A113: Unimproved Property | I113: 0
A114: Non-revenue Generating | C114: =SUM(C115:C116) -> 0 | D114: 0 | E114: 0 | F114: 0 | G114: 0 | H114: 0 | I114: 0 | K114: =SUM(K115:K116) -> 0
A115: Improved Property | I115: 0
A116: Unimproved Property | I116: =H116-G116 -> 0 | J116: =IF(I116=0,"",I116/H116) -> 
A117: Other assets | C117: =+C118+C130 -> 0 | D117: 0 | E117: 0 | F117: 0 | G117: 0 | H117: 0 | I117: 0 | K117: =+K118+K130 -> 0
A118: Operational Buildings | C118: =SUM(C119:C129) -> 0 | D118: 0 | E118: 0 | F118: 0 | G118: 0 | H118: 0 | I118: 0 | K118: =SUM(K119:K129) -> 0
A119: Municipal Offices | C119: 0 | D119: 0 | E119: 0 | F119: 0 | G119: 0 | H119: 0 | I119: 0 | K119: 0
A120: Pay/Enquiry Points | I120: 0
A121: Building Plan Offices | I121: 0
A122: Workshops | I122: 0
A123: Yards | I123: 0
A124: Stores | I124: 0
A125: Laboratories | I125: 0
A126: Training Centres | I126: 0
A127: Manufacturing Plant | I127: 0
A128: Depots | I128: 0
A129: Capital Spares | I129: 0
A130: Housing | C130: =SUM(C131:C133) -> 0 | D130: 0 | E130: 0 | F130: 0 | G130: 0 | H130: 0 | I130: 0 | K130: =SUM(K131:K133) -> 0
A131: Staff Housing | I131: 0
A132: Social Housing | I132: 0
A133: Capital Spares | I133: 0
A135: Biological or Cultivated Assets | C135: =SUM(C136:C136) -> 0 | D135: 0 | E135: 0 | F135: 0 | G135: 0 | H135: 0 | I135: =H135-G135 -> 0 | K135: =SUM(K136) -> 0
A136: Biological or Cultivated Assets | I136: =H136-G136 -> 0
J137: =IF(I137=0,"",I137/H137) -> 
A138: Intangible Assets | C138: =SUM(C139:C140) -> 0 | D138: 0 | E138: 0 | F138: 0 | G138: 0 | H138: 0 | I138: =H138-G138 -> 0 | K138: =SUM(K139:K140) -> 0
A139: Servitudes | I139: 0
A140: Licences and Rights | C140: =SUM(C141:C146) -> 0 | D140: 0 | E140: 0 | F140: 0 | G140: 0 | H140: 0 | I140: 0 | K140: =SUM(K141:K146) -> 0
A141: Water Rights | I141: 0
A142: Effluent Licenses | I142: 0
A143: Solid Waste Licenses | I143: 0
A144: Computer Software and Applications | I144: 0
A145: Load Settlement Software Applications | I145: 0
A146: Unspecified | I146: 0
A148: Computer Equipment | C148: =SUM(C149:C149) -> 0 | D148: 0 | E148: 0 | F148: 0 | G148: 0 | H148: 0 | I148: =H148-G148 -> 0 | J148: =IF(I148=0,"",I148/H148) ->  | K148: =SUM(K149) -> 0
A149: Computer Equipment | I149: =H149-G149 -> 0 | J149: =IF(I149=0,"",I149/H149) -> 
A151: Furniture and Office Equipment | C151: =SUM(C152:C152) -> 0 | D151: 0 | E151: 0 | F151: 0 | G151: 0 | H151: 0 | I151: =H151-G151 -> 0 | J151: =IF(I151=0,"",I151/H151) ->  | K151: =SUM(K152) -> 0
A152: Furniture and Office Equipment | C152: 0 | D152: 0 | E152: 0 | F152: 0 | G152: 0 | H152: 0 | I152: =H152-G152 -> 0 | J152: =IF(I152=0,"",I152/H152) ->  | K152: 0
J153: =IF(I153=0,"",I153/H153) -> 
A154: Machinery and Equipment | C154: =SUM(C155:C155) -> 0 | D154: 0 | E154: 0 | F154: 0 | G154: 0 | H154: 0 | I154: =H154-G154 -> 0 | J154: =IF(I154=0,"",I154/H154) ->  | K154: =SUM(K155) -> 0
A155: Machinery and Equipment | I155: =H155-G155 -> 0 | J155: =IF(I155=0,"",I155/H155) -> 
A157: Transport Assets | C157: =SUM(C158:C158) -> 0 | D157: 0 | E157: 0 | F157: 0 | G157: 0 | H157: 0 | I157: =H157-G157 -> 0 | J157: =IF(I157=0,"",I157/H157) ->  | K157: =SUM(K158) -> 0
A158: Transport Assets | I158: =H158-G158 -> 0 | J158: =IF(I158=0,"",I158/H158) -> 
A160: Land | C160: =SUM(C161:C161) -> 0 | D160: 0 | E160: 0 | F160: 0 | G160: 0 | H160: 0 | I160: =H160-G160 -> 0 | J160: =IF(I160=0,"",I160/H160) ->  | K160: =SUM(K161) -> 0
A161: Land | I161: =H161-G161 -> 0 | J161: =IF(I161=0,"",I161/H161) -> 
J162: .
A163: Zoo's, Marine and Non-biological Animals | C163: =SUM(C164:C164) -> 0 | D163: 0 | E163: 0 | F163: 0 | G163: 0 | H163: 0 | I163: =H163-G163 -> 0 | J163: =IF(I163=0,"",I163/H163) ->  | K163: =SUM(K164) -> 0
A164: Zoo's, Marine and Non-biological Animals | I164: =H164-G164 -> 0 | J164: =IF(I164=0,"",I164/H164) -> 
A166: Living resources | C166: =+C167+C170 -> 0 | D166: 0 | E166: 0 | F166: 0 | G166: 0 | H166: 0 | I166: =H166-G166 -> 0 | J166: =IF(I166=0,"",I166/H166) ->  | K166: =+K167+K170 -> 0
A167: Mature | C167: =+C168+C169 -> 0 | D167: 0 | E167: 0 | F167: 0 | G167: 0 | H167: 0 | I167: 0 | K167: =+K168+K169 -> 0
A168: Policing and Protection | I168: 0
A169: Zoological plants and animals | I169: 0
A170: Immature | C170: =+C171+C172 -> 0 | D170: 0 | E170: 0 | F170: 0 | G170: 0 | H170: 0 | I170: 0 | K170: =+K171+K172 -> 0
A171: Policing and Protection | I171: 0
A172: Zoological plants and animals | I172: 0
A173: Total Capital Expenditure on renewal of existing assets | B173: 1 | C173: =C7+C75+C103+C110+C117+C135+C138+C148+C151+C154+C157+C160+C163+C166 -> 837890.78 | D173: 16616000 | E173: 16616000 | F173: 0 | G173: 0 | H173: 1384668 | I173: =H173-G173 -> 1384668 | J173: =IF(I173=0,"",I173/H173) -> 1 | K173: =K7+K75+K103+K110+K117+K135+K138+K148+K151+K154+K157+K160+K163+K166 -> 16616000
A175: =head27a -> References
A176: 1. Total Capital Expenditure on new assets (SC13a) plus Total Capital Expenditure on renewal of existing assets (SC13b) plus Total Capital Expenditure on upgrading of existing assets (SC13e) must reconcile to total capital expenditure in Table C5
A178: check balance | C178: =C173+SC13a!C173+SC13e!C173-'C5-Capex'!C40 -> 0 | D178: =D173+SC13a!D173+SC13e!D173-'C5-Capex'!D40 -> 0 | E178: =E173+SC13a!E173+SC13e!E173-'C5-Capex'!E40 -> 0 | F178: =F173+SC13a!F173+SC13e!F173-'C5-Capex'!F40 -> 0 | G178: =G173+SC13a!G173+SC13e!G173-'C5-Capex'!G40 -> 0 | H178: =H173+SC13a!H173+SC13e!H173-'C5-Capex'!H40 -> 0 | K178: =K173+SC13a!K173+SC13e!K173-'C5-Capex'!K40 -> 0

Sheet SC13c
A1: =muni& " - "&S71Sc& " - "&Head57 -> LIM351 Blouberg - Supporting Table SC13c Monthly Budget Statement - expenditure on repairs and maintenance by asset class - M01 July
A2: =desc -> Description | B2: =head27 -> Ref | C2: =Head1 -> 2023/24 | D2: =Head2 -> Budget Year 2024/25
C3: =Head5 -> Audited Outcome | D3: =Head6 -> Original Budget | E3: =Head7 -> Adjusted Budget | F3: =Head38 -> Monthly actual | G3: =Head39 -> YearTD actual | H3: =Head40 -> YearTD budget | I3: =Head41 -> YTD variance | J3: =Head41 -> YTD variance | K3: =Head8 -> Full Year Forecast
A4: R thousands | B4: 1 | J4: %
A5: Repairs and maintenance expenditure by Asset Class/Sub-class
A7: Infrastructure | C7: =C8+C13+C17+C27+C38+C45+C53+C63+C69 -> 6236371.21 | D7: 2400014 | E7: 2400014 | F7: 11452.69 | G7: 11452.69 | H7: 200004 | I7: =H7-G7 -> 188551.31 | J7: =IF(I7=0,"",I7/H7) -> 0.9427376952 | K7: =K8+K13+K17+K27+K38+K45+K53+K63+K69 -> 2400014
A8: Roads Infrastructure | C8: =SUM(C9:C12) -> 314763 | D8: 300014 | E8: 300014 | F8: 0 | G8: 0 | H8: 25003 | I8: 25003 | J8: 1 | K8: =SUM(K9:K12) -> 300014
A9: Roads | C9: 314763 | D9: 300014 | E9: 300014 | F9: 0 | G9: 0 | H9: 25003 | I9: 25003 | J9: 1 | K9: 300014
A10: Road Structures | I10: 0
A11: Road Furniture | C11: 0 | D11: 0 | E11: 0 | F11: 0 | G11: 0 | H11: 0 | I11: 0 | K11: 0
A12: Capital Spares | I12: 0
A13: Storm water Infrastructure | C13: =SUM(C14:C16) -> 3477657.36 | D13: 0 | E13: 0 | F13: 0 | G13: 0 | H13: 0 | I13: 0 | K13: =SUM(K14:K16) -> 0
A14: Drainage Collection | C14: 0 | D14: 0 | E14: 0 | F14: 0 | G14: 0 | H14: 0 | I14: 0 | K14: 0
A15: Storm water Conveyance | C15: 3477657.36 | D15: 0 | E15: 0 | F15: 0 | G15: 0 | H15: 0 | I15: 0 | K15: 0
A16: Attenuation | I16: 0
A17: Electrical Infrastructure | C17: =SUM(C18:C26) -> 2443950.85 | D17: 2000000 | E17: 2000000 | F17: 11452.69 | G17: 11452.69 | H17: 166667 | I17: 155214.31 | J17: 0.9312839974 | K17: =SUM(K18:K26) -> 2000000
A18: Power Plants | C18: 0 | D18: 0 | E18: 0 | F18: 0 | G18: 0 | H18: 0 | I18: 0 | K18: 0
A19: HV Substations | I19: 0
A20: HV Switching Station | I20: 0
A21: HV Transmission Conductors | I21: 0
A22: MV Substations | I22: 0
A23: MV Switching Stations | I23: 0
A24: MV Networks | C24: 0 | D24: 0 | E24: 0 | F24: 0 | G24: 0 | H24: 0 | I24: 0 | K24: 0
A25: LV Networks | C25: 2443950.85 | D25: 2000000 | E25: 2000000 | F25: 11452.69 | G25: 11452.69 | H25: 166667 | I25: 155214.31 | J25: 0.9312839974 | K25: 2000000
A26: Capital Spares | I26: 0
A27: Water Supply Infrastructure | C27: =SUM(C28:C37) -> 0 | D27: 0 | E27: 0 | F27: 0 | G27: 0 | H27: 0 | I27: 0 | K27: =SUM(K28:K37) -> 0
A28: Dams and Weirs | I28: 0
A29: Boreholes | I29: 0
A30: Reservoirs | I30: 0
A31: Pump Stations | I31: 0
A32: Water Treatment Works | I32: 0
A33: Bulk Mains | I33: 0
A34: Distribution | I34: 0
A35: Distribution Points | I35: 0
A36: PRV Stations | I36: 0
A37: Capital Spares | I37: 0
A38: Sanitation Infrastructure | C38: =SUM(C39:C44) -> 0 | D38: 0 | E38: 0 | F38: 0 | G38: 0 | H38: 0 | I38: 0 | K38: =SUM(K39:K44) -> 0
A39: Pump Station | I39: 0
A40: Reticulation | I40: 0
A41: Waste Water Treatment Works | I41: 0
A42: Outfall Sewers | I42: 0
A43: Toilet Facilities | I43: 0
A44: Capital Spares | I44: 0
A45: Solid Waste Infrastructure | C45: =SUM(C46:C52) -> 0 | D45: 0 | E45: 0 | F45: 0 | G45: 0 | H45: 0 | I45: 0 | K45: =SUM(K46:K52) -> 0
A46: Landfill Sites | I46: 0
A47: Waste Transfer Stations | I47: 0
A48: Waste Processing Facilities | I48: 0
A49: Waste Drop-off Points | I49: 0
A50: Waste Separation Facilities | I50: 0
A51: Electricity Generation Facilities | I51: 0
A52: Capital Spares | I52: 0
A53: Rail Infrastructure | C53: =SUM(C54:C62) -> 0 | D53: 0 | E53: 0 | F53: 0 | G53: 0 | H53: 0 | I53: 0 | K53: =SUM(K54:K62) -> 0
A54: Rail Lines | I54: 0
A55: Rail Structures | I55: 0
A56: Rail Furniture | I56: 0
A57: Drainage Collection | I57: 0
A58: Storm water Conveyance | I58: 0
A59: Attenuation | I59: 0
A60: MV Substations | I60: 0
A61: LV Networks | I61: 0
A62: Capital Spares | I62: 0
A63: Coastal Infrastructure | C63: =SUM(C64:C68) -> 0 | D63: 0 | E63: 0 | F63: 0 | G63: 0 | H63: 0 | I63: 0 | K63: =SUM(K64:K68) -> 0
A64: Sand Pumps | I64: 0
A65: Piers | I65: 0
A66: Revetments | I66: 0
A67: Promenades | I67: 0
A68: Capital Spares | I68: 0
A69: Information and Communication Infrastructure | C69: =SUM(C70:C73) -> 0 | D69: 100000 | E69: 100000 | F69: 0 | G69: 0 | H69: 8334 | I69: 8334 | J69: 1 | K69: =SUM(K70:K73) -> 100000
A70: Data Centres | C70: 0 | D70: 0 | E70: 0 | F70: 0 | G70: 0 | H70: 0 | I70: 0 | K70: 0
A71: Core Layers | C71: 0 | D71: 100000 | E71: 100000 | F71: 0 | G71: 0 | H71: 8334 | I71: 8334 | J71: 1 | K71: 100000
A72: Distribution Layers | I72: 0
A73: Capital Spares | I73: 0
A75: Community Assets | C75: =+C76+C99 -> 344325 | D75: 300000 | E75: 300000 | F75: 360 | G75: 360 | H75: 25002 | I75: 24642 | J75: 0.9856011519 | K75: =+K76+K99 -> 300000
A76: Community Facilities | C76: =SUM(C77:C98) -> 184865 | D76: 200000 | E76: 200000 | F76: 360 | G76: 360 | H76: 16668 | I76: 16308 | J76: 0.9784017279 | K76: =SUM(K77:K98) -> 200000
A77: Halls | C77: 184865 | D77: 100000 | E77: 100000 | F77: 360 | G77: 360 | H77: 8334 | I77: 7974 | J77: 0.9568034557 | K77: 100000
A78: Centres | I78: 0
A79: Crèches | I79: 0
A80: Clinics/Care Centres | C80: 0 | D80: 0 | E80: 0 | F80: 0 | G80: 0 | H80: 0 | I80: 0 | K80: 0
A81: Fire/Ambulance Stations | I81: 0
A82: Testing Stations | I82: 0
A83: Museums | I83: 0
A84: Galleries | I84: 0
A85: Theatres | I85: 0
A86: Libraries | I86: 0
A87: Cemeteries/Crematoria | I87: 0
A88: Police | I88: 0
A89: Purls | I89: 0
A90: Public Open Space | I90: 0
A91: Nature Reserves | I91: 0
A92: Public Ablution Facilities | C92: 0 | D92: 100000 | E92: 100000 | F92: 0 | G92: 0 | H92: 8334 | I92: 8334 | J92: 1 | K92: 100000
A93: Markets | I93: 0
A94: Stalls | I94: 0
A95: Abattoirs | I95: 0
A96: Airports | I96: 0
A97: Taxi Ranks/Bus Terminals | I97: 0
A98: Capital Spares | I98: 0
A99: Sport and Recreation Facilities | C99: =SUM(C100:C102) -> 159460 | D99: 100000 | E99: 100000 | F99: 0 | G99: 0 | H99: 8334 | I99: 8334 | J99: 1 | K99: =SUM(K100:K102) -> 100000
A100: Indoor Facilities | I100: 0
A101: Outdoor Facilities | C101: 159460 | D101: 100000 | E101: 100000 | F101: 0 | G101: 0 | H101: 8334 | I101: =H101-G101 -> 8334 | J101: =IF(I101=0,"",I101/H101) -> 1 | K101: 100000
A102: Capital Spares | I102: 0
A103: Heritage assets | C103: =SUM(C104:C108) -> 0 | D103: 0 | E103: 0 | F103: 0 | G103: 0 | H103: 0 | I103: 0 | K103: =SUM(K104:K108) -> 0
A104: Monuments | I104: 0
A105: Historic Buildings | I105: 0
A106: Works of Art | I106: 0
A107: Conservation Areas | I107: 0
A108: Other Heritage | I108: 0
I109: 0
A110: Investment properties | C110: =+C111+C114 -> 0 | D110: 0 | E110: 0 | F110: 0 | G110: 0 | H110: 0 | I110: 0 | K110: =+K111+K114 -> 0
A111: Revenue Generating | C111: =SUM(C112:C113) -> 0 | D111: 0 | E111: 0 | F111: 0 | G111: 0 | H111: 0 | I111: 0 | K111: =SUM(K112:K113) -> 0
A112: Improved Property | I112: 0
A113: Unimproved Property | I113: 0
A114: Non-revenue Generating | C114: =SUM(C115:C116) -> 0 | D114: 0 | E114: 0 | F114: 0 | G114: 0 | H114: 0 | I114: 0 | K114: =SUM(K115:K116) -> 0
A115: Improved Property | I115: 0
A116: Unimproved Property | I116: =H116-G116 -> 0 | J116: =IF(I116=0,"",I116/H116) -> 
A117: Other assets | C117: =+C118+C130 -> 427632.25 | D117: 1477281 | E117: 1477281 | F117: 0 | G117: 0 | H117: 123108 | I117: 123108 | J117: 1 | K117: =+K118+K130 -> 1477281
A118: Operational Buildings | C118: =SUM(C119:C129) -> 427632.25 | D118: 1477281 | E118: 1477281 | F118: 0 | G118: 0 | H118: 123108 | I118: 123108 | J118: 1 | K118: =SUM(K119:K129) -> 1477281
A119: Municipal Offices | C119: 427632.25 | D119: 1477281 | E119: 1477281 | F119: 0 | G119: 0 | H119: 123108 | I119: 123108 | J119: 1 | K119: 1477281
A120: Pay/Enquiry Points | I120: 0
A121: Building Plan Offices | I121: 0
A122: Workshops | I122: 0
A123: Yards | C123: 0 | D123: 0 | E123: 0 | F123: 0 | G123: 0 | H123: 0 | I123: 0 | K123: 0
A124: Stores | I124: 0
A125: Laboratories | I125: 0
A126: Training Centres | I126: 0
A127: Manufacturing Plant | I127: 0
A128: Depots | I128: 0
A129: Capital Spares | I129: 0
A130: Housing | C130: =SUM(C131:C133) -> 0 | D130: 0 | E130: 0 | F130: 0 | G130: 0 | H130: 0 | I130: 0 | K130: =SUM(K131:K133) -> 0
A131: Staff Housing | I131: 0
A132: Social Housing | I132: 0
A133: Capital Spares | I133: 0
A135: Biological or Cultivated Assets | C135: =SUM(C136:C136) -> 0 | D135: 0 | E135: 0 | F135: 0 | G135: 0 | H135: 0 | I135: =H135-G135 -> 0 | K135: =SUM(K136) -> 0
A136: Biological or Cultivated Assets | I136: =H136-G136 -> 0
A138: Intangible Assets | C138: =SUM(C139:C140) -> 0 | D138: 0 | E138: 0 | F138: 0 | G138: 0 | H138: 0 | I138: =H138-G138 -> 0 | K138: =SUM(K139:K140) -> 0
A139: Servitudes | I139: 0
A140: Licences and Rights | C140: =SUM(C141:C146) -> 0 | D140: 0 | E140: 0 | F140: 0 | G140: 0 | H140: 0 | I140: 0 | K140: =SUM(K141:K146) -> 0
A141: Water Rights | I141: 0
A142: Effluent Licenses | I142: 0
A143: Solid Waste Licenses | I143: 0
A144: Computer Software and Applications | I144: 0
A145: Load Settlement Software Applications | I145: 0
A146: Unspecified | I146: 0
A148: Computer Equipment | C148: =SUM(C149:C149) -> 216000 | D148: 367351 | E148: 367351 | F148: 0 | G148: 0 | H148: 30614 | I148: =H148-G148 -> 30614 | J148: =IF(I148=0,"",I148/H148) -> 1 | K148: =SUM(K149) -> 367351
A149: Computer Equipment | C149: 216000 | D149: 367351 | E149: 367351 | F149: 0 | G149: 0 | H149: 30614 | I149: =H149-G149 -> 30614 | J149: =IF(I149=0,"",I149/H149) -> 1 | K149: 367351
A151: Furniture and Office Equipment | C151: =SUM(C152:C152) -> 49760 | D151: 124722 | E151: 124722 | F151: 0 | G151: 0 | H151: 10394 | I151: =H151-G151 -> 10394 | J151: =IF(I151=0,"",I151/H151) -> 1 | K151: =SUM(K152) -> 124722
A152: Furniture and Office Equipment | C152: 49760 | D152: 124722 | E152: 124722 | F152: 0 | G152: 0 | H152: 10394 | I152: =H152-G152 -> 10394 | J152: =IF(I152=0,"",I152/H152) -> 1 | K152: 124722
J153: =IF(I153=0,"",I153/H153) -> 
A154: Machinery and Equipment | C154: =SUM(C155:C155) -> 0 | D154: 50000 | E154: 50000 | F154: 0 | G154: 0 | H154: 4167 | I154: =H154-G154 -> 4167 | J154: =IF(I154=0,"",I154/H154) -> 1 | K154: =SUM(K155) -> 50000
A155: Machinery and Equipment | C155: 0 | D155: 50000 | E155: 50000 | F155: 0 | G155: 0 | H155: 4167 | I155: =H155-G155 -> 4167 | J155: =IF(I155=0,"",I155/H155) -> 1 | K155: 50000
A157: Transport Assets | C157: =SUM(C158:C158) -> 2802693.56 | D157: 1211648 | E157: 1211648 | F157: 18867.29 | G157: 18867.29 | H157: 100972 | I157: =H157-G157 -> 82104.71 | J157: =IF(I157=0,"",I157/H157) -> 0.8131433467 | K157: =SUM(K158) -> 1211648
A158: Transport Assets | C158: 2802693.56 | D158: 1211648 | E158: 1211648 | F158: 18867.29 | G158: 18867.29 | H158: 100972 | I158: =H158-G158 -> 82104.71 | J158: =IF(I158=0,"",I158/H158) -> 0.8131433467 | K158: 1211648
A160: Land | C160: =SUM(C161:C161) -> 0 | D160: 0 | E160: 0 | F160: 0 | G160: 0 | H160: 0 | I160: =H160-G160 -> 0 | J160: =IF(I160=0,"",I160/H160) ->  | K160: =SUM(K161) -> 0
A161: Land | I161: =H161-G161 -> 0 | J161: =IF(I161=0,"",I161/H161) -> 
A163: Zoo's, Marine and Non-biological Animals | C163: =SUM(C164:C164) -> 0 | D163: 0 | E163: 0 | F163: 0 | G163: 0 | H163: 0 | I163: =H163-G163 -> 0 | J163: =IF(I163=0,"",I163/H163) ->  | K163: =SUM(K164) -> 0
A164: Zoo's, Marine and Non-biological Animals | I164: =H164-G164 -> 0 | J164: =IF(I164=0,"",I164/H164) -> 
A166: Living resources | C166: =+C167+C170 -> 0 | D166: 0 | E166: 0 | F166: 0 | G166: 0 | H166: 0 | I166: =H166-G166 -> 0 | J166: =IF(I166=0,"",I166/H166) ->  | K166: =+K167+K170 -> 0
A167: Mature | C167: =+C168+C169 -> 0 | D167: 0 | E167: 0 | F167: 0 | G167: 0 | H167: 0 | I167: 0 | K167: =+K168+K169 -> 0
A168: Policing and Protection | I168: 0
A169: Zoological plants and animals | I169: 0
A170: Immature | C170: =+C171+C172 -> 0 | D170: 0 | E170: 0 | F170: 0 | G170: 0 | H170: 0 | I170: 0 | K170: =+K171+K172 -> 0
A171: Policing and Protection | I171: 0
A172: Zoological plants and animals | I172: 0
A173: Total Repairs and Maintenance Expenditure | B173: 1 | C173: =C7+C75+C103+C110+C117+C135+C138+C148+C151+C154+C157+C160+C163+C166 -> 10076782.02 | D173: 5931016 | E173: 5931016 | F173: 30679.98 | G173: 30679.98 | H173: 494261 | I173: =H173-G173 -> 463581.02 | J173: =IF(I173=0,"",I173/H173) -> 0.9379275727 | K173: =K7+K75+K103+K110+K117+K135+K138+K148+K151+K154+K157+K160+K163+K166 -> 5931016

Sheet SC13d
A1: =muni& " - "&S71Sd& " - "&Head57 -> LIM351 Blouberg - Supporting Table SC13d Monthly Budget Statement - depreciation by asset class - M01 July
A2: =desc -> Description | B2: =head27 -> Ref | C2: =Head1 -> 2023/24 | D2: =Head2 -> Budget Year 2024/25
C3: =Head5 -> Audited Outcome | D3: =Head6 -> Original Budget | E3: =Head7 -> Adjusted Budget | F3: =Head38 -> Monthly actual | G3: =Head39 -> YearTD actual | H3: =Head40 -> YearTD budget | I3: =Head41 -> YTD variance | J3: =Head41 -> YTD variance | K3: =Head8 -> Full Year Forecast
A4: R thousands | B4: 1 | J4: %
A5: Depreciation by Asset Class/Sub-class
A7: Infrastructure | C7: =C8+C13+C17+C27+C38+C45+C53+C63+C69 -> 20642440.78 | D7: 21583570 | E7: 21583570 | F7: 0 | G7: 0 | H7: 1798637 | I7: =H7-G7 -> 1798637 | J7: =IF(I7=0,"",I7/H7) -> 1 | K7: =K8+K13+K17+K27+K38+K45+K53+K63+K69 -> 21583570
A8: Roads Infrastructure | C8: =SUM(C9:C12) -> 8106049.92 | D8: 8770778 | E8: 8770778 | F8: 0 | G8: 0 | H8: 730899 | I8: 730899 | J8: 1 | K8: =SUM(K9:K12) -> 8770778
A9: Roads | C9: 8106049.92 | D9: 4178819 | E9: 4178819 | F9: 0 | G9: 0 | H9: 348235 | I9: 348235 | J9: 1 | K9: 4178819
A10: Road Structures | C10: 0 | D10: 1086009 | E10: 1086009 | F10: 0 | G10: 0 | H10: 90501 | I10: 90501 | J10: 1 | K10: 1086009
A11: Road Furniture | C11: 0 | D11: 3505950 | E11: 3505950 | F11: 0 | G11: 0 | H11: 292163 | I11: 292163 | J11: 1 | K11: 3505950
A12: Capital Spares | C12: 0 | D12: 0 | E12: 0 | F12: 0 | G12: 0 | H12: 0 | I12: 0 | K12: 0
A13: Storm water Infrastructure | C13: =SUM(C14:C16) -> 0 | D13: 0 | E13: 0 | F13: 0 | G13: 0 | H13: 0 | I13: 0 | K13: =SUM(K14:K16) -> 0
A14: Drainage Collection | C14: 0 | D14: 0 | E14: 0 | F14: 0 | G14: 0 | H14: 0 | I14: 0 | K14: 0
A15: Storm water Conveyance | C15: 0 | D15: 0 | E15: 0 | F15: 0 | G15: 0 | H15: 0 | I15: 0 | K15: 0
A16: Attenuation | C16: 0 | D16: 0 | E16: 0 | F16: 0 | G16: 0 | H16: 0 | I16: 0 | K16: 0
A17: Electrical Infrastructure | C17: =SUM(C18:C26) -> 12536390.86 | D17: 11059817 | E17: 11059817 | F17: 0 | G17: 0 | H17: 921656 | I17: 921656 | J17: 1 | K17: =SUM(K18:K26) -> 11059817
A18: Power Plants | C18: 0 | D18: 0 | E18: 0 | F18: 0 | G18: 0 | H18: 0 | I18: 0 | K18: 0
A19: HV Substations | C19: 0 | D19: 210000 | E19: 210000 | F19: 0 | G19: 0 | H19: 17500 | I19: 17500 | J19: 1 | K19: 210000
A20: HV Switching Station | C20: 0 | D20: 72457 | E20: 72457 | F20: 0 | G20: 0 | H20: 6039 | I20: 6039 | J20: 1 | K20: 72457
A21: HV Transmission Conductors | C21: 0 | D21: 1174383 | E21: 1174383 | F21: 0 | G21: 0 | H21: 97866 | I21: 97866 | J21: 1 | K21: 1174383
A22: MV Substations | C22: 0 | D22: 0 | E22: 0 | F22: 0 | G22: 0 | H22: 0 | I22: 0 | K22: 0
A23: MV Switching Stations | C23: 0 | D23: 708202 | E23: 708202 | F23: 0 | G23: 0 | H23: 59018 | I23: 59018 | J23: 1 | K23: 708202
A24: MV Networks | C24: 0 | D24: 0 | E24: 0 | F24: 0 | G24: 0 | H24: 0 | I24: 0 | K24: 0
A25: LV Networks | C25: 12536390.86 | D25: 5388825 | E25: 5388825 | F25: 0 | G25: 0 | H25: 449070 | I25: 449070 | J25: 1 | K25: 5388825
A26: Capital Spares | C26: 0 | D26: 3505950 | E26: 3505950 | F26: 0 | G26: 0 | H26: 292163 | I26: 292163 | J26: 1 | K26: 3505950
A27: Water Supply Infrastructure | C27: =SUM(C28:C37) -> 0 | D27: 0 | E27: 0 | F27: 0 | G27: 0 | H27: 0 | I27: 0 | K27: =SUM(K28:K37) -> 0
A28: Dams and Weirs | C28: 0 | D28: 0 | E28: 0 | F28: 0 | G28: 0 | H28: 0 | I28: 0 | K28: 0
A29: Boreholes | C29: 0 | D29: 0 | E29: 0 | F29: 0 | G29: 0 | H29: 0 | I29: 0 | K29: 0
A30: Reservoirs | I30: 0
A31: Pump Stations | I31: 0
A32: Water Treatment Works | I32: 0
A33: Bulk Mains | I33: 0
A34: Distribution | I34: 0
A35: Distribution Points | I35: 0
A36: PRV Stations | I36: 0
A37: Capital Spares | I37: 0
A38: Sanitation Infrastructure | C38: =SUM(C39:C44) -> 0 | D38: 0 | E38: 0 | F38: 0 | G38: 0 | H38: 0 | I38: 0 | K38: =SUM(K39:K44) -> 0
A39: Pump Station | I39: 0
A40: Reticulation | I40: 0
A41: Waste Water Treatment Works | I41: 0
A42: Outfall Sewers | I42: 0
A43: Toilet Facilities | I43: 0
A44: Capital Spares | I44: 0
A45: Solid Waste Infrastructure | C45: =SUM(C46:C52) -> 0 | D45: 1752975 | E45: 1752975 | F45: 0 | G45: 0 | H45: 146082 | I45: 146082 | J45: 1 | K45: =SUM(K46:K52) -> 1752975
A46: Landfill Sites | C46: 0 | D46: 1752975 | E46: 1752975 | F46: 0 | G46: 0 | H46: 146082 | I46: 146082 | J46: 1 | K46: 1752975
A47: Waste Transfer Stations | C47: 0 | D47: 0 | E47: 0 | F47: 0 | G47: 0 | H47: 0 | I47: 0 | K47: 0
A48: Waste Processing Facilities | C48: 0 | D48: 0 | E48: 0 | F48: 0 | G48: 0 | H48: 0 | I48: 0 | K48: 0
A49: Waste Drop-off Points | C49: 0 | D49: 0 | E49: 0 | F49: 0 | G49: 0 | H49: 0 | I49: 0 | K49: 0
A50: Waste Separation Facilities | C50: 0 | D50: 0 | E50: 0 | F50: 0 | G50: 0 | H50: 0 | I50: 0 | K50: 0
A51: Electricity Generation Facilities | C51: 0 | D51: 0 | E51: 0 | F51: 0 | G51: 0 | H51: 0 | I51: 0 | K51: 0
A52: Capital Spares | C52: 0 | D52: 0 | E52: 0 | F52: 0 | G52: 0 | H52: 0 | I52: 0 | K52: 0
A53: Rail Infrastructure | C53: =SUM(C54:C62) -> 0 | D53: 0 | E53: 0 | F53: 0 | G53: 0 | H53: 0 | I53: 0 | K53: =SUM(K54:K62) -> 0
A54: Rail Lines | I54: 0
A55: Rail Structures | I55: 0
A56: Rail Furniture | I56: 0
A57: Drainage Collection | I57: 0
A58: Storm water Conveyance | I58: 0
A59: Attenuation | I59: 0
A60: MV Substations | I60: 0
A61: LV Networks | I61: 0
A62: Capital Spares | I62: 0
A63: Coastal Infrastructure | C63: =SUM(C64:C68) -> 0 | D63: 0 | E63: 0 | F63: 0 | G63: 0 | H63: 0 | I63: 0 | K63: =SUM(K64:K68) -> 0
A64: Sand Pumps | I64: 0
A65: Piers | I65: 0
A66: Revetments | I66: 0
A67: Promenades | I67: 0
A68: Capital Spares | I68: 0
A69: Information and Communication Infrastructure | C69: =SUM(C70:C73) -> 0 | D69: 0 | E69: 0 | F69: 0 | G69: 0 | H69: 0 | I69: 0 | K69: =SUM(K70:K73) -> 0
A70: Data Centres | I70: 0
A71: Core Layers | I71: 0
A72: Distribution Layers | I72: 0
A73: Capital Spares | I73: 0
A75: Community Assets | C75: =+C76+C99 -> 7701610.24 | D75: 4853468 | E75: 4853468 | F75: 0 | G75: 0 | H75: 404458 | I75: 404458 | J75: 1 | K75: =+K76+K99 -> 4853468
A76: Community Facilities | C76: =SUM(C77:C98) -> 7701610.24 | D76: 4853468 | E76: 4853468 | F76: 0 | G76: 0 | H76: 404458 | I76: 404458 | J76: 1 | K76: =SUM(K77:K98) -> 4853468
A77: Halls | C77: 4934521 | D77: 759623 | E77: 759623 | F77: 0 | G77: 0 | H77: 63302 | I77: 63302 | J77: 1 | K77: 759623
A78: Centres | C78: 2388319.53 | D78: 2103570 | E78: 2103570 | F78: 0 | G78: 0 | H78: 175298 | I78: 175298 | J78: 1 | K78: 2103570
A79: Crèches | C79: 0 | D79: 237300 | E79: 237300 | F79: 0 | G79: 0 | H79: 19775 | I79: 19775 | J79: 1 | K79: 237300
A80: Clinics/Care Centres | C80: 0 | D80: 0 | E80: 0 | F80: 0 | G80: 0 | H80: 0 | I80: 0 | K80: 0
A81: Fire/Ambulance Stations | C81: 0 | D81: 233730 | E81: 233730 | F81: 0 | G81: 0 | H81: 19478 | I81: 19478 | J81: 1 | K81: 233730
A82: Testing Stations | C82: 0 | D82: 701190 | E82: 701190 | F82: 0 | G82: 0 | H82: 58433 | I82: 58433 | J82: 1 | K82: 701190
A83: Museums | C83: 0 | D83: 0 | E83: 0 | F83: 0 | G83: 0 | H83: 0 | I83: 0 | K83: 0
A84: Galleries | C84: 0 | D84: 0 | E84: 0 | F84: 0 | G84: 0 | H84: 0 | I84: 0 | K84: 0
A85: Theatres | C85: 0 | D85: 0 | E85: 0 | F85: 0 | G85: 0 | H85: 0 | I85: 0 | K85: 0
A86: Libraries | C86: 0 | D86: 0 | E86: 0 | F86: 0 | G86: 0 | H86: 0 | I86: 0 | K86: 0
A87: Cemeteries/Crematoria | C87: 0 | D87: 233730 | E87: 233730 | F87: 0 | G87: 0 | H87: 19478 | I87: 19478 | J87: 1 | K87: 233730
A88: Police | C88: 0 | D88: 0 | E88: 0 | F88: 0 | G88: 0 | H88: 0 | I88: 0 | K88: 0
A89: Purls | C89: 0 | D89: 0 | E89: 0 | F89: 0 | G89: 0 | H89: 0 | I89: 0 | K89: 0
A90: Public Open Space | C90: 0 | D90: 0 | E90: 0 | F90: 0 | G90: 0 | H90: 0 | I90: 0 | K90: 0
A91: Nature Reserves | C91: 0 | D91: 0 | E91: 0 | F91: 0 | G91: 0 | H91: 0 | I91: 0 | K91: 0
A92: Public Ablution Facilities | C92: 0 | D92: 0 | E92: 0 | F92: 0 | G92: 0 | H92: 0 | I92: 0 | K92: 0
A93: Markets | C93: 0 | D93: 0 | E93: 0 | F93: 0 | G93: 0 | H93: 0 | I93: 0 | K93: 0
A94: Stalls | C94: 0 | D94: 0 | E94: 0 | F94: 0 | G94: 0 | H94: 0 | I94: 0 | K94: 0
A95: Abattoirs | C95: 0 | D95: 0 | E95: 0 | F95: 0 | G95: 0 | H95: 0 | I95: 0 | K95: 0
A96: Airports | C96: 0 | D96: 0 | E96: 0 | F96: 0 | G96: 0 | H96: 0 | I96: 0 | K96: 0
A97: Taxi Ranks/Bus Terminals | C97: 378769.71 | D97: 584325 | E97: 584325 | F97: 0 | G97: 0 | H97: 48694 | I97: 48694 | J97: 1 | K97: 584325
A98: Capital Spares | I98: 0
A99: Sport and Recreation Facilities | C99: =SUM(C100:C102) -> 0 | D99: 0 | E99: 0 | F99: 0 | G99: 0 | H99: 0 | I99: 0 | K99: =SUM(K100:K102) -> 0
A100: Indoor Facilities | I100: 0
A101: Outdoor Facilities | I101: =H101-G101 -> 0 | J101: =IF(I101=0,"",I101/H101) -> 
A102: Capital Spares | I102: 0
A103: Heritage assets | C103: =SUM(C104:C108) -> 0 | D103: 0 | E103: 0 | F103: 0 | G103: 0 | H103: 0 | I103: 0 | K103: =SUM(K104:K108) -> 0
A104: Monuments | I104: 0
A105: Historic Buildings | I105: 0
A106: Works of Art | I106: 0
A107: Conservation Areas | I107: 0
A108: Other Heritage | C108: 0 | D108: 0 | E108: 0 | F108: 0 | G108: 0 | H108: 0 | I108: 0 | K108: 0
I109: 0
A110: Investment properties | C110: =+C111+C114 -> 0 | D110: 0 | E110: 0 | F110: 0 | G110: 0 | H110: 0 | I110: 0 | K110: =+K111+K114 -> 0
A111: Revenue Generating | C111: =SUM(C112:C113) -> 0 | D111: 0 | E111: 0 | F111: 0 | G111: 0 | H111: 0 | I111: 0 | K111: =SUM(K112:K113) -> 0
A112: Improved Property | C112: 0 | D112: 0 | E112: 0 | F112: 0 | G112: 0 | H112: 0 | I112: 0 | K112: 0
A113: Unimproved Property | C113: 0 | D113: 0 | E113: 0 | F113: 0 | G113: 0 | H113: 0 | I113: 0 | K113: 0
A114: Non-revenue Generating | C114: =SUM(C115:C116) -> 0 | D114: 0 | E114: 0 | F114: 0 | G114: 0 | H114: 0 | I114: 0 | K114: =SUM(K115:K116) -> 0
A115: Improved Property | I115: 0
A116: Unimproved Property | I116: =H116-G116 -> 0 | J116: =IF(I116=0,"",I116/H116) -> 
A117: Other assets | C117: =+C118+C130 -> 1627297.89 | D117: 1928273 | E117: 1928273 | F117: 0 | G117: 0 | H117: 160691 | I117: 160691 | J117: 1 | K117: =+K118+K130 -> 1928273
A118: Operational Buildings | C118: =SUM(C119:C129) -> 1627297.89 | D118: 1928273 | E118: 1928273 | F118: 0 | G118: 0 | H118: 160691 | I118: 160691 | J118: 1 | K118: =SUM(K119:K129) -> 1928273
A119: Municipal Offices | C119: 1627297.89 | D119: 1519245 | E119: 1519245 | F119: 0 | G119: 0 | H119: 126604 | I119: 126604 | J119: 1 | K119: 1519245
A120: Pay/Enquiry Points | C120: 0 | D120: 233730 | E120: 233730 | F120: 0 | G120: 0 | H120: 19478 | I120: 19478 | J120: 1 | K120: 233730
A121: Building Plan Offices | C121: 0 | D121: 0 | E121: 0 | F121: 0 | G121: 0 | H121: 0 | I121: 0 | K121: 0
A122: Workshops | C122: 0 | D122: 0 | E122: 0 | F122: 0 | G122: 0 | H122: 0 | I122: 0 | K122: 0
A123: Yards | C123: 0 | D123: 0 | E123: 0 | F123: 0 | G123: 0 | H123: 0 | I123: 0 | K123: 0
A124: Stores | C124: 0 | D124: 175298 | E124: 175298 | F124: 0 | G124: 0 | H124: 14609 | I124: 14609 | J124: 1 | K124: 175298
A125: Laboratories | C125: 0 | D125: 0 | E125: 0 | F125: 0 | G125: 0 | H125: 0 | I125: 0 | K125: 0
A126: Training Centres | C126: 0 | D126: 0 | E126: 0 | F126: 0 | G126: 0 | H126: 0 | I126: 0 | K126: 0
A127: Manufacturing Plant | C127: 0 | D127: 0 | E127: 0 | F127: 0 | G127: 0 | H127: 0 | I127: 0 | K127: 0
A128: Depots | C128: 0 | D128: 0 | E128: 0 | F128: 0 | G128: 0 | H128: 0 | I128: 0 | K128: 0
A129: Capital Spares | C129: 0 | D129: 0 | E129: 0 | F129: 0 | G129: 0 | H129: 0 | I129: 0 | K129: 0
A130: Housing | C130: =SUM(C131:C133) -> 0 | D130: 0 | E130: 0 | F130: 0 | G130: 0 | H130: 0 | I130: 0 | K130: =SUM(K131:K133) -> 0
A131: Staff Housing | C131: 0 | D131: 0 | E131: 0 | F131: 0 | G131: 0 | H131: 0 | I131: 0 | K131: 0
A132: Social Housing | C132: 0 | D132: 0 | E132: 0 | F132: 0 | G132: 0 | H132: 0 | I132: 0 | K132: 0
A133: Capital Spares | C133: 0 | D133: 0 | E133: 0 | F133: 0 | G133: 0 | H133: 0 | I133: 0 | K133: 0
A135: Biological or Cultivated Assets | C135: =SUM(C136:C136) -> 0 | D135: 0 | E135: 0 | F135: 0 | G135: 0 | H135: 0 | I135: =H135-G135 -> 0 | K135: =SUM(K136) -> 0
A136: Biological or Cultivated Assets | I136: =H136-G136 -> 0
A138: Intangible Assets | C138: =SUM(C139:C140) -> 65918.6 | D138: 262500 | E138: 262500 | F138: 0 | G138: 0 | H138: 21875 | I138: =H138-G138 -> 21875 | J138: 1 | K138: =SUM(K139:K140) -> 262500
A139: Servitudes | I139: 0
A140: Licences and Rights | C140: =SUM(C141:C146) -> 65918.6 | D140: 262500 | E140: 262500 | F140: 0 | G140: 0 | H140: 21875 | I140: 21875 | J140: 1 | K140: =SUM(K141:K146) -> 262500
A141: Water Rights | I141: 0
A142: Effluent Licenses | I142: 0
A143: Solid Waste Licenses | I143: 0
A144: Computer Software and Applications | C144: 65918.6 | D144: 262500 | E144: 262500 | F144: 0 | G144: 0 | H144: 21875 | I144: 21875 | J144: 1 | K144: 262500
A145: Load Settlement Software Applications | I145: 0
A146: Unspecified | C146: 0 | D146: 0 | E146: 0 | F146: 0 | G146: 0 | H146: 0 | I146: 0 | K146: 0
A148: Computer Equipment | C148: =SUM(C149:C149) -> 2186370.36 | D148: 1287281 | E148: 1287281 | F148: 0 | G148: 0 | H148: 107275 | I148: =H148-G148 -> 107275 | J148: =IF(I148=0,"",I148/H148) -> 1 | K148: =SUM(K149) -> 1287281
A149: Computer Equipment | C149: 2186370.36 | D149: 1287281 | E149: 1287281 | F149: 0 | G149: 0 | H149: 107275 | I149: =H149-G149 -> 107275 | J149: =IF(I149=0,"",I149/H149) -> 1 | K149: 1287281
A151: Furniture and Office Equipment | C151: =SUM(C152:C152) -> 284031.15 | D151: 2814193 | E151: 2814193 | F151: 0 | G151: 0 | H151: 234518 | I151: =H151-G151 -> 234518 | J151: =IF(I151=0,"",I151/H151) -> 1 | K151: =SUM(K152) -> 2814193
A152: Furniture and Office Equipment | C152: 284031.15 | D152: 2814193 | E152: 2814193 | F152: 0 | G152: 0 | H152: 234518 | I152: =H152-G152 -> 234518 | J152: =IF(I152=0,"",I152/H152) -> 1 | K152: 2814193
J153: =IF(I153=0,"",I153/H153) -> 
A154: Machinery and Equipment | C154: =SUM(C155:C155) -> 304308.71 | D154: 784350 | E154: 784350 | F154: 0 | G154: 0 | H154: 65363 | I154: =H154-G154 -> 65363 | J154: =IF(I154=0,"",I154/H154) -> 1 | K154: =SUM(K155) -> 784350
A155: Machinery and Equipment | C155: 304308.71 | D155: 784350 | E155: 784350 | F155: 0 | G155: 0 | H155: 65363 | I155: =H155-G155 -> 65363 | J155: =IF(I155=0,"",I155/H155) -> 1 | K155: 784350
A157: Transport Assets | C157: =SUM(C158:C158) -> 1007549.56 | D157: 0 | E157: 0 | F157: 0 | G157: 0 | H157: 0 | I157: =H157-G157 -> 0 | J157: =IF(I157=0,"",I157/H157) ->  | K157: =SUM(K158) -> 0
A158: Transport Assets | C158: 1007549.56 | D158: 0 | E158: 0 | F158: 0 | G158: 0 | H158: 0 | I158: =H158-G158 -> 0 | J158: =IF(I158=0,"",I158/H158) ->  | K158: 0
A160: Land | C160: =SUM(C161:C161) -> 0 | D160: 0 | E160: 0 | F160: 0 | G160: 0 | H160: 0 | I160: =H160-G160 -> 0 | J160: =IF(I160=0,"",I160/H160) ->  | K160: =SUM(K161) -> 0
A161: Land | I161: =H161-G161 -> 0 | J161: =IF(I161=0,"",I161/H161) -> 
A163: Zoo's, Marine and Non-biological Animals | C163: =SUM(C164:C164) -> 0 | D163: 0 | E163: 0 | F163: 0 | G163: 0 | H163: 0 | I163: =H163-G163 -> 0 | J163: =IF(I163=0,"",I163/H163) ->  | K163: =SUM(K164) -> 0
A164: Zoo's, Marine and Non-biological Animals | I164: =H164-G164 -> 0 | J164: =IF(I164=0,"",I164/H164) -> 
J165: =IF(I165=0,"",I165/H165) -> 
A166: Living resources | C166: =+C167+C170 -> 0 | D166: 0 | E166: 0 | F166: 0 | G166: 0 | H166: 0 | I166: =H166-G166 -> 0 | K166: =+K167+K170 -> 0
A167: Mature | C167: =+C168+C169 -> 0 | D167: 0 | E167: 0 | F167: 0 | G167: 0 | H167: 0 | I167: 0 | K167: =+K168+K169 -> 0
A168: Policing and Protection | I168: 0
A169: Zoological plants and animals | I169: 0
A170: Immature | C170: =+C171+C172 -> 0 | D170: 0 | E170: 0 | F170: 0 | G170: 0 | H170: 0 | I170: 0 | K170: =+K171+K172 -> 0
A171: Policing and Protection | I171: 0
A172: Zoological plants and animals | I172: 0
A173: Total Depreciation | B173: 1 | C173: =C7+C75+C103+C110+C117+C135+C138+C148+C151+C154+C157+C160+C163+C166 -> 33819527.29 | D173: 33513635 | E173: 33513635 | F173: 0 | G173: 0 | H173: 2792817 | I173: =H173-G173 -> 2792817 | J173: =IF(I173=0,"",I173/H173) -> 1 | K173: =K7+K75+K103+K110+K117+K135+K138+K148+K151+K154+K157+K160+K163+K166 -> 33513635

Sheet SC13e
A1: =muni& " - "&S71Se& " - "&Head57 -> LIM351 Blouberg - Supporting Table SC13e Monthly Budget Statement - capital expenditure on upgrading of existing assets by asset class - M01 July
A2: =desc -> Description | B2: =head27 -> Ref | C2: =Head1 -> 2023/24 | D2: =Head2 -> Budget Year 2024/25
C3: =Head5 -> Audited Outcome | D3: =Head6 -> Original Budget | E3: =Head7 -> Adjusted Budget | F3: =Head38 -> Monthly actual | G3: =Head39 -> YearTD actual | H3: =Head40 -> YearTD budget | I3: =Head41 -> YTD variance | J3: =Head41 -> YTD variance | K3: =Head8 -> Full Year Forecast
A4: R thousands | B4: 1 | J4: %
A5: Capital expenditure on upgrading of existing assets by Asset Class/Sub-class
A7: Infrastructure | C7: =C8+C13+C17+C27+C38+C45+C53+C63+C69 -> 0 | D7: 0 | E7: 0 | F7: 0 | G7: 0 | H7: 0 | I7: =H7-G7 -> 0 | J7: =IF(I7=0,"",I7/H7) ->  | K7: =K8+K13+K17+K27+K38+K45+K53+K63+K69 -> 0
A8: Roads Infrastructure | C8: =SUM(C9:C12) -> 0 | D8: 0 | E8: 0 | F8: 0 | G8: 0 | H8: 0 | I8: 0 | K8: =SUM(K9:K12) -> 0
A9: Roads | I9: 0
A10: Road Structures | I10: 0
A11: Road Furniture | I11: 0
A12: Capital Spares | I12: 0
A13: Storm water Infrastructure | C13: =SUM(C14:C16) -> 0 | D13: 0 | E13: 0 | F13: 0 | G13: 0 | H13: 0 | I13: 0 | K13: =SUM(K14:K16) -> 0
A14: Drainage Collection | I14: 0
A15: Storm water Conveyance | I15: 0
A16: Attenuation | I16: 0
A17: Electrical Infrastructure | C17: =SUM(C18:C26) -> 0 | D17: 0 | E17: 0 | F17: 0 | G17: 0 | H17: 0 | I17: 0 | K17: =SUM(K18:K26) -> 0
A18: Power Plants | I18: 0
A19: HV Substations | I19: 0
A20: HV Switching Station | I20: 0
A21: HV Transmission Conductors | I21: 0
A22: MV Substations | I22: 0
A23: MV Switching Stations | I23: 0
A24: MV Networks | I24: 0
A25: LV Networks | I25: 0
A26: Capital Spares | I26: 0
A27: Water Supply Infrastructure | C27: =SUM(C28:C37) -> 0 | D27: 0 | E27: 0 | F27: 0 | G27: 0 | H27: 0 | I27: 0 | K27: =SUM(K28:K37) -> 0
A28: Dams and Weirs | I28: 0
A29: Boreholes | I29: 0
A30: Reservoirs | I30: 0
A31: Pump Stations | I31: 0
A32: Water Treatment Works | I32: 0
A33: Bulk Mains | I33: 0
A34: Distribution | I34: 0
A35: Distribution Points | I35: 0
A36: PRV Stations | I36: 0
A37: Capital Spares | I37: 0
A38: Sanitation Infrastructure | C38: =SUM(C39:C44) -> 0 | D38: 0 | E38: 0 | F38: 0 | G38: 0 | H38: 0 | I38: 0 | K38: =SUM(K39:K44) -> 0
A39: Pump Station | I39: 0
A40: Reticulation | I40: 0
A41: Waste Water Treatment Works | I41: 0
A42: Outfall Sewers | I42: 0
A43: Toilet Facilities | I43: 0
A44: Capital Spares | I44: 0
A45: Solid Waste Infrastructure | C45: =SUM(C46:C52) -> 0 | D45: 0 | E45: 0 | F45: 0 | G45: 0 | H45: 0 | I45: 0 | K45: =SUM(K46:K52) -> 0
A46: Landfill Sites | C46: 0 | D46: 0 | E46: 0 | F46: 0 | G46: 0 | H46: 0 | I46: 0 | K46: 0
A47: Waste Transfer Stations | I47: 0
A48: Waste Processing Facilities | I48: 0
A49: Waste Drop-off Points | I49: 0
A50: Waste Separation Facilities | I50: 0
A51: Electricity Generation Facilities | I51: 0
A52: Capital Spares | I52: 0
A53: Rail Infrastructure | C53: =SUM(C54:C62) -> 0 | D53: 0 | E53: 0 | F53: 0 | G53: 0 | H53: 0 | I53: 0 | K53: =SUM(K54:K62) -> 0
A54: Rail Lines | I54: 0
A55: Rail Structures | I55: 0
A56: Rail Furniture | I56: 0
A57: Drainage Collection | I57: 0
A58: Storm water Conveyance | I58: 0
A59: Attenuation | I59: 0
A60: MV Substations | I60: 0
A61: LV Networks | I61: 0
A62: Capital Spares | I62: 0
A63: Coastal Infrastructure | C63: =SUM(C64:C68) -> 0 | D63: 0 | E63: 0 | F63: 0 | G63: 0 | H63: 0 | I63: 0 | K63: =SUM(K64:K68) -> 0
A64: Sand Pumps | I64: 0
A65: Piers | I65: 0
A66: Revetments | I66: 0
A67: Promenades | I67: 0
A68: Capital Spares | I68: 0
A69: Information and Communication Infrastructure | C69: =SUM(C70:C73) -> 0 | D69: 0 | E69: 0 | F69: 0 | G69: 0 | H69: 0 | I69: 0 | K69: =SUM(K70:K73) -> 0
A70: Data Centres | I70: 0
A71: Core Layers | I71: 0
A72: Distribution Layers | I72: 0
A73: Capital Spares | I73: 0
A75: Community Assets | C75: =+C76+C99 -> 0 | D75: 0 | E75: 0 | F75: 0 | G75: 0 | H75: 0 | I75: 0 | K75: =+K76+K99 -> 0
A76: Community Facilities | C76: =SUM(C77:C98) -> 0 | D76: 0 | E76: 0 | F76: 0 | G76: 0 | H76: 0 | I76: 0 | K76: =SUM(K77:K98) -> 0
A77: Halls | I77: 0
A78: Centres | I78: 0
A79: Crèches | I79: 0
A80: Clinics/Care Centres | I80: 0
A81: Fire/Ambulance Stations | I81: 0
A82: Testing Stations | I82: 0
A83: Museums | I83: 0
A84: Galleries | I84: 0
A85: Theatres | I85: 0
A86: Libraries | I86: 0
A87: Cemeteries/Crematoria | I87: 0
A88: Police | I88: 0
A89: Purls | I89: 0
A90: Public Open Space | I90: 0
A91: Nature Reserves | I91: 0
A92: Public Ablution Facilities | I92: 0
A93: Markets | I93: 0
A94: Stalls | I94: 0
A95: Abattoirs | I95: 0
A96: Airports | I96: 0
A97: Taxi Ranks/Bus Terminals | I97: 0
A98: Capital Spares | I98: 0
A99: Sport and Recreation Facilities | C99: =SUM(C100:C102) -> 0 | D99: 0 | E99: 0 | F99: 0 | G99: 0 | H99: 0 | I99: 0 | K99: =SUM(K100:K102) -> 0
A100: Indoor Facilities | I100: 0
A101: Outdoor Facilities | C101: 0 | D101: 0 | E101: 0 | F101: 0 | G101: 0 | H101: 0 | I101: =H101-G101 -> 0 | J101: =IF(I101=0,"",I101/H101) ->  | K101: 0
A102: Capital Spares | I102: 0
A103: Heritage assets | C103: =SUM(C104:C108) -> 0 | D103: 0 | E103: 0 | F103: 0 | G103: 0 | H103: 0 | I103: 0 | K103: =SUM(K104:K108) -> 0
A104: Monuments | I104: 0
A105: Historic Buildings | I105: 0
A106: Works of Art | I106: 0
A107: Conservation Areas | I107: 0
A108: Other Heritage | I108: 0
I109: 0
A110: Investment properties | C110: =+C111+C114 -> 0 | D110: 0 | E110: 0 | F110: 0 | G110: 0 | H110: 0 | I110: 0 | K110: =+K111+K114 -> 0
A111: Revenue Generating | C111: =SUM(C112:C113) -> 0 | D111: 0 | E111: 0 | F111: 0 | G111: 0 | H111: 0 | I111: 0 | K111: =SUM(K112:K113) -> 0
A112: Improved Property | I112: 0
A113: Unimproved Property | I113: 0
A114: Non-revenue Generating | C114: =SUM(C115:C116) -> 0 | D114: 0 | E114: 0 | F114: 0 | G114: 0 | H114: 0 | I114: 0 | K114: =SUM(K115:K116) -> 0
A115: Improved Property | I115: 0
A116: Unimproved Property | I116: =H116-G116 -> 0 | J116: =IF(I116=0,"",I116/H116) -> 
A117: Other assets | C117: =+C118+C130 -> 0 | D117: 0 | E117: 0 | F117: 0 | G117: 0 | H117: 0 | I117: 0 | K117: =+K118+K130 -> 0
A118: Operational Buildings | C118: =SUM(C119:C129) -> 0 | D118: 0 | E118: 0 | F118: 0 | G118: 0 | H118: 0 | I118: 0 | K118: =SUM(K119:K129) -> 0
A119: Municipal Offices | I119: 0
A120: Pay/Enquiry Points | I120: 0
A121: Building Plan Offices | I121: 0
A122: Workshops | I122: 0
A123: Yards | I123: 0
A124: Stores | I124: 0
A125: Laboratories | I125: 0
A126: Training Centres | I126: 0
A127: Manufacturing Plant | I127: 0
A128: Depots | I128: 0
A129: Capital Spares | I129: 0
A130: Housing | C130: =SUM(C131:C133) -> 0 | D130: 0 | E130: 0 | F130: 0 | G130: 0 | H130: 0 | I130: 0 | K130: =SUM(K131:K133) -> 0
A131: Staff Housing | I131: 0
A132: Social Housing | I132: 0
A133: Capital Spares | I133: 0
A135: Biological or Cultivated Assets | C135: =SUM(C136:C136) -> 0 | D135: 0 | E135: 0 | F135: 0 | G135: 0 | H135: 0 | I135: =H135-G135 -> 0 | K135: =SUM(K136) -> 0
A136: Biological or Cultivated Assets | I136: =H136-G136 -> 0
J137: =IF(I137=0,"",I137/H137) -> 
A138: Intangible Assets | C138: =SUM(C139:C140) -> 0 | D138: 0 | E138: 0 | F138: 0 | G138: 0 | H138: 0 | I138: =H138-G138 -> 0 | K138: =SUM(K139:K140) -> 0
A139: Servitudes | I139: 0
A140: Licences and Rights | C140: =SUM(C141:C146) -> 0 | D140: 0 | E140: 0 | F140: 0 | G140: 0 | H140: 0 | I140: 0 | K140: =SUM(K141:K146) -> 0
A141: Water Rights | I141: 0
A142: Effluent Licenses | I142: 0
A143: Solid Waste Licenses | I143: 0
A144: Computer Software and Applications | I144: 0
A145: Load Settlement Software Applications | I145: 0
A146: Unspecified | I146: 0
A148: Computer Equipment | C148: =SUM(C149:C149) -> 0 | D148: 0 | E148: 0 | F148: 0 | G148: 0 | H148: 0 | I148: =H148-G148 -> 0 | J148: =IF(I148=0,"",I148/H148) ->  | K148: =SUM(K149) -> 0
A149: Computer Equipment | I149: =H149-G149 -> 0 | J149: =IF(I149=0,"",I149/H149) -> 
A151: Furniture and Office Equipment | C151: =SUM(C152:C152) -> 0 | D151: 0 | E151: 0 | F151: 0 | G151: 0 | H151: 0 | I151: =H151-G151 -> 0 | J151: =IF(I151=0,"",I151/H151) ->  | K151: =SUM(K152) -> 0
A152: Furniture and Office Equipment | C152: 0 | D152: 0 | E152: 0 | F152: 0 | G152: 0 | H152: 0 | I152: =H152-G152 -> 0 | J152: =IF(I152=0,"",I152/H152) ->  | K152: 0
J153: =IF(I153=0,"",I153/H153) -> 
A154: Machinery and Equipment | C154: =SUM(C155:C155) -> 0 | D154: 200000 | E154: 200000 | F154: 0 | G154: 0 | H154: 16668 | I154: =H154-G154 -> 16668 | J154: =IF(I154=0,"",I154/H154) -> 1 | K154: =SUM(K155) -> 200000
A155: Machinery and Equipment | C155: 0 | D155: 200000 | E155: 200000 | F155: 0 | G155: 0 | H155: 16668 | I155: =H155-G155 -> 16668 | J155: =IF(I155=0,"",I155/H155) -> 1 | K155: 200000
A157: Transport Assets | C157: =SUM(C158:C158) -> 0 | D157: 0 | E157: 0 | F157: 0 | G157: 0 | H157: 0 | I157: =H157-G157 -> 0 | J157: =IF(I157=0,"",I157/H157) ->  | K157: =SUM(K158) -> 0
A158: Transport Assets | I158: =H158-G158 -> 0 | J158: =IF(I158=0,"",I158/H158) -> 
A160: Land | C160: =SUM(C161:C161) -> 0 | D160: 0 | E160: 0 | F160: 0 | G160: 0 | H160: 0 | I160: =H160-G160 -> 0 | J160: =IF(I160=0,"",I160/H160) ->  | K160: =SUM(K161) -> 0
A161: Land | I161: =H161-G161 -> 0 | J161: =IF(I161=0,"",I161/H161) -> 
J162: .
A163: Zoo's, Marine and Non-biological Animals | C163: =SUM(C164:C164) -> 0 | D163: 0 | E163: 0 | F163: 0 | G163: 0 | H163: 0 | I163: =H163-G163 -> 0 | J163: =IF(I163=0,"",I163/H163) ->  | K163: =SUM(K164) -> 0
A164: Zoo's, Marine and Non-biological Animals | I164: =H164-G164 -> 0
A166: Living resources | C166: =+C167+C170 -> 0 | D166: 0 | E166: 0 | F166: 0 | G166: 0 | H166: 0 | I166: =H166-G166 -> 0 | K166: =+K167+K170 -> 0
A167: Mature | C167: =+C168+C169 -> 0 | D167: 0 | E167: 0 | F167: 0 | G167: 0 | H167: 0 | I167: 0 | K167: =+K168+K169 -> 0
A168: Policing and Protection | I168: 0
A169: Zoological plants and animals | I169: 0
A170: Immature | C170: =+C171+C172 -> 0 | D170: =+D171+D172 -> 0 | E170: 0 | F170: 0 | G170: 0 | H170: 0 | I170: 0 | K170: =+K171+K172 -> 0
A171: Policing and Protection | I171: 0
A172: Zoological plants and animals | I172: 0
A173: Total Capital Expenditure on upgrading of existing assets | B173: 1 | C173: =C7+C75+C103+C110+C117+C135+C138+C148+C151+C154+C157+C160+C163+C166 -> 0 | D173: 200000 | E173: 200000 | F173: 0 | G173: 0 | H173: 16668 | I173: =H173-G173 -> 16668 | J173: =IF(I173=0,"",I173/H173) -> 1 | K173: =K7+K75+K103+K110+K117+K135+K138+K148+K151+K154+K157+K160+K163+K166 -> 200000
A175: =head27a -> References
A176: 1. Total Capital Expenditure on new assets (SC13a) plus Total Capital Expenditure on renewal of existing assets (SC13b) plus Total Capital Expenditure on upgrading of existing assets (SC13e) must reconcile to total capital expenditure in Table C5

Sheet SC71charts
A1: ='Template names'!B102 -> Chart C1 2024/25 Capital Expenditure Monthly Trend: actual v target
A2: Month | B2: ='SC12'!B2 -> 2023/24 | C2: ='SC12'!C3 -> Original Budget | D2: ='SC12'!D3 -> Adjusted Budget | E2: ='SC12'!E3 -> Monthly actual
A3: =LEFT('SC12'!A6,3) -> Jul | B3: ='SC12'!B6 -> 0 | C3: ='SC12'!C6 -> 6242385 | D3: ='SC12'!D6 -> 6242385 | E3: ='SC12'!E6 -> 6394127.53
A4: =LEFT('SC12'!A7,3) -> Aug | B4: ='SC12'!B7 -> 3178394.27 | C4: ='SC12'!C7 -> 6242385 | D4: ='SC12'!D7 -> 6242385 | E4: ='SC12'!E7 -> 0
A5: =LEFT('SC12'!A8,3) -> Sep | B5: ='SC12'!B8 -> 4634613.29 | C5: ='SC12'!C8 -> 6242385 | D5: ='SC12'!D8 -> 6242385 | E5: ='SC12'!E8 -> 0
A6: =LEFT('SC12'!A9,3) -> Oct | B6: ='SC12'!B9 -> 8736457.68 | C6: ='SC12'!C9 -> 6242385 | D6: ='SC12'!D9 -> 6242385 | E6: ='SC12'!E9 -> 0
A7: =LEFT('SC12'!A10,3) -> Nov | B7: ='SC12'!B10 -> 11401864.09 | C7: ='SC12'!C10 -> 6242385 | D7: ='SC12'!D10 -> 6242385 | E7: ='SC12'!E10 -> 0
A8: =LEFT('SC12'!A11,3) -> Dec | B8: ='SC12'!B11 -> 9968726.98 | C8: ='SC12'!C11 -> 6242385 | D8: ='SC12'!D11 -> 6242385 | E8: ='SC12'!E11 -> 0
A9: =LEFT('SC12'!A12,3) -> Jan | B9: ='SC12'!B12 -> 1462416.34 | C9: ='SC12'!C12 -> 6242385 | D9: ='SC12'!D12 -> 6242385 | E9: ='SC12'!E12 -> 0
A10: =LEFT('SC12'!A13,3) -> Feb | B10: ='SC12'!B13 -> 2458428.77 | C10: ='SC12'!C13 -> 6242385 | D10: ='SC12'!D13 -> 6242385 | E10: ='SC12'!E13 -> 0
A11: =LEFT('SC12'!A14,3) -> Mar | B11: ='SC12'!B14 -> 6095244.7 | C11: ='SC12'!C14 -> 6242385 | D11: ='SC12'!D14 -> 6242385 | E11: ='SC12'!E14 -> 0
A12: =LEFT('SC12'!A15,3) -> Apr | B12: ='SC12'!B15 -> 7515982.65 | C12: ='SC12'!C15 -> 6242385 | D12: ='SC12'!D15 -> 6242385 | E12: ='SC12'!E15 -> 0
A13: =LEFT('SC12'!A16,3) -> May | B13: ='SC12'!B16 -> 9889736.84 | C13: ='SC12'!C16 -> 6242385 | D13: ='SC12'!D16 -> 6242385 | E13: ='SC12'!E16 -> 0
A14: =LEFT('SC12'!A17,3) -> Jun | B14: ='SC12'!B17 -> 6373952.14 | C14: ='SC12'!C17 -> 6242296 | D14: ='SC12'!D17 -> 6242296 | E14: ='SC12'!E17 -> 0
A26: ='Template names'!B103 -> Chart C2 2024/25 Capital Expenditure: YTD actual v YTD target
A27: Month | B27: ='SC12'!F3 -> YearTD actual | C27: ='SC12'!G3 -> YearTD budget
A28: =LEFT('SC12'!A6,3) -> Jul | B28: ='SC12'!F6 -> 6394127.53 | C28: ='SC12'!G6 -> 6242385
A29: =LEFT('SC12'!A7,3) -> Aug | B29: ='SC12'!F7 -> 0 | C29: ='SC12'!G7 -> 12484770
A30: =LEFT('SC12'!A8,3) -> Sep | B30: ='SC12'!F8 -> 0 | C30: ='SC12'!G8 -> 18727155
A31: =LEFT('SC12'!A9,3) -> Oct | B31: ='SC12'!F9 -> 0 | C31: ='SC12'!G9 -> 24969540
A32: =LEFT('SC12'!A10,3) -> Nov | B32: ='SC12'!F10 -> 0 | C32: ='SC12'!G10 -> 31211925
A33: =LEFT('SC12'!A11,3) -> Dec | B33: ='SC12'!F11 -> 0 | C33: ='SC12'!G11 -> 37454310
A34: =LEFT('SC12'!A12,3) -> Jan | B34: ='SC12'!F12 -> 0 | C34: ='SC12'!G12 -> 43696695
A35: =LEFT('SC12'!A13,3) -> Feb | B35: ='SC12'!F13 -> 0 | C35: ='SC12'!G13 -> 49939080
A36: =LEFT('SC12'!A14,3) -> Mar | B36: ='SC12'!F14 -> 0 | C36: ='SC12'!G14 -> 56181465
A37: =LEFT('SC12'!A15,3) -> Apr | B37: ='SC12'!F15 -> 0 | C37: ='SC12'!G15 -> 62423850
A38: =LEFT('SC12'!A16,3) -> May | B38: ='SC12'!F16 -> 0 | C38: ='SC12'!G16 -> 68666235
A39: =LEFT('SC12'!A17,3) -> Jun | B39: ='SC12'!F17 -> 0 | C39: ='SC12'!G17 -> 74908531
A51: ='Template names'!B104 -> Chart C3 Aged Consumer Debtors Analysis
B52: ='SC3'!C3 -> 0-30 Days | C52: ='SC3'!D3 -> 31-60 Days | D52: ='SC3'!E3 -> 61-90 Days | E52: ='SC3'!F3 -> 91-120 Days | F52: ='SC3'!G3 -> 121-150 Dys | G52: ='SC3'!H3 -> 151-180 Dys | H52: ='SC3'!I3 -> 181 Dys-1 Yr | I52: ='SC3'!J3 -> Over 1Yr
A53: =Head2 -> Budget Year 2024/25 | B53: ='SC3'!C14 -> 0 | C53: ='SC3'!D14 -> 0 | D53: ='SC3'!E14 -> 0 | E53: ='SC3'!F14 -> 0 | F53: ='SC3'!G14 -> 0 | G53: ='SC3'!H14 -> 0 | H53: ='SC3'!I14 -> 0 | I53: ='SC3'!J14 -> 0
A54: =Head1 -> 2023/24 | B54: ='SC3'!C15 -> 0 | C54: ='SC3'!D15 -> 0 | D54: ='SC3'!E15 -> 0 | E54: ='SC3'!F15 -> 0 | F54: ='SC3'!G15 -> 0 | G54: ='SC3'!H15 -> 0 | H54: ='SC3'!I15 -> 0 | I54: ='SC3'!J15 -> 0
A76: ='Template names'!B105 -> Chart C4 Consumer Debtors (total by Debtor Customer Category)
B77: =Head1 -> 2023/24 | C77: =Head2 -> Budget Year 2024/25
A78: ='SC3'!A17 -> Organs of State | B78: =C78*0.97 -> 0 | C78: ='SC3'!K17 -> 0
A79: ='SC3'!A18 -> Commercial | B79: =C79*0.97 -> 0 | C79: ='SC3'!K18 -> 0
A80: ='SC3'!A19 -> Households | B80: =C80*0.97 -> 0 | C80: ='SC3'!K19 -> 0
A81: ='SC3'!A20 -> Other | B81: =C81*0.97 -> 0 | C81: ='SC3'!K20 -> 0
A101: ='Template names'!B106 -> Chart C5 Aged Creditors Analysis
B102: ='SC4'!A6 -> Bulk Electricity | C102: ='SC4'!A7 -> Bulk Water | D102: ='SC4'!A8 -> PAYE deductions | E102: ='SC4'!A9 -> VAT (output less input) | F102: ='SC4'!A10 -> Pensions / Retirement deductions | G102: ='SC4'!A11 -> Loan repayments | H102: ='SC4'!A12 -> Trade Creditors | I102: ='SC4'!A13 -> Auditor General | J102: ='SC4'!A14 -> Other
A103: =A54 -> 2023/24 | B103: ='SC4'!L6 -> 0 | C103: ='SC4'!L7 -> 0 | D103: ='SC4'!L8 -> 0 | E103: ='SC4'!L9 -> 0 | F103: ='SC4'!L10 -> 0 | G103: ='SC4'!L11 -> 0 | H103: ='SC4'!L12 -> 0 | I103: ='SC4'!L13 -> 0 | J103: ='SC4'!L14 -> 0
A104: =A53 -> Budget Year 2024/25 | B104: ='SC4'!K6 -> 0 | C104: ='SC4'!K7 -> 0 | D104: ='SC4'!K8 -> 0 | E104: ='SC4'!K9 -> 0 | F104: ='SC4'!K10 -> 0 | G104: ='SC4'!K11 -> 0 | H104: ='SC4'!K12 -> 0 | I104: ='SC4'!K13 -> 0 | J104: ='SC4'!K14 -> 0
